Organisation Name,Organisation Code,Effective Date,Directorate,Service Category,Service Category URI,Supplier Name,Payment Date,Transaction Number,Net Amount,Irrecoverable VAT,Purpose_of_the_expenditure,Merchant Category
Wyre Council,http://opendatacommunities.org/doc/district-council/wyre,30/07/2023,People and Places,Cultural and Related Services,132A,JP DISTRIBUTION,05/07/2023,PE150139,100.00,0.00,4k distribution of Marine Hall What`s on Guide,Advertising - General
Wyre Council,http://opendatacommunities.org/doc/district-council/wyre,30/07/2023,People and Places,Cultural and Related Services,132A,Kingfisher Media Ltd,06/07/2023,PE150460,1495.00,0.00,Hardback guest book regional hospitality advertising - We are Wyre,Advertising - General
Wyre Council,http://opendatacommunities.org/doc/district-council/wyre,30/07/2023,Resources,Housing General Fund,134A,RHEA PROJECTS LTD,14/07/2023,RS151197,7440.00,0.00,Payment of invocie No - RP - 1882 - Affordable warmth support ,Affordable Warmth 2017/18
Wyre Council,http://opendatacommunities.org/doc/district-council/wyre,30/07/2023,Resources,Central Services to the Public,131C,The Association Of Electoral Administrators,25/07/2023,RS151533,7590.40,0.00,AEA Consultancy Services May 2023. 8.41 days @ 860.06 per day. Mileage - 794 miles @ 45p per mile,Agency Staff
Wyre Council,http://opendatacommunities.org/doc/district-council/wyre,30/07/2023,Resources,Central Services to the Public,131C,The Association Of Electoral Administrators,25/07/2023,RS151532,18918.07,0.00,AEA Consultancy Services April 2023. 21.18 days @ 860.06 per day Mileage - 1560 @ 45p per mile,Agency Staff
Wyre Council,http://opendatacommunities.org/doc/district-council/wyre,30/07/2023,People and Places,Support Services,135B,G2V Recruitment Group Ltd T/A G2 Recruitment Solu,13/07/2023,PE150946,1657.20,0.00,Payment of invoice 124981 -  Period End 02/07/2023,Agency Staff
Wyre Council,http://opendatacommunities.org/doc/district-council/wyre,30/07/2023,Resources,Support Services,135B,G2V Recruitment Group Ltd T/A G2 Recruitment Solu,21/07/2023,RS150184,1110.35,0.00,Payment of invoice 123380 - Period End 04/06/2023,Agency Staff
Wyre Council,http://opendatacommunities.org/doc/district-council/wyre,30/07/2023,Resources,Support Services,135B,G2V Recruitment Group Ltd T/A G2 Recruitment Solu,18/07/2023,RS151398,1654.05,0.00,Payment of invoice - NO - 124114  Period End 18/06/2023,Agency Staff
Wyre Council,http://opendatacommunities.org/doc/district-council/wyre,30/07/2023,Resources,Support Services,135B,G2V Recruitment Group Ltd T/A G2 Recruitment Solu,18/07/2023,RS151399,1649.25,0.00,Payment of invoice - 125359 Period End 09,Agency Staff
Wyre Council,http://opendatacommunities.org/doc/district-council/wyre,30/07/2023,Resources,Support Services,135B,G2V Recruitment Group Ltd T/A G2 Recruitment Solu,13/07/2023,RS150786,1651.35,0.00,Payment of invoice 124490 - Period End 25/06/2023,Agency Staff
Wyre Council,http://opendatacommunities.org/doc/district-council/wyre,30/07/2023,Resources,Support Services,135B,G2V Recruitment Group Ltd T/A G2 Recruitment Solu,24/07/2023,RS151445,1663.05,0.00,payment of invoice 125747 - Period End 16/07/2023,Agency Staff
Wyre Council,http://opendatacommunities.org/doc/district-council/wyre,30/07/2023,Resources,Support Services,135B,Park Avenue Recruitment Ltd,26/07/2023,RS151658,2311.70,0.00,Appointment of an interim Estates Surveyor,Agency Staff
Wyre Council,http://opendatacommunities.org/doc/district-council/wyre,30/07/2023,Resources,Support Services,135B,Park Avenue Recruitment Ltd,26/07/2023,RS151657,1950.00,0.00,Appointment of an interim Estates Surveyor,Agency Staff
Wyre Council,http://opendatacommunities.org/doc/district-council/wyre,30/07/2023,Resources,Support Services,135B,Park Avenue Recruitment Ltd,11/07/2023,RS150686,2260.35,0.00,Appointment of an interim Estates Surveyor,Agency Staff
Wyre Council,http://opendatacommunities.org/doc/district-council/wyre,30/07/2023,Resources,Support Services,135B,Park Avenue Recruitment Ltd,11/07/2023,RS150687,1705.85,0.00,Appointment of an interim Estates Surveyor,Agency Staff
Wyre Council,http://opendatacommunities.org/doc/district-council/wyre,30/07/2023,Resources,Support Services,135B,Park Avenue Recruitment Ltd,11/07/2023,RS150687,94.35,0.00,Appointment of an interim Estates Surveyor,Agency Staff
Wyre Council,http://opendatacommunities.org/doc/district-council/wyre,30/07/2023,Resources,Support Services,135B,Park Avenue Recruitment Ltd,11/07/2023,RS150792,1651.10,0.00,Appointment of an interim Estates Surveyor,Agency Staff
Wyre Council,http://opendatacommunities.org/doc/district-council/wyre,30/07/2023,Resources,Support Services,135B,Park Avenue Recruitment Ltd,19/07/2023,RS150974,2157.20,0.00,Appointment of an interim Estates Surveyor,Agency Staff
Wyre Council,http://opendatacommunities.org/doc/district-council/wyre,30/07/2023,Resources,Support Services,135B,Park Avenue Recruitment Ltd,19/07/2023,RS150791,1662.60,0.00,Appointment of an interim Estates Surveyor,Agency Staff
Wyre Council,http://opendatacommunities.org/doc/district-council/wyre,30/07/2023,Resources,Support Services,135B,Michael Page International Recruitment Limited,12/07/2023,RS151131,891.48,0.00,Building Control Manager - staffing and expense cost,Agency Staff
Wyre Council,http://opendatacommunities.org/doc/district-council/wyre,30/07/2023,Resources,Support Services,135B,Michael Page International Recruitment Limited,05/07/2023,RS150767,200.18,0.00,Building Control Manager - staffing and expense cost,Agency Staff
Wyre Council,http://opendatacommunities.org/doc/district-council/wyre,30/07/2023,Resources,Support Services,135B,Michael Page International Recruitment Limited,05/07/2023,RS150838,891.48,0.00,Building Control Manager - staffing and expense cost,Agency Staff
Wyre Council,http://opendatacommunities.org/doc/district-council/wyre,30/07/2023,Resources,Support Services,135B,Michael Page International Recruitment Limited,04/07/2023,RS150502,891.48,0.00,Building Control Manager - staffing and expense cost,Agency Staff
Wyre Council,http://opendatacommunities.org/doc/district-council/wyre,30/07/2023,Resources,Support Services,135B,Michael Page International Recruitment Limited,04/07/2023,RS150754,891.48,0.00,Building Control Manager - staffing and expense cost,Agency Staff
Wyre Council,http://opendatacommunities.org/doc/district-council/wyre,30/07/2023,People and Places,Cultural and Related Services,132A,M D Security,21/07/2023,PE151437,70.00,0.00,Mount Cottages: Callout to check on security alarm external sounder which kids have been standing on to get onto roof.  Repaired and put rubber spikes for preverntion,Alarm Systems and Security - Annual
Wyre Council,http://opendatacommunities.org/doc/district-council/wyre,30/07/2023,People and Places,Support Services,135B,M D Security,18/07/2023,PE151343,60.00,0.00,Carried out emergency light test for month 7/23 at Civic Centre,Alarm Systems and Security - Annual
Wyre Council,http://opendatacommunities.org/doc/district-council/wyre,30/07/2023,People and Places,Planning and Development Servs,132C,EAS Electrical Mechanical,05/07/2023,PE150846,24.00,0.00,Fault on temporary main fire alarm at Fleetwood Market,Alarm Systems and Security - Responsive
Wyre Council,http://opendatacommunities.org/doc/district-council/wyre,30/07/2023,People and Places,Cultural and Related Services,132A,M D Security,25/07/2023,PE151057,50.00,0.00,"Marine Hall:  Investigated fire alarms, found zone 15 (porch 2) had cobwebs around.  Cleaned and set to double knock, tested all ok left working",Alarm Systems and Security - Responsive
Wyre Council,http://opendatacommunities.org/doc/district-council/wyre,30/07/2023,People and Places,Environmental Services,132B,M D Security,18/07/2023,PE151291,50.00,0.00,Call out to test security alarm at Chatsworth Depot,Alarm Systems and Security - Responsive
Wyre Council,http://opendatacommunities.org/doc/district-council/wyre,30/07/2023,People and Places,Support Services,135B,M D Security,10/07/2023,PE150625,183.00,0.00,Civic Centre: replaced 2 x emergency light bulk head fittings at top of staircase adjacent room 108 and reprographics room,Alarm Systems and Security - Responsive
Wyre Council,http://opendatacommunities.org/doc/district-council/wyre,30/07/2023,People and Places,Support Services,135B,M D Security,27/07/2023,PE151671,275.00,0.00,Civic Centre: replaced 3 x emergency light fittings,Alarm Systems and Security - Responsive
Wyre Council,http://opendatacommunities.org/doc/district-council/wyre,30/07/2023,People and Places,Support Services,135B,M D Security,21/07/2023,PE151438,85.00,0.00,Civic Centre: Moved PIT in mayor`s parlour,Alarm Systems and Security - Responsive
Wyre Council,http://opendatacommunities.org/doc/district-council/wyre,30/07/2023,People and Places,Planning and Development Servs,132C,M D Security,31/07/2023,PE151058,50.00,0.00,Fleetwood Market: Investigated false alarm diagnosed zone 29 faulty PIR.  To replace when scaffolding is removed,Alarm Systems and Security - Responsive
Wyre Council,http://opendatacommunities.org/doc/district-council/wyre,30/07/2023,People and Places,Cultural and Related Services,132A,M D Security,19/07/2023,PE151290,315.60,0.00,Rossall pPoint Main building: Investigate fault on emergency lights.,Alarm Systems and Security - Responsive
Wyre Council,http://opendatacommunities.org/doc/district-council/wyre,30/07/2023,People and Places,Corporate and Democratic Core,131A,Andrew Signs LTD,05/07/2023,PE150837,25.00,0.00,various signs - june 2023,Annual Meeting
Wyre Council,http://opendatacommunities.org/doc/district-council/wyre,30/07/2023,Finance,Support Services,135B,,26/07/2023,WPST00113689,2782.00,0.00,Jun 23 HMRC Total apprenticeship levy,Apprenticeship Levy
Wyre Council,http://opendatacommunities.org/doc/district-council/wyre,30/07/2023,Resources,Corporate and Democratic Core,131A,PR Chauffeuring Services,17/07/2023,RS151364,891.00,0.00,Mayoral Chauffeuring Service - June 2023 - Monthly Fee,Attendant Chauffeur Service
Wyre Council,http://opendatacommunities.org/doc/district-council/wyre,30/07/2023,Finance,Corporate and Democratic Core,131A,NATWEST BANK,04/07/2023,WPST00111614,789.10,0.00,NatWest Bank Charges 30-06-23,Bank Charges
Wyre Council,http://opendatacommunities.org/doc/district-council/wyre,30/07/2023,Finance,Corporate and Democratic Core,131A,NATWEST BANK,21/07/2023,WPST00113351,1382.59,0.00,Worldpay 263053314,Bank Charges
Wyre Council,http://opendatacommunities.org/doc/district-council/wyre,30/07/2023,Finance,Corporate and Democratic Core,131A,NATWEST BANK,21/07/2023,WPST00113353,2156.34,0.00,Worldpay 262885635,Bank Charges
Wyre Council,http://opendatacommunities.org/doc/district-council/wyre,30/07/2023,People and Places,Environmental Services,132B,N Power LTD,13/07/2023,PE151002,13.41,0.00,Unmetered electricity supply for town centre cameras  1-30 June 2023,CCTV Running Costs
Wyre Council,http://opendatacommunities.org/doc/district-council/wyre,30/07/2023,People and Places,Environmental Services,132B,N Power LTD,13/07/2023,PE151002,4.81,0.00,Unmetered electricity supply for town centre cameras  1-30 June 2023,CCTV Running Costs
Wyre Council,http://opendatacommunities.org/doc/district-council/wyre,30/07/2023,People and Places,Environmental Services,132B,N Power LTD,13/07/2023,PE151002,115.91,0.00,Unmetered electricity supply for town centre cameras  1-30 June 2023,CCTV Running Costs
Wyre Council,http://opendatacommunities.org/doc/district-council/wyre,30/07/2023,People and Places,Environmental Services,132B,N Power LTD,13/07/2023,PE151002,80.48,0.00,Unmetered electricity supply for town centre cameras  1-30 June 2023,CCTV Running Costs
Wyre Council,http://opendatacommunities.org/doc/district-council/wyre,30/07/2023,Resources,Support Services,135B,Konica Minolta Business Solutions UK LTD,06/07/2023,RS150764,34.65,0.00,1840141295 - WECP,Central Printer/Copier Expenses
Wyre Council,http://opendatacommunities.org/doc/district-council/wyre,30/07/2023,Resources,Support Services,135B,Konica Minolta Business Solutions UK LTD,12/07/2023,RS150623,66.35,0.00,WECP 26/03/23 to 25/06/23,Central Printer/Copier Expenses
Wyre Council,http://opendatacommunities.org/doc/district-council/wyre,30/07/2023,People and Places,Planning and Development Servs,132C,Key Engineering & Hygiene Supplies LTD,19/07/2023,PE151367,24.72,0.00,LEMON AIR FRESHENER 400ML,Cleaning Materials
Wyre Council,http://opendatacommunities.org/doc/district-council/wyre,30/07/2023,People and Places,Planning and Development Servs,132C,Key Engineering & Hygiene Supplies LTD,19/07/2023,PE151367,17.28,0.00,EAUFRESH NON ACIDIC APPLE TOILET CLEANER 1 LTR,Cleaning Materials
Wyre Council,http://opendatacommunities.org/doc/district-council/wyre,30/07/2023,Resources,Support Services,135B,Key Engineering & Hygiene Supplies LTD,07/07/2023,RS150951,6.81,0.00,CITRUS FOAM LEMON SOAP 5 LITRE,Cleaning Materials
Wyre Council,http://opendatacommunities.org/doc/district-council/wyre,30/07/2023,People and Places,Cultural and Related Services,132A,Key Engineering & Hygiene Supplies LTD,06/07/2023,PE150851,5.76,0.00,EAUFRESH NON ACIDIC APPLE TOILET CLEANER 1 LTR,Cleaning Materials
Wyre Council,http://opendatacommunities.org/doc/district-council/wyre,30/07/2023,People and Places,Cultural and Related Services,132A,Key Engineering & Hygiene Supplies LTD,06/07/2023,PE150851,8.36,0.00,Order code A 004A Evans Cyclone Spray with Bleach 750ml,Cleaning Materials
Wyre Council,http://opendatacommunities.org/doc/district-council/wyre,30/07/2023,People and Places,Cultural and Related Services,132A,Key Engineering & Hygiene Supplies LTD,06/07/2023,PE150851,35.50,0.00,GREEN 1 PLY INTER-FOLD HAND TOWEL 250L X 190W 3600 SHEETS,Cleaning Materials
Wyre Council,http://opendatacommunities.org/doc/district-council/wyre,30/07/2023,People and Places,Cultural and Related Services,132A,Lyreco UK LTD,04/07/2023,PE150827,211.04,0.00,Product Code 3349389 - Tork White Toilet Tissue,Cleaning Materials
Wyre Council,http://opendatacommunities.org/doc/district-council/wyre,30/07/2023,People and Places,Cultural and Related Services,132A,EAS Electrical Mechanical,10/07/2023,PE150948,62.34,0.00,"clock VR West/Nutter Road:  Replaced 16a cartridge fuse, plugged 1 thing in at a time and everything worked fine.",Clock Maintenance - Responsive
Wyre Council,http://opendatacommunities.org/doc/district-council/wyre,30/07/2023,People and Places,Cultural and Related Services,132A,EAS Electrical Mechanical,12/07/2023,PE151133,48.00,0.00,"public Clock lord St Rowntree, Albert Square, Fleetwood: Accessed clock and found 32A MCB had tripped, has been reset but was unsure of outcome when leaving site as clock was in reset mode",Clock Maintenance - Responsive
Wyre Council,http://opendatacommunities.org/doc/district-council/wyre,30/07/2023,People and Places,Cultural and Related Services,132A,EAS Electrical Mechanical,12/07/2023,PE151137,120.00,0.00,"Public Clock, VR West shelter 11: EICR",Clock Maintenance - Responsive
Wyre Council,http://opendatacommunities.org/doc/district-council/wyre,30/07/2023,People and Places,Cultural and Related Services,132A,GARRY CARR BUILDING SERVICES LTD,24/07/2023,PE151285,745.00,0.00,"Public clock, Victoria Rd, Cleveleys: Prepare, prime and apply 2 coats rust inhibiting gloss",Clock Maintenance - Responsive
Wyre Council,http://opendatacommunities.org/doc/district-council/wyre,30/07/2023,People and Places,Cultural and Related Services,132A,GARRY CARR BUILDING SERVICES LTD,17/07/2023,PE151286,140.00,0.00,"Public Clock, Victoria Rd, Cleveleys: Excavate ground at base of clock for electrician and brick layer, reinstate on completion, barrier of the planter whilst work is being carried out",Clock Maintenance - Responsive
Wyre Council,http://opendatacommunities.org/doc/district-council/wyre,30/07/2023,Resources,Support Services,135B,AVC WISE LTD,12/07/2023,RS151156,404.98,0.00,INVOICE NUMBER: 105139,Commission Fees Etc.
Wyre Council,http://opendatacommunities.org/doc/district-council/wyre,30/07/2023,Resources,Support Services,135B,AVC WISE LTD,26/07/2023,RS151666,414.88,0.00,INVOICE NUMBER: 105376,Commission Fees Etc.
Wyre Council,http://opendatacommunities.org/doc/district-council/wyre,30/07/2023,Resources,Support Services,135B,Dell Corporation LTD,10/07/2023,RS150988,3911.03,0.00,"7.68TB SSD RI SAS ISE 12Gbps 512e 2.5in PM1643a Hot-Plug 1DWPD, CUS Kit [7.68TB SSD RI SAS ISE 12Gbps 512e 2.5inPM1643a Hot-Plug 1 DWPD, CUS Kit - [GMOB8J5]]",Comp Hardware Purchases
Wyre Council,http://opendatacommunities.org/doc/district-council/wyre,30/07/2023,Resources,Support Services,135B,Amazon Business,24/07/2023,RS151327,41.76,0.00,Order # 205-4505719-5333127 Payment request # 1QMP-7F4D-1MMK x4 Combination Padlock Heavy Duty Locks,Comp Hardware Purchases
Wyre Council,http://opendatacommunities.org/doc/district-council/wyre,30/07/2023,Resources,Support Services,135B,Amazon Business,24/07/2023,RS151270,17.30,0.00,"UGREEN USB Serial Cable USB to RS232 DB9 9 pin Converter Cable for Connecting Cisco Routers and Switches,Celestron Telescope Nexstar hand Controller, Extron Crestron Products with PL2303 Chipset (2m).",Comp Hardware Purchases
Wyre Council,http://opendatacommunities.org/doc/district-council/wyre,30/07/2023,Resources,Support Services,135B,Amazon Business,24/07/2023,RS150503,20.98,0.00,"Cisco Console Cable USB to RJ45 Cable FTDI for Windows 8, 7, Vista,MAC, Linux RS232 6 Ft (Blue).",Comp Hardware Purchases
Wyre Council,http://opendatacommunities.org/doc/district-council/wyre,30/07/2023,Resources,Support Services,135B,Amazon Business,24/07/2023,RS150709,196.64,0.00,Samsung 24inch 1920 x1080 Bezelless Monitor IPS. Item model number: LS24R650FDUXXU.,Comp Hardware Purchases
Wyre Council,http://opendatacommunities.org/doc/district-council/wyre,30/07/2023,Resources,Support Services,135B,Amazon Business,24/07/2023,RS150983,32.08,0.00,"Logitech K400 Plus Wireless Touch TV Keyboard With Easy Media Control and Built-in Touchpad, HTPC Keyboard for PC-connected TV, Windows, Android, Chrome OS, Laptop, QWERTY UK English Layout - Black.",Comp Hardware Purchases
Wyre Council,http://opendatacommunities.org/doc/district-council/wyre,30/07/2023,People and Places,Support Services,135B,Amazon Business,24/07/2023,PE150354,24.99,0.00,"Reference # INV-GB-161271101-2023-2260 Order date: 12 June 2023 Order # 205-3903657-5778700 10Gtek External Mini SAS HD SFF-8644 to Mini SAS SFF-8088 Hybrid Cable, 3-Meter ASIN: B01NA6AA1S",Comp Hardware Purchases
Wyre Council,http://opendatacommunities.org/doc/district-council/wyre,30/07/2023,Resources,Support Services,135B,Amazon Business,11/07/2023,RS150511,114.13,0.00,"ASRock Intel Arc A380 Challenger ITX 6GB OC, 6GB DDR6, PCIe4, HDMI, 3 DP, 2250MHz Clock, 0dB Cooling, Compact Design.",Comp Hardware Purchases
Wyre Council,http://opendatacommunities.org/doc/district-council/wyre,30/07/2023,Resources,Support Services,135B,Amazon Business,24/07/2023,RS151432,1146.64,0.00,NETGEAR Nighthawk 5G Router With Sim Slot Unlocked (MR5200) | Mobile WiFi 6 Router | MiFi Device | Fast and Reliable WiFi Anywhere | Up to 1.8Gbps.,Comp Hardware Purchases
Wyre Council,http://opendatacommunities.org/doc/district-council/wyre,30/07/2023,Resources,Support Services,135B,Amazon Business,11/07/2023,RS150669,99.16,0.00,"AMD Ryzen 5 5600 Desktop Processor (6-core/12-thread, 35 MB cache, up to 4.4 GHz max boost).",Comp Hardware Purchases
Wyre Council,http://opendatacommunities.org/doc/district-council/wyre,30/07/2023,Resources,Support Services,135B,Amazon Business,11/07/2023,RS150668,49.96,0.00,"Antec 550W EarthWatts Gold Pro Power Supply, 80 Plus Gold, Semi-Modular, Seven Year Warranty.",Comp Hardware Purchases
Wyre Council,http://opendatacommunities.org/doc/district-council/wyre,30/07/2023,Resources,Support Services,135B,Amazon Business,31/07/2023,RS151659,19.84,0.00,"Samsung Galaxy Official 25W Travel Adapter, Super-Fast Charging (UK Plug without USB Type-C Cable), Black.",Comp Hardware Purchases
Wyre Council,http://opendatacommunities.org/doc/district-council/wyre,30/07/2023,Resources,Support Services,135B,Amazon Business,11/07/2023,RS150667,22.70,0.00,"ARCTIC F12 PWM PST (5 Pack) - 120 mm PWM PST Case Fan with PWM Sharing Technology (PST), quiet motor, Computer, Fan Speed: 230-1350 RPM - Black.",Comp Hardware Purchases
Wyre Council,http://opendatacommunities.org/doc/district-council/wyre,30/07/2023,Resources,Support Services,135B,Amazon Business,11/07/2023,RS150666,29.98,0.00,"Corsair CMK16GX4M2B3200C16 Vengeance LPX 16 GB (2 x 8 GB) DDR4 3200 MHz C16 XMP 2.0 High Performance Desktop Memory Kit, Black.",Comp Hardware Purchases
Wyre Council,http://opendatacommunities.org/doc/district-council/wyre,30/07/2023,Resources,Support Services,135B,Amazon Business,11/07/2023,RS150521,89.99,0.00,"MSI B550-A PRO Motherboard ATX - Supports AMD Ryzen 3rd Gen Processors, AM4, DDR4 Boost (4400MHz/OC), 1 x PCIe 4.0/3.0 x16, 1 x PCIe 3.0/3.0 x16, 1 x M.2 Gen4 x4, 1 x M.2 Gen3 x4, HDMI, Gigabit LAN.",Comp Hardware Purchases
Wyre Council,http://opendatacommunities.org/doc/district-council/wyre,30/07/2023,Resources,Support Services,135B,GBICS.COM Ltd,18/07/2023,RS151408,1620.00,0.00,10GBASE-T SFP+ RJ45 30m Fortinet Compatible.,Comp Hardware Purchases
Wyre Council,http://opendatacommunities.org/doc/district-council/wyre,30/07/2023,Resources,Support Services,135B,Amazon Business,17/07/2023,RS151268,15.99,0.00,"SEYMAC stock iPad Mini 6 Case 2021 8.3 Inch, Shockproof Full Body Protective Case with Screen Protector Pencil Holder [360 Rotating Stand] & Hand/Shoulder Strap for iPad Mini 6th Generation (Black).",Computer Stationery and Consumables
Wyre Council,http://opendatacommunities.org/doc/district-council/wyre,30/07/2023,Resources,Support Services,135B,Amazon Business,10/07/2023,RS150984,116.64,0.00,IDP 650634 Color Ribbon - YMCKO - 250 prints by IDP.,Computer Stationery and Consumables
Wyre Council,http://opendatacommunities.org/doc/district-council/wyre,30/07/2023,Resources,Support Services,135B,Amazon Business,11/07/2023,RS150729,21.64,0.00,"UGREEN Hard Drive Case, Portable External Hard Drive Case for 2.5 Inch HDD SSD, Waterproof Protective Storage Pouch EVA Compatible with Solid State Drive WD Western Seagate Toshiba Lacie T5 T3.",Computer Stationery and Consumables
Wyre Council,http://opendatacommunities.org/doc/district-council/wyre,30/07/2023,Resources,Support Services,135B,Amazon Business,21/07/2023,RS151466,21.22,0.00,EasyAcc Power Bank Bag For Anker PowerCore Essential 20000 Case Shockproof EVA Hard Drive Case 2.5 Compatible Cable Earphone SD Card U Disk HDD SSD Like WD My Passport Lacie Porsche Rugged Samsung 5T.,Computer Stationery and Consumables
Wyre Council,http://opendatacommunities.org/doc/district-council/wyre,30/07/2023,Resources,Support Services,135B,Amazon Business,21/07/2023,RS151482,24.52,0.00,RLSOCO Hard Case for NETGEAR Nighthawk M2/M5/M6/M6 Pro Mobile wifi Router MR2100/MR5200/MR6150/MR6450/MR6500.,Computer Stationery and Consumables
Wyre Council,http://opendatacommunities.org/doc/district-council/wyre,30/07/2023,Resources,Support Services,135B,Amazon Business,21/07/2023,RS150163,19.16,0.00,"13`` Selfie Ring Light with Tripod Stand & Phone Holder, 74``/187cm Tall Large LED Ringlight Dimmable 3-Color Floor & Desk Circle Lights for Makeup TikTok YouTube Video Vlog Live Streaming Zoom Meeting",Computer Stationery and Consumables
Wyre Council,http://opendatacommunities.org/doc/district-council/wyre,30/07/2023,People and Places,Planning and Development Servs,132C,Lancashire County Council,11/07/2023,PE151044,4923.00,0.00,Archaeological advice for the period April 2023 - End March 2024,Consultants Fees
Wyre Council,http://opendatacommunities.org/doc/district-council/wyre,30/07/2023,People and Places,Planning and Development Servs,132C,Capita Property and Infrastructure Ltd,10/07/2023,PE150730,4586.50,0.00,Planning application support provided by Capita (May2023),Consultants Fees
Wyre Council,http://opendatacommunities.org/doc/district-council/wyre,30/07/2023,People and Places,"Cultural, Environ and Planning",137B,Halcrow Group LTD,13/07/2023,PE151167,3817.23,0.00,Current approved order based on agreed additional work. Authorised by Carl Green,Consultants Fees (New CCR)
Wyre Council,http://opendatacommunities.org/doc/district-council/wyre,30/07/2023,People and Places,"Cultural, Environ and Planning",137B,Middlemarch-Environmental Ltd,17/07/2023,PE151117,-16150.00,0.00,Offsets PE150976,Consultants Fees (New CCR)
Wyre Council,http://opendatacommunities.org/doc/district-council/wyre,30/07/2023,People and Places,"Cultural, Environ and Planning",137B,Purcell Architecture Limited,06/07/2023,PE150941,6432.19,0.00,Fleetwood Market.  Annex Roof.  Structural Design/Analysis to facilitate replacement roof and PV Array (PSDS Works).  Includes review of existing/proposed loads.,Consultants Fees (New CCR)
Wyre Council,http://opendatacommunities.org/doc/district-council/wyre,30/07/2023,People and Places,"Cultural, Environ and Planning",137B,Purcell Architecture Limited,06/07/2023,PE150939,928.13,0.00,"Fleetwood Market Consultants Fees 2023/24.  This Order replaces the following outstanding Orders: PEO0025404, PEO0025405, PEO0025427 and PEO0025528",Consultants Fees (New CCR)
Wyre Council,http://opendatacommunities.org/doc/district-council/wyre,30/07/2023,People and Places,"Cultural, Environ and Planning",137B,Purcell Architecture Limited,06/07/2023,PE150940,2000.00,0.00,Fleetwood Market.  Consultant Fees 2023/24.  This new Order replaces PEO0025425,Consultants Fees (New CCR)
Wyre Council,http://opendatacommunities.org/doc/district-council/wyre,30/07/2023,People and Places,"Cultural, Environ and Planning",137B,Purcell Architecture Limited,31/07/2023,PE151739,2041.43,0.00,Fleetwood Market (RIBA 5-7) Purcell Sub Consultants (QS + Structural Eng),Consultants Fees (New CCR)
Wyre Council,http://opendatacommunities.org/doc/district-council/wyre,30/07/2023,People and Places,"Cultural, Environ and Planning",137B,Purcell Architecture Limited,31/07/2023,PE151741,12117.66,0.00,Fleetwood Market.  Detailed Structural Engineering Design (Birdcage+Annex Works).  Includes Purcell Admin Fee.,Consultants Fees (New CCR)
Wyre Council,http://opendatacommunities.org/doc/district-council/wyre,30/07/2023,People and Places,"Cultural, Environ and Planning",137B,Purcell Architecture Limited,31/07/2023,PE151740,2122.63,0.00,Fleetwood Market.  Consultant Fees 2023/24.  This new Order replaces PEO0025425,Consultants Fees (New CCR)
Wyre Council,http://opendatacommunities.org/doc/district-council/wyre,30/07/2023,People and Places,"Cultural, Environ and Planning",137B,Purcell Architecture Limited,04/07/2023,PE150853,10000.00,0.00,"Fleetwood Market Consultants Fees 2023/24.  This Order replaces the following outstanding Orders: PEO0025404, PEO0025405, PEO0025427 and PEO0025528",Consultants Fees (New CCR)
Wyre Council,http://opendatacommunities.org/doc/district-council/wyre,30/07/2023,People and Places,"Cultural, Environ and Planning",137B,Purcell Architecture Limited,04/07/2023,PE150854,2041.43,0.00,Fleetwood Market (RIBA 5-7) Purcell Sub Consultants (QS + Structural Eng),Consultants Fees (New CCR)
Wyre Council,http://opendatacommunities.org/doc/district-council/wyre,30/07/2023,People and Places,"Cultural, Environ and Planning",137B,Susannah Bleakley Consulting,06/07/2023,PE150935,7461.65,0.00,ECO-CoBS Project,Consultants Fees (New CCR)
Wyre Council,http://opendatacommunities.org/doc/district-council/wyre,30/07/2023,People and Places,"Cultural, Environ and Planning",137B,WSP Real Estate and Infrastructure Limited,11/07/2023,PE150802,4560.28,0.00,"Project Management Services    Annual amount 78,000  Potentially for 4 years.",Consultants Fees (New CCR)
Wyre Council,http://opendatacommunities.org/doc/district-council/wyre,30/07/2023,Resources,"Cultural, Environ and Planning",137B,WSP Real Estate and Infrastructure Limited,10/07/2023,RS151030,2293.32,0.00,"Project Management Services    Annual amount 78,000  Potentially for 4 years.",Consultants Fees (New CCR)
Wyre Council,http://opendatacommunities.org/doc/district-council/wyre,30/07/2023,People and Places,Support Services,135B,Blackpool Skip Hire LTD,07/07/2023,PE150958,120.00,0.00,Empty of skips for Cemetries in Wyre,Containers Skips and Hire
Wyre Council,http://opendatacommunities.org/doc/district-council/wyre,30/07/2023,People and Places,Support Services,135B,Blackpool Skip Hire LTD,27/07/2023,PE151677,300.00,0.00,Empty of skips for Cemetries in Wyre,Containers Skips and Hire
Wyre Council,http://opendatacommunities.org/doc/district-council/wyre,30/07/2023,People and Places,Support Services,135B,Blackpool Skip Hire LTD,17/07/2023,PE151328,225.00,0.00,Empty of skips for Cemetries in Wyre,Containers Skips and Hire
Wyre Council,http://opendatacommunities.org/doc/district-council/wyre,30/07/2023,Resources,"Cultural, Environ and Planning",137B,DANFO (UK) LTD,12/07/2023,RS150192,430.00,0.00,"To replace radar access to keypad access at Changing Places facility at the Kite Club, Fleetwood",Contract (New CCR)
Wyre Council,http://opendatacommunities.org/doc/district-council/wyre,30/07/2023,People and Places,"Cultural, Environ and Planning",137B,Marine Management Organisation,26/07/2023,PE151641,2958.50,0.00,Wyre Beach and Dune Management Scheme Phases 1 and 2,Contract (New CCR)
Wyre Council,http://opendatacommunities.org/doc/district-council/wyre,30/07/2023,People and Places,"Cultural, Environ and Planning",137B,Landscape Engineering LTD,21/07/2023,PE151472,4850.00,0.00,"Work to Cottam Hall Growing area    Strim and clear vegetation from site. 450.00 Clear site of unnecessary items and all growing paraphernalia and metal store Spread remains of previous raised beds across site, remove any items such as plastic pots,",Contract (New CCR)
Wyre Council,http://opendatacommunities.org/doc/district-council/wyre,30/07/2023,People and Places,"Cultural, Environ and Planning",137B,F PARKINSON LTD,07/07/2023,PE150965,2116.29,0.00,Fleetwood Market Contract.  HSHAZ (Historic England) Work Elements (2023/24),Contract (New CCR)
Wyre Council,http://opendatacommunities.org/doc/district-council/wyre,30/07/2023,People and Places,"Cultural, Environ and Planning",137B,F PARKINSON LTD,07/07/2023,PE150964,23494.69,0.00,Fleetwood Market.  PSDS Works Contribution,Contract (New CCR)
Wyre Council,http://opendatacommunities.org/doc/district-council/wyre,30/07/2023,People and Places,"Cultural, Environ and Planning",137B,F PARKINSON LTD,07/07/2023,PE150963,43431.98,0.00,Fleetwood Market Contract Works 2023/24,Contract (New CCR)
Wyre Council,http://opendatacommunities.org/doc/district-council/wyre,30/07/2023,People and Places,"Cultural, Environ and Planning",137B,HORTICON LTD,28/07/2023,PE151715,1400.52,0.00,Preesall Playing Field - Release of retention,Contract (New CCR)
Wyre Council,http://opendatacommunities.org/doc/district-council/wyre,30/07/2023,People and Places,Support Services,135B,Sefton Council,13/07/2023,PE151072,500.00,0.00,North West Legal Consortium Annual Subscription for 2023/2024,Corporate and Professional Subscriptions
Wyre Council,http://opendatacommunities.org/doc/district-council/wyre,30/07/2023,Finance,Current Assets,130B,,11/07/2023,WPST00112369,17866.94,0.00,Ctax refunds 07/07/23,Council Tax Refunds
Wyre Council,http://opendatacommunities.org/doc/district-council/wyre,30/07/2023,Finance,Current Assets,130B,,18/07/2023,WPST00113006,16669.08,0.00,Ctax refunds,Council Tax Refunds
Wyre Council,http://opendatacommunities.org/doc/district-council/wyre,30/07/2023,Finance,Current Assets,130B,,04/07/2023,WPST00111603,18130.91,0.00,C/tax Refund,Council Tax Refunds
Wyre Council,http://opendatacommunities.org/doc/district-council/wyre,30/07/2023,Finance,Current Assets,130B,,25/07/2023,WPST00113580,11533.04,0.00,21-07-23 Ctax refunds,Council Tax Refunds
Wyre Council,http://opendatacommunities.org/doc/district-council/wyre,30/07/2023,Finance,Current Assets,130B,,25/07/2023,WPST00113581,707.36,0.00,21/07/2023 8020272,Council Tax Refunds
Wyre Council,http://opendatacommunities.org/doc/district-council/wyre,30/07/2023,People and Places,Support Services,135B,EK Motors Factors LTD,24/07/2023,PE151513,2.80,0.00,Parts,Daywork Materials (Excl.Tyres)
Wyre Council,http://opendatacommunities.org/doc/district-council/wyre,30/07/2023,People and Places,Support Services,135B,EK Motors Factors LTD,24/07/2023,PE151507,9.06,0.00,Parts,Daywork Materials (Excl.Tyres)
Wyre Council,http://opendatacommunities.org/doc/district-council/wyre,30/07/2023,People and Places,Support Services,135B,EK Motors Factors LTD,24/07/2023,PE151511,119.43,0.00,Parts,Daywork Materials (Excl.Tyres)
Wyre Council,http://opendatacommunities.org/doc/district-council/wyre,30/07/2023,People and Places,Support Services,135B,EK Motors Factors LTD,24/07/2023,PE151510,20.94,0.00,Parts,Daywork Materials (Excl.Tyres)
Wyre Council,http://opendatacommunities.org/doc/district-council/wyre,30/07/2023,People and Places,Support Services,135B,EK Motors Factors LTD,24/07/2023,PE151509,199.50,0.00,Parts,Daywork Materials (Excl.Tyres)
Wyre Council,http://opendatacommunities.org/doc/district-council/wyre,30/07/2023,People and Places,Support Services,135B,EK Motors Factors LTD,24/07/2023,PE151520,133.44,0.00,Parts,Daywork Materials (Excl.Tyres)
Wyre Council,http://opendatacommunities.org/doc/district-council/wyre,30/07/2023,People and Places,Support Services,135B,EK Motors Factors LTD,24/07/2023,PE151519,8.12,0.00,Parts,Daywork Materials (Excl.Tyres)
Wyre Council,http://opendatacommunities.org/doc/district-council/wyre,30/07/2023,People and Places,Support Services,135B,EK Motors Factors LTD,24/07/2023,PE151512,22.73,0.00,Parts,Daywork Materials (Excl.Tyres)
Wyre Council,http://opendatacommunities.org/doc/district-council/wyre,30/07/2023,People and Places,Support Services,135B,EK Motors Factors LTD,24/07/2023,PE151518,39.20,0.00,Parts,Daywork Materials (Excl.Tyres)
Wyre Council,http://opendatacommunities.org/doc/district-council/wyre,30/07/2023,People and Places,Support Services,135B,EK Motors Factors LTD,24/07/2023,PE151514,2.80,0.00,Parts,Daywork Materials (Excl.Tyres)
Wyre Council,http://opendatacommunities.org/doc/district-council/wyre,30/07/2023,People and Places,Housing General Fund,134A,EK Motors Factors LTD,24/07/2023,PE151506,6.55,0.00,Parts,Daywork Materials (Excl.Tyres)
Wyre Council,http://opendatacommunities.org/doc/district-council/wyre,30/07/2023,People and Places,Housing General Fund,134A,EK Motors Factors LTD,24/07/2023,PE151505,17.08,0.00,Parts,Daywork Materials (Excl.Tyres)
Wyre Council,http://opendatacommunities.org/doc/district-council/wyre,30/07/2023,People and Places,Support Services,135B,EK Motors Factors LTD,24/07/2023,PE151508,18.73,0.00,Parts,Daywork Materials (Excl.Tyres)
Wyre Council,http://opendatacommunities.org/doc/district-council/wyre,30/07/2023,People and Places,Environmental Services,132B,EK Motors Factors LTD,24/07/2023,PE151523,5.74,0.00,Parts,Daywork Materials (Excl.Tyres)
Wyre Council,http://opendatacommunities.org/doc/district-council/wyre,30/07/2023,People and Places,Environmental Services,132B,EK Motors Factors LTD,24/07/2023,PE151522,5.74,0.00,Parts,Daywork Materials (Excl.Tyres)
Wyre Council,http://opendatacommunities.org/doc/district-council/wyre,30/07/2023,People and Places,Environmental Services,132B,EK Motors Factors LTD,24/07/2023,PE151524,20.15,0.00,Parts,Daywork Materials (Excl.Tyres)
Wyre Council,http://opendatacommunities.org/doc/district-council/wyre,30/07/2023,People and Places,Environmental Services,132B,EK Motors Factors LTD,05/07/2023,PE150895,7.10,0.00,Parts,Daywork Materials (Excl.Tyres)
Wyre Council,http://opendatacommunities.org/doc/district-council/wyre,30/07/2023,People and Places,Support Services,135B,EK Motors Factors LTD,24/07/2023,PE151514,-2.80,0.00,Parts,Daywork Materials (Excl.Tyres)
Wyre Council,http://opendatacommunities.org/doc/district-council/wyre,30/07/2023,People and Places,Support Services,135B,EK Motors Factors LTD,05/07/2023,PE150897,233.94,0.00,Parts,Daywork Materials (Excl.Tyres)
Wyre Council,http://opendatacommunities.org/doc/district-council/wyre,30/07/2023,People and Places,Support Services,135B,EK Motors Factors LTD,05/07/2023,PE150902,10.91,0.00,Parts,Daywork Materials (Excl.Tyres)
Wyre Council,http://opendatacommunities.org/doc/district-council/wyre,30/07/2023,People and Places,Support Services,135B,EK Motors Factors LTD,05/07/2023,PE150901,77.21,0.00,Parts,Daywork Materials (Excl.Tyres)
Wyre Council,http://opendatacommunities.org/doc/district-council/wyre,30/07/2023,People and Places,Environmental Services,132B,EK Motors Factors LTD,05/07/2023,PE150893,37.73,0.00,Parts,Daywork Materials (Excl.Tyres)
Wyre Council,http://opendatacommunities.org/doc/district-council/wyre,30/07/2023,People and Places,Environmental Services,132B,EK Motors Factors LTD,24/07/2023,PE151525,51.78,0.00,Parts,Daywork Materials (Excl.Tyres)
Wyre Council,http://opendatacommunities.org/doc/district-council/wyre,30/07/2023,People and Places,Environmental Services,132B,EK Motors Factors LTD,24/07/2023,PE151525,51.78,0.00,Parts,Daywork Materials (Excl.Tyres)
Wyre Council,http://opendatacommunities.org/doc/district-council/wyre,30/07/2023,People and Places,Environmental Services,132B,EK Motors Factors LTD,24/07/2023,PE151525,51.78,0.00,Parts,Daywork Materials (Excl.Tyres)
Wyre Council,http://opendatacommunities.org/doc/district-council/wyre,30/07/2023,People and Places,Environmental Services,132B,EK Motors Factors LTD,24/07/2023,PE151521,44.00,0.00,Parts,Daywork Materials (Excl.Tyres)
Wyre Council,http://opendatacommunities.org/doc/district-council/wyre,30/07/2023,People and Places,Environmental Services,132B,EK Motors Factors LTD,05/07/2023,PE150894,18.36,0.00,Parts,Daywork Materials (Excl.Tyres)
Wyre Council,http://opendatacommunities.org/doc/district-council/wyre,30/07/2023,People and Places,Environmental Services,132B,EK Motors Factors LTD,05/07/2023,PE150892,2.79,0.00,Parts,Daywork Materials (Excl.Tyres)
Wyre Council,http://opendatacommunities.org/doc/district-council/wyre,30/07/2023,People and Places,Environmental Services,132B,EK Motors Factors LTD,05/07/2023,PE150891,232.54,0.00,Parts,Daywork Materials (Excl.Tyres)
Wyre Council,http://opendatacommunities.org/doc/district-council/wyre,30/07/2023,People and Places,Support Services,135B,EK Motors Factors LTD,05/07/2023,PE150900,29.23,0.00,Parts,Daywork Materials (Excl.Tyres)
Wyre Council,http://opendatacommunities.org/doc/district-council/wyre,30/07/2023,People and Places,Support Services,135B,EK Motors Factors LTD,05/07/2023,PE150899,69.63,0.00,Parts,Daywork Materials (Excl.Tyres)
Wyre Council,http://opendatacommunities.org/doc/district-council/wyre,30/07/2023,People and Places,Support Services,135B,EK Motors Factors LTD,05/07/2023,PE150896,31.60,0.00,Parts,Daywork Materials (Excl.Tyres)
Wyre Council,http://opendatacommunities.org/doc/district-council/wyre,30/07/2023,People and Places,Support Services,135B,FR Sharrock LTD,21/07/2023,PE151083,720.86,0.00,Parts,Daywork Materials (Excl.Tyres)
Wyre Council,http://opendatacommunities.org/doc/district-council/wyre,30/07/2023,People and Places,Support Services,135B,Gunn JCB LTD,07/07/2023,PE150824,3197.40,0.00,Service and repair 29/6/23,Daywork Materials (Excl.Tyres)
Wyre Council,http://opendatacommunities.org/doc/district-council/wyre,30/07/2023,People and Places,Environmental Services,132B,Bucher Municipal Limited,19/07/2023,PE151385,491.32,0.00,Various parts,Daywork Materials (Excl.Tyres)
Wyre Council,http://opendatacommunities.org/doc/district-council/wyre,30/07/2023,People and Places,Cultural and Related Services,132A,Amazon Business,26/07/2023,PE151392,57.49,0.00,Camera kit,Daywork Materials (Excl.Tyres)
Wyre Council,http://opendatacommunities.org/doc/district-council/wyre,30/07/2023,People and Places,Cultural and Related Services,132A,Carlsberg UK LTD,24/07/2023,PE151375,47.64,0.00,offset via credit PE151335 Invenio Pinot Grigio,Drinks
Wyre Council,http://opendatacommunities.org/doc/district-council/wyre,30/07/2023,People and Places,Cultural and Related Services,132A,Carlsberg UK LTD,18/07/2023,PE151406,152.95,0.00,CO2 and mixed gas,Drinks
Wyre Council,http://opendatacommunities.org/doc/district-council/wyre,30/07/2023,People and Places,Cultural and Related Services,132A,Carlsberg UK LTD,18/07/2023,PE151341,55.32,0.00,Bad Eye Deer Zinfandel rose x 12 bottles,Drinks
Wyre Council,http://opendatacommunities.org/doc/district-council/wyre,30/07/2023,People and Places,Cultural and Related Services,132A,Carlsberg UK LTD,25/07/2023,PE151503,814.77,0.00,Marine Hall Bar stock,Drinks
Wyre Council,http://opendatacommunities.org/doc/district-council/wyre,30/07/2023,People and Places,Cultural and Related Services,132A,Carlsberg UK LTD,11/07/2023,PE150832,560.97,0.00,Marine Hall bar,Drinks
Wyre Council,http://opendatacommunities.org/doc/district-council/wyre,30/07/2023,People and Places,Cultural and Related Services,132A,Carlsberg UK LTD,11/07/2023,PE150829,114.00,0.00,Co2 and mixed gas,Drinks
Wyre Council,http://opendatacommunities.org/doc/district-council/wyre,30/07/2023,People and Places,Cultural and Related Services,132A,Carlsberg UK LTD,19/07/2023,PE151340,1369.01,0.00,Bar order 13/7/23,Drinks
Wyre Council,http://opendatacommunities.org/doc/district-council/wyre,30/07/2023,People and Places,Cultural and Related Services,132A,Northern Citrus Products LTD,27/07/2023,PE151685,494.36,0.00,Marine Hall Bar stock,Drinks
Wyre Council,http://opendatacommunities.org/doc/district-council/wyre,30/07/2023,People and Places,Cultural and Related Services,132A,EDF Energy,11/07/2023,PE151016,574.82,0.00,Electricity charges for Garstang 01-06-23 to 06-06-23swimming pool for the period,Electricity
Wyre Council,http://opendatacommunities.org/doc/district-council/wyre,30/07/2023,People and Places,Cultural and Related Services,132A,EDF Energy,11/07/2023,PE151014,2382.79,0.00,Electricity charges for Fleetwood YMCA for the period 01/06/23-06/06/23,Electricity
Wyre Council,http://opendatacommunities.org/doc/district-council/wyre,30/07/2023,People and Places,Cultural and Related Services,132A,EDF Energy,11/07/2023,PE151014,74.49,0.00,Electricity charges for Fleetwood YMCA for the period 01/06/23-06/06/23,Electricity
Wyre Council,http://opendatacommunities.org/doc/district-council/wyre,30/07/2023,People and Places,Cultural and Related Services,132A,EDF Energy,11/07/2023,PE151015,2485.60,0.00,Electricity chaarges for Thornton YMCA for the period 01/06/23-06/06/23,Electricity
Wyre Council,http://opendatacommunities.org/doc/district-council/wyre,30/07/2023,People and Places,Cultural and Related Services,132A,N Power LTD,14/07/2023,PE151147,939.28,0.00,Garstang Swimming Pool 07/06/23 to 30/06/23,Electricity
Wyre Council,http://opendatacommunities.org/doc/district-council/wyre,30/07/2023,People and Places,Cultural and Related Services,132A,N Power LTD,14/07/2023,PE151148,6053.72,0.00,Fleetwood Leisure Centre 07/06/23 to 30/06/23,Electricity
Wyre Council,http://opendatacommunities.org/doc/district-council/wyre,30/07/2023,People and Places,Cultural and Related Services,132A,N Power LTD,14/07/2023,PE151145,6987.12,0.00,Thornton Leisure Centre 07/06/23 to 30/06/23,Electricity
Wyre Council,http://opendatacommunities.org/doc/district-council/wyre,30/07/2023,People and Places,Cultural and Related Services,132A,N Power LTD,14/07/2023,PE151146,3655.73,0.00,Breck Rd Swimming & Fitness Centre 07/06/23 to 30/06/23,Electricity
Wyre Council,http://opendatacommunities.org/doc/district-council/wyre,30/07/2023,People and Places,Parking Services,133F,N Power LTD,19/07/2023,PE151005,450.72,0.00,Unmetered supply lighting Civic Centre Breck Rd. Poulton. 010623 to 300623,Electricity
Wyre Council,http://opendatacommunities.org/doc/district-council/wyre,30/07/2023,People and Places,Parking Services,133F,N Power LTD,12/07/2023,PE151003,2.77,0.00,"Unmetered Supply, 01/06/23 to 30/06/23",Electricity
Wyre Council,http://opendatacommunities.org/doc/district-council/wyre,30/07/2023,People and Places,Parking Services,133F,N Power LTD,12/07/2023,PE151003,0.08,0.00,"Unmetered Supply, 01/06/23 to 30/06/23",Electricity
Wyre Council,http://opendatacommunities.org/doc/district-council/wyre,30/07/2023,People and Places,Parking Services,133F,N Power LTD,12/07/2023,PE151004,1467.55,0.00,Unmetered supply lighting 01/06/23 to 30/06/23,Electricity
Wyre Council,http://opendatacommunities.org/doc/district-council/wyre,30/07/2023,People and Places,Environmental Services,132B,N Power LTD,12/07/2023,PE151004,261.68,0.00,Unmetered supply lighting 01/06/23 to 30/06/23,Electricity
Wyre Council,http://opendatacommunities.org/doc/district-council/wyre,30/07/2023,People and Places,Environmental Services,132B,N Power LTD,12/07/2023,PE151003,0.51,0.00,"Unmetered Supply, 01/06/23 to 30/06/23",Electricity
Wyre Council,http://opendatacommunities.org/doc/district-council/wyre,30/07/2023,People and Places,Support Services,135B,Corona Energy Retail 4 Limited,17/07/2023,PE151099,-12064.12,0.00,1600000162857 Civic Centre Breck Road Blackpool FY39DT 01/05/23 TO 31/05/23,Electricity
Wyre Council,http://opendatacommunities.org/doc/district-council/wyre,30/07/2023,People and Places,Support Services,135B,Corona Energy Retail 4 Limited,17/07/2023,PE151091,-12289.48,0.00,1600000162857 Civic Centre Breck Road Blackpool FY39DT 01/04/23 TO 30/04/23,Electricity
Wyre Council,http://opendatacommunities.org/doc/district-council/wyre,30/07/2023,People and Places,Cultural and Related Services,132A,Corona Energy Retail 4 Limited,17/07/2023,PE151100,-5862.13,0.00,1600000162875 Marine Hall The Esplanade Fleetwood FY76HF 01/05/23 TO 31/05/23,Electricity
Wyre Council,http://opendatacommunities.org/doc/district-council/wyre,30/07/2023,People and Places,Cultural and Related Services,132A,Corona Energy Retail 4 Limited,17/07/2023,PE151084,-7161.06,0.00,1600000162875 Marine Hall The Esplanade Fleetwood FY76HF 01/04/23 TO 30/04/23,Electricity
Wyre Council,http://opendatacommunities.org/doc/district-council/wyre,30/07/2023,People and Places,Cultural and Related Services,132A,Corona Energy Retail 4 Limited,17/07/2023,PE151088,-2399.77,0.00,1630000670291 Promendae Cafe North Promenade Thornton-Cleveleys FY51DB 01/05/23 TO 31/05/23,Electricity
Wyre Council,http://opendatacommunities.org/doc/district-council/wyre,30/07/2023,People and Places,Cultural and Related Services,132A,Corona Energy Retail 4 Limited,17/07/2023,PE151101,-2169.38,0.00,1630000670291 Promendae Cafe North Promenade Thornton-Cleveleys FY51DB 01/04/23 TO 30/04/23,Electricity
Wyre Council,http://opendatacommunities.org/doc/district-council/wyre,30/07/2023,People and Places,Cultural and Related Services,132A,Corona Energy Retail 4 Limited,17/07/2023,PE151089,2104.05,0.00,1630000670291 Promendae Cafe North  Promenade Thornton-Cleveleys FY51DB 01/04/23 TO 30/04/23,Electricity
Wyre Council,http://opendatacommunities.org/doc/district-council/wyre,30/07/2023,People and Places,Cultural and Related Services,132A,Corona Energy Retail 4 Limited,17/07/2023,PE151094,2327.95,0.00,1630000670291 Promendae Cafe North  Promenade Thornton-Cleveleys FY51DB 01/05/23 TO 31/05/23,Electricity
Wyre Council,http://opendatacommunities.org/doc/district-council/wyre,30/07/2023,People and Places,Cultural and Related Services,132A,Corona Energy Retail 4 Limited,17/07/2023,PE151262,2349.57,0.00,1630000670291 Promendae Cafe North  Promenade Thornton-Cleveleys FY51DB 01/06/23 to 30/06/23,Electricity
Wyre Council,http://opendatacommunities.org/doc/district-council/wyre,30/07/2023,People and Places,Planning and Development Servs,132C,Corona Energy Retail 4 Limited,17/07/2023,PE151096,-1977.13,0.00,1640000184606 Council Depot Copse Road Fleetwood FY76RP 01/05/23 TO 31/05/23,Electricity
Wyre Council,http://opendatacommunities.org/doc/district-council/wyre,30/07/2023,People and Places,Planning and Development Servs,132C,Corona Energy Retail 4 Limited,17/07/2023,PE151109,-865.22,0.00,1640000184606 Council Depot Copse Road Fleetwood FY76RP 01/04/23 TO 30/04/23,Electricity
Wyre Council,http://opendatacommunities.org/doc/district-council/wyre,30/07/2023,People and Places,Planning and Development Servs,132C,Corona Energy Retail 4 Limited,17/07/2023,PE151106,-1127.16,0.00,1640000184606 Council Depot Copse Road Fleetwood FY76RP 01/04/23 TO 30/04/23,Electricity
Wyre Council,http://opendatacommunities.org/doc/district-council/wyre,30/07/2023,People and Places,Planning and Development Servs,132C,Corona Energy Retail 4 Limited,17/07/2023,PE151108,-803.72,0.00,1640000184606 Council Depot Copse Road Fleetwood FY76RP 01/05/23 TO 31/05/23,Electricity
Wyre Council,http://opendatacommunities.org/doc/district-council/wyre,30/07/2023,People and Places,Planning and Development Servs,132C,Corona Energy Retail 4 Limited,17/07/2023,PE151115,1127.16,0.00,1640000184606 Council Depot  Copse Road Fleetwood FY76RP 01/04/23 TO 30/04/23,Electricity
Wyre Council,http://opendatacommunities.org/doc/district-council/wyre,30/07/2023,People and Places,Planning and Development Servs,132C,Corona Energy Retail 4 Limited,17/07/2023,PE151260,1895.21,0.00,1640000184606 Council Depot Copse Road  Fleetwood FY76RP 01/06/23 to 30/06/23,Electricity
Wyre Council,http://opendatacommunities.org/doc/district-council/wyre,30/07/2023,People and Places,Planning and Development Servs,132C,Corona Energy Retail 4 Limited,17/07/2023,PE151090,1925.60,0.00,1640000184606 Council Depot Copse Road  Fleetwood FY76RP 01/05/23 TO 31/05/23,Electricity
Wyre Council,http://opendatacommunities.org/doc/district-council/wyre,30/07/2023,People and Places,Planning and Development Servs,132C,Corona Energy Retail 4 Limited,17/07/2023,PE151107,1099.94,0.00,1640000184606 Council Depot Copse Road  Fleetwood FY76RP 01/04/23 TO 30/04/23,Electricity
Wyre Council,http://opendatacommunities.org/doc/district-council/wyre,30/07/2023,People and Places,Planning and Development Servs,132C,Corona Energy Retail 4 Limited,17/07/2023,PE151110,1977.13,0.00,1640000184606 Council Depot  Copse Road Fleetwood FY76RP 01/05/23 TO 31/05/23,Electricity
Wyre Council,http://opendatacommunities.org/doc/district-council/wyre,30/07/2023,People and Places,Support Services,135B,Corona Energy Retail 4 Limited,17/07/2023,PE151097,11778.31,0.00,1600000162857 Civic Centre Breck Road  Blackpool FY39DT 01/05/23 TO 31/05/23,Electricity
Wyre Council,http://opendatacommunities.org/doc/district-council/wyre,30/07/2023,People and Places,Support Services,135B,Corona Energy Retail 4 Limited,17/07/2023,PE151093,12007.86,0.00,1600000162857 Civic Centre Breck Road  Blackpool FY39DT 01/04/23 TO 30/04/23,Electricity
Wyre Council,http://opendatacommunities.org/doc/district-council/wyre,30/07/2023,People and Places,Support Services,135B,Corona Energy Retail 4 Limited,17/07/2023,PE151263,10511.55,0.00,1600000162857 Civic Centre Breck Road  Blackpool FY39DT 01/06/23 to 30/06/23,Electricity
Wyre Council,http://opendatacommunities.org/doc/district-council/wyre,30/07/2023,People and Places,Cultural and Related Services,132A,Corona Energy Retail 4 Limited,17/07/2023,PE151258,4625.18,0.00,1600000162875 Marine Hall The Esplanade  Fleetwood FY76HF 01/06/23 to 30/06/23,Electricity
Wyre Council,http://opendatacommunities.org/doc/district-council/wyre,30/07/2023,People and Places,Cultural and Related Services,132A,Corona Energy Retail 4 Limited,17/07/2023,PE151104,7008.51,0.00,1600000162875 Marine Hall The Esplanade  Fleetwood FY76HF 01/04/23 TO 30/04/23,Electricity
Wyre Council,http://opendatacommunities.org/doc/district-council/wyre,30/07/2023,People and Places,Cultural and Related Services,132A,Corona Energy Retail 4 Limited,17/07/2023,PE151086,5734.35,0.00,1600000162875 Marine Hall The Esplanade  Fleetwood FY76HF 01/05/23 TO 31/05/23,Electricity
Wyre Council,http://opendatacommunities.org/doc/district-council/wyre,30/07/2023,People and Places,Planning and Development Servs,132C,Corona Energy Retail 4 Limited,17/07/2023,PE151257,804.01,0.00,1620000784666 Main Hall Adelaide Street  Fleetwood FY76AB 01/06/23 to 30/06/23,Electricity
Wyre Council,http://opendatacommunities.org/doc/district-council/wyre,30/07/2023,People and Places,Environmental Services,132B,Corona Energy Retail 4 Limited,17/07/2023,PE151261,71.27,0.00,1600000023675 Royles Brook Pumping Station  Off Victoria Road East Thornton FY55OX 01/06/23 to 30/06/23,Electricity
Wyre Council,http://opendatacommunities.org/doc/district-council/wyre,30/07/2023,People and Places,Environmental Services,132B,Corona Energy Retail 4 Limited,17/07/2023,PE151103,38.84,0.00,1600000023675 Royles Brook Pumping Station  Off Victoria Road East Thornton FY55OX 01/05/23 TO 31/05/23,Electricity
Wyre Council,http://opendatacommunities.org/doc/district-council/wyre,30/07/2023,People and Places,Environmental Services,132B,Corona Energy Retail 4 Limited,17/07/2023,PE151092,89.69,0.00,1600000023675 Royles Brook Pumping Station  Off Victoria Road East Thornton FY55OX 01/04/23 TO 30/04/23,Electricity
Wyre Council,http://opendatacommunities.org/doc/district-council/wyre,30/07/2023,People and Places,Cultural and Related Services,132A,Corona Energy Retail 4 Limited,17/07/2023,PE151259,199.00,0.00,1640000233705 Coastal Observation Point  Rossal Point Fleetwood FY78AF 01/06/23 to 30/06/23,Electricity
Wyre Council,http://opendatacommunities.org/doc/district-council/wyre,30/07/2023,People and Places,Cultural and Related Services,132A,Corona Energy Retail 4 Limited,17/07/2023,PE151095,127.22,0.00,1640000233705 Coastal Observation Point  Rossal Point Fleetwood FY78AF 01/04/23 TO 30/04/23,Electricity
Wyre Council,http://opendatacommunities.org/doc/district-council/wyre,30/07/2023,People and Places,Cultural and Related Services,132A,Corona Energy Retail 4 Limited,17/07/2023,PE151098,209.80,0.00,1640000233705 Coastal Observation Point  Rossal Point Fleetwood FY78AF 01/05/23 TO 31/05/23,Electricity
Wyre Council,http://opendatacommunities.org/doc/district-council/wyre,30/07/2023,People and Places,Cultural and Related Services,132A,Corona Energy Retail 4 Limited,17/07/2023,PE151112,215.20,0.00,1640000233705 Coastal  Observation Point Rossal Point Fleetwood FY78AF 01/05/23 TO 31/05/23,Electricity
Wyre Council,http://opendatacommunities.org/doc/district-council/wyre,30/07/2023,People and Places,Cultural and Related Services,132A,Corona Energy Retail 4 Limited,17/07/2023,PE151111,130.15,0.00,1640000233705 Coastal  Observation Point Rossal Point Fleetwood FY78AF 01/04/23 TO 30/04/23,Electricity
Wyre Council,http://opendatacommunities.org/doc/district-council/wyre,30/07/2023,People and Places,Cultural and Related Services,132A,Corona Energy Retail 4 Limited,19/07/2023,PE151344,230.22,0.00,1610004863632 Beach Bungalows The Esplanade  Fleetwood FY76QD 01/06/23 to 30/06/23 E,Electricity
Wyre Council,http://opendatacommunities.org/doc/district-council/wyre,30/07/2023,People and Places,Environmental Services,132B,Corona Energy Retail 4 Limited,19/07/2023,PE151345,1331.02,0.00,1610004347328 East Cemetry Garstang Road  East Poulton Le Fylde FY67SN 01/06/23 to 30/06/23 E,Electricity
Wyre Council,http://opendatacommunities.org/doc/district-council/wyre,30/07/2023,People and Places,Cultural and Related Services,132A,Corona Energy Retail 4 Limited,19/07/2023,PE151349,84.03,0.00,1610004318841 Jean Stansfield Bowling Green  Vicarage Road Poulton Le Fylde FY67BE 01/06/23 to 30/06/23,Electricity
Wyre Council,http://opendatacommunities.org/doc/district-council/wyre,30/07/2023,People and Places,Cultural and Related Services,132A,Corona Energy Retail 4 Limited,19/07/2023,PE151347,113.09,0.00,1610004724089 Pavilion North Drive Thornton  Cleveleys FY52QD 01/06/23 to 30/06/23,Electricity
Wyre Council,http://opendatacommunities.org/doc/district-council/wyre,30/07/2023,People and Places,Cultural and Related Services,132A,Corona Energy Retail 4 Limited,19/07/2023,PE151352,32.06,0.00,1610004305443 Sports Pavilion Sports  Pavilion Poulton-Le-Fylde FY67RH 01/06/23 to 30/06/23 E,Electricity
Wyre Council,http://opendatacommunities.org/doc/district-council/wyre,30/07/2023,People and Places,Cultural and Related Services,132A,Corona Energy Retail 4 Limited,19/07/2023,PE151354,57.86,0.00,1610004305434 Sports Pavilion Sports  Pavilion Poulton-Le-Fylde FY67RH 01/06/23 to 30/06/23 E,Electricity
Wyre Council,http://opendatacommunities.org/doc/district-council/wyre,30/07/2023,People and Places,Central Services to the Public,131C,Corona Energy Retail 4 Limited,19/07/2023,PE151350,3071.72,0.00,1610004322012 Womens Royal Voluntary  Service Teanlowe Day Centre Poulton-Le-Fylde FY67ST 01/06/23 to 30/06/23,Electricity
Wyre Council,http://opendatacommunities.org/doc/district-council/wyre,30/07/2023,People and Places,Cultural and Related Services,132A,Corona Energy Retail 4 Limited,19/07/2023,PE151360,1788.43,0.00,1610004773866 Wyre Borough Council Lecture  Hall Thornton-Cleveleys FY54AD 01/06/23 to 30/06/23 E,Electricity
Wyre Council,http://opendatacommunities.org/doc/district-council/wyre,30/07/2023,People and Places,Cultural and Related Services,132A,Corona Energy Retail 4 Limited,19/07/2023,PE151359,251.53,0.00,1640000960322 The Mount Lodge The Esplanade  Fleetwood FY76EZ 01/06/23 to 30/06/23,Electricity
Wyre Council,http://opendatacommunities.org/doc/district-council/wyre,30/07/2023,People and Places,Cultural and Related Services,132A,Corona Energy Retail 4 Limited,19/07/2023,PE151357,224.07,0.00,1650000008330 The Mount Pavilion Mount Road  Lancashire FY76EZ 01/06/23 to 30/06/23,Electricity
Wyre Council,http://opendatacommunities.org/doc/district-council/wyre,30/07/2023,People and Places,Cultural and Related Services,132A,Corona Energy Retail 4 Limited,19/07/2023,PE151353,8.14,0.00,1610004742404 River Road Thornton Cleveleys  Thornton Cleveleys FY55LR 01/06/23 to 30/06/23,Electricity
Wyre Council,http://opendatacommunities.org/doc/district-council/wyre,30/07/2023,People and Places,Cultural and Related Services,132A,Corona Energy Retail 4 Limited,19/07/2023,PE151356,277.37,0.00,1610004742399 River Road Thornton Cleveleys  Thornton Cleveleys FY55LR 01/06/23 to 30/06/23,Electricity
Wyre Council,http://opendatacommunities.org/doc/district-council/wyre,30/07/2023,People and Places,Cultural and Related Services,132A,Corona Energy Retail 4 Limited,19/07/2023,PE151362,180.90,0.00,1610004742431 Visitors Centre River Road  Thornton Cleveleys FY55LR 01/06/23 to 30/06/23 E,Electricity
Wyre Council,http://opendatacommunities.org/doc/district-council/wyre,30/07/2023,People and Places,Environmental Services,132B,Corona Energy Retail 4 Limited,19/07/2023,PE151355,580.25,0.00,1610004665168 Public Conven Public Conven  Thornton-Cleveleys FY51BW 01/06/23 to 30/06/23,Electricity
Wyre Council,http://opendatacommunities.org/doc/district-council/wyre,30/07/2023,People and Places,Environmental Services,132B,Corona Energy Retail 4 Limited,19/07/2023,PE151351,710.28,0.00,1610004313728 Public Convenience Off  Queensway Poulton-Le-Fylde FY67DF 01/06/23 to 30/06/23 E,Electricity
Wyre Council,http://opendatacommunities.org/doc/district-council/wyre,30/07/2023,People and Places,Environmental Services,132B,Corona Energy Retail 4 Limited,19/07/2023,PE151358,137.47,0.00,1610023232505 Public Conveniences Public  Conveniences Garstang PR31EA 01/06/23 to 30/06/23,Electricity
Wyre Council,http://opendatacommunities.org/doc/district-council/wyre,30/07/2023,People and Places,Environmental Services,132B,Corona Energy Retail 4 Limited,19/07/2023,PE151346,26.66,0.00,1610004421200 Pumping Station 2 New Lane  Thornton Cleveleys FY55NH 01/06/23 to 30/06/23 E,Electricity
Wyre Council,http://opendatacommunities.org/doc/district-council/wyre,30/07/2023,People and Places,Environmental Services,132B,Corona Energy Retail 4 Limited,19/07/2023,PE151348,25.74,0.00,1610004421042 Pumping Station;1 New Lane  Thornton Cleveleys FY55NS 01/06/23 to 30/06/23 E,Electricity
Wyre Council,http://opendatacommunities.org/doc/district-council/wyre,30/07/2023,People and Places,Environmental Services,132B,Corona Energy Retail 4 Limited,19/07/2023,PE151361,379.10,0.00,1610004742413 Stanah Pumphouse 11 River  Road Thornton Cleveleys FY55LR 01/06/23 to 30/06/23 E,Electricity
Wyre Council,http://opendatacommunities.org/doc/district-council/wyre,30/07/2023,People and Places,Planning and Development Servs,132C,Drax Energy Solutions Limited,11/07/2023,PE150991,127.42,0.00,"3200000534700 Unit 2, Dock Ave, Fleetwood, FY7 6PS 01/06/2023-30/06/2023",Electricity
Wyre Council,http://opendatacommunities.org/doc/district-council/wyre,30/07/2023,People and Places,Planning and Development Servs,132C,Drax Energy Solutions Limited,11/07/2023,PE150993,129.78,0.00,"3200000534728 Unit 4, Dock Ave, Fleetwood, FY7 6PS 01/06/2023-30/06/2023",Electricity
Wyre Council,http://opendatacommunities.org/doc/district-council/wyre,30/07/2023,People and Places,Planning and Development Servs,132C,Drax Energy Solutions Limited,11/07/2023,PE150992,128.10,0.00,"3200000534719 Unit 3, Dock Ave, Fleetwood, FY7 6PS 01/06/2023-30/06/2023",Electricity
Wyre Council,http://opendatacommunities.org/doc/district-council/wyre,30/07/2023,People and Places,Planning and Development Servs,132C,Drax Energy Solutions Limited,11/07/2023,PE151001,122.70,0.00,"3200000534807 LL Supply c/o ABP Port Office, Dock Ave, Fleetwood, FY7 6PS 01/06/2023-30/06/2023",Electricity
Wyre Council,http://opendatacommunities.org/doc/district-council/wyre,30/07/2023,People and Places,Planning and Development Servs,132C,Drax Energy Solutions Limited,11/07/2023,PE151000,127.42,0.00,"3200000534791 Unit 10, Dock Ave, Fleetwood, FY7 6PS 01/06/2023-30/06/2023",Electricity
Wyre Council,http://opendatacommunities.org/doc/district-council/wyre,30/07/2023,People and Places,Planning and Development Servs,132C,Drax Energy Solutions Limited,11/07/2023,PE150999,128.43,0.00,"3200000534782 Unit 9, Dock Ave, Fleetwood, FY7 6PS 01/06/2023-30/06/2023",Electricity
Wyre Council,http://opendatacommunities.org/doc/district-council/wyre,30/07/2023,People and Places,Planning and Development Servs,132C,Drax Energy Solutions Limited,11/07/2023,PE150998,132.48,0.00,"3200000534773 Unit 8, Dock Ave, Fleetwood, FY7 6PS 01/06/2023-30/06/2023",Electricity
Wyre Council,http://opendatacommunities.org/doc/district-council/wyre,30/07/2023,People and Places,Planning and Development Servs,132C,Drax Energy Solutions Limited,11/07/2023,PE150997,126.41,0.00,"3200000534764 Unit 7B, Dock Ave, Fleetwood, FY7 6PS 01/06/2023-30/06/2023",Electricity
Wyre Council,http://opendatacommunities.org/doc/district-council/wyre,30/07/2023,People and Places,Planning and Development Servs,132C,Drax Energy Solutions Limited,11/07/2023,PE150996,128.77,0.00,"3200000534755 Unit 7A, Dock Ave, Fleetwood, FY7 6PS 01/06/2023-30/06/2023",Electricity
Wyre Council,http://opendatacommunities.org/doc/district-council/wyre,30/07/2023,People and Places,Planning and Development Servs,132C,Drax Energy Solutions Limited,11/07/2023,PE150995,128.43,0.00,"3200000534746 Unit 6, Dock Ave, Fleetwood, FY7 6PS 01/06/2023-30/06/2023",Electricity
Wyre Council,http://opendatacommunities.org/doc/district-council/wyre,30/07/2023,People and Places,Planning and Development Servs,132C,Drax Energy Solutions Limited,20/07/2023,PE151425,1077.86,0.00,"3200000534694 1 Dock Ave, Fleetwood 01/06/23 to 30/06/23",Electricity
Wyre Council,http://opendatacommunities.org/doc/district-council/wyre,30/07/2023,People and Places,Planning and Development Servs,132C,Drax Energy Solutions Limited,20/07/2023,PE151425,3.33,0.00,"3200000534694 1 Dock Ave, Fleetwood 01/06/23 to 30/06/23",Electricity
Wyre Council,http://opendatacommunities.org/doc/district-council/wyre,30/07/2023,People and Places,Planning and Development Servs,132C,Drax Energy Solutions Limited,19/07/2023,PE151393,795.60,0.00,"3200000534694 1 Dock Ave, Fleetwood: 01/12/22 to 31/12/22",Electricity
Wyre Council,http://opendatacommunities.org/doc/district-council/wyre,30/07/2023,People and Places,Planning and Development Servs,132C,Drax Energy Solutions Limited,19/07/2023,PE151393,3.33,0.00,"3200000534694 1 Dock Ave, Fleetwood: 01/12/22 to 31/12/22",Electricity
Wyre Council,http://opendatacommunities.org/doc/district-council/wyre,30/07/2023,People and Places,Planning and Development Servs,132C,Drax Energy Solutions Limited,14/07/2023,PE151143,1111.65,0.00,"3200000534694 1 Dock Ave, Fleetwood 01/05/12 to 31/05/23",Electricity
Wyre Council,http://opendatacommunities.org/doc/district-council/wyre,30/07/2023,People and Places,Planning and Development Servs,132C,Drax Energy Solutions Limited,14/07/2023,PE151143,3.33,0.00,"3200000534694 1 Dock Ave, Fleetwood 01/05/12 to 31/05/23",Electricity
Wyre Council,http://opendatacommunities.org/doc/district-council/wyre,30/07/2023,People and Places,Planning and Development Servs,132C,Drax Energy Solutions Limited,11/07/2023,PE150994,128.10,0.00,"3200000534737 Unit 5, Dock Ave, Fleetwood, FY7 6PS 01/06/2023-30/06/2023",Electricity
Wyre Council,http://opendatacommunities.org/doc/district-council/wyre,30/07/2023,People and Places,Cultural and Related Services,132A,Engie Power Limited,05/07/2023,PE150594,470.50,0.00,"1610004890636  Fishermans Walk, Lord St, Fleetwood, FY7 6DU 01/02/23 to 28/02/23 Est",Electricity
Wyre Council,http://opendatacommunities.org/doc/district-council/wyre,30/07/2023,People and Places,Environmental Services,132B,Engie Power Limited,17/07/2023,PE151214,116.31,0.00,"1640000258365 PC, River Road, Thornton  Cleveleys, FY5 5LR 01/06/23 - 30/06/23 E",Electricity
Wyre Council,http://opendatacommunities.org/doc/district-council/wyre,30/07/2023,People and Places,Cultural and Related Services,132A,Engie Power Limited,17/07/2023,PE151215,78.49,0.00,"1640000400837 PC, River Road, Thornton  Cleveleys, FY5 5LR 01/06/23 - 30/06/23 E",Electricity
Wyre Council,http://opendatacommunities.org/doc/district-council/wyre,30/07/2023,People and Places,Planning and Development Servs,132C,Engie Power Limited,17/07/2023,PE151213,50.51,0.00,"1640000947181 Kiosk 6, Fleetwood Market,  Adelaide St, Fleetwood, FY7 6AB 01/06/23 - 30/06/23 A",Electricity
Wyre Council,http://opendatacommunities.org/doc/district-council/wyre,30/07/2023,People and Places,Planning and Development Servs,132C,Engie Power Limited,17/07/2023,PE151216,49.23,0.00,"1640000947136 Kiosk 1, Fleetwood Market,  Adelaide St, Fleetwood, FY7 6AB 01/06/23 - 30/06/23 A",Electricity
Wyre Council,http://opendatacommunities.org/doc/district-council/wyre,30/07/2023,People and Places,Planning and Development Servs,132C,Engie Power Limited,17/07/2023,PE151212,80.26,0.00,"1640000947172 Kiosk 5, Fleetwood Market,  Adelaide St, Fleetwood, FY7 6AB 01/06/23 - 30/06/23 A",Electricity
Wyre Council,http://opendatacommunities.org/doc/district-council/wyre,30/07/2023,People and Places,Planning and Development Servs,132C,Engie Power Limited,17/07/2023,PE151211,154.36,0.00,"1640000947163 Kiosk 4, Fleetwood Market,  Adelaide St, Fleetwood, FY7 6AB 01/06/23 - 30/06/23 A",Electricity
Wyre Council,http://opendatacommunities.org/doc/district-council/wyre,30/07/2023,People and Places,Planning and Development Servs,132C,Engie Power Limited,17/07/2023,PE151210,53.88,0.00,"1640000947154 Kiosk 3, Fleetwood Market,  Adelaide St, Fleetwood, FY7 6AB 01/06/23 - 30/06/23 A",Electricity
Wyre Council,http://opendatacommunities.org/doc/district-council/wyre,30/07/2023,People and Places,Cultural and Related Services,132A,Engie Power Limited,17/07/2023,PE151218,278.64,0.00,"1640000118533 Feeder Pillar, Vicarage Rd,  Poulton le Fylde, FY6 7BE 01/06/23 - 30/06/23 A",Electricity
Wyre Council,http://opendatacommunities.org/doc/district-council/wyre,30/07/2023,People and Places,Planning and Development Servs,132C,Engie Power Limited,17/07/2023,PE151217,51.49,0.00,"1640000947145 Kiosk 2, Fleetwood Market,  Adelaie St, Fleetwood, FY7 6AB 01/06/23 - 30/06/23 A",Electricity
Wyre Council,http://opendatacommunities.org/doc/district-council/wyre,30/07/2023,People and Places,Environmental Services,132B,Engie Power Limited,17/07/2023,PE151242,186.80,0.00,"1610004933625 Springfield Pumping Station  17, Fleeetwood Road, Fleetwood, Lancashire, FY7 8TW 01/06/23 - 30/06/23 E",Electricity
Wyre Council,http://opendatacommunities.org/doc/district-council/wyre,30/07/2023,People and Places,Environmental Services,132B,Engie Power Limited,17/07/2023,PE151233,228.82,0.00,"1610004845313 Fleetwood Corp Cemetery,  Beach Rd, Fleetwood, FY7 8PH 01/06/23 - 30/06/23 E",Electricity
Wyre Council,http://opendatacommunities.org/doc/district-council/wyre,30/07/2023,People and Places,Environmental Services,132B,Engie Power Limited,17/07/2023,PE151232,105.84,0.00,"1610004845304 Fleetwood Corp Cemetery,  Beach Rd, Fleetwood, FY7 8PH 01/06/23 - 30/06/23 A",Electricity
Wyre Council,http://opendatacommunities.org/doc/district-council/wyre,30/07/2023,People and Places,Cultural and Related Services,132A,Engie Power Limited,17/07/2023,PE151250,93.71,0.00,"1630000841586 Garstang Tourist Info Ctr,  Unit 1, Cherestanc Sq, Preston, PR3 1EF 01/06/23 - 30/06/23 A",Electricity
Wyre Council,http://opendatacommunities.org/doc/district-council/wyre,30/07/2023,People and Places,Cultural and Related Services,132A,Engie Power Limited,17/07/2023,PE151234,101.67,0.00,"1610004775074 The Windmill, Fleetwood Rd  North, Thornton Cleveleys, FY5 4BP 01/06/23 - 30/06/23 A",Electricity
Wyre Council,http://opendatacommunities.org/doc/district-council/wyre,30/07/2023,People and Places,Cultural and Related Services,132A,Engie Power Limited,17/07/2023,PE151230,275.82,0.00,"1610004775083 The Windmill, Fleetwood Road  North, Thornton Cleveleys, FY5 4BP 01/06/23 - 30/06/23 A",Electricity
Wyre Council,http://opendatacommunities.org/doc/district-council/wyre,30/07/2023,People and Places,Cultural and Related Services,132A,Engie Power Limited,17/07/2023,PE151223,291.89,0.00,"1610004846558 Pump Station, The Esplanade,  Fleetwood, FY7 6HF 01/06/23 - 30/06/23 E",Electricity
Wyre Council,http://opendatacommunities.org/doc/district-council/wyre,30/07/2023,People and Places,Cultural and Related Services,132A,Engie Power Limited,17/07/2023,PE151227,250.75,0.00,"1610004846390 Pump House, Model Yacht Pond,  Laidleys Walk, Fleetwood, FY7 7JL 01/06/23 - 30/06/23 A",Electricity
Wyre Council,http://opendatacommunities.org/doc/district-council/wyre,30/07/2023,People and Places,Cultural and Related Services,132A,Engie Power Limited,17/07/2023,PE151240,393.02,0.00,"1610004897400 Ladies Bowls Pavilion,  Memorial Park, Fleetwood, FY7 7AE 01/06/23 - 30/06/23 E",Electricity
Wyre Council,http://opendatacommunities.org/doc/district-council/wyre,30/07/2023,People and Places,Cultural and Related Services,132A,Engie Power Limited,17/07/2023,PE151239,104.02,0.00,"1610004897394 Bowls House, Memorial Park,  Fleetwood, FY7 7AE 01/06/23 - 30/06/23 A",Electricity
Wyre Council,http://opendatacommunities.org/doc/district-council/wyre,30/07/2023,People and Places,Cultural and Related Services,132A,Engie Power Limited,17/07/2023,PE151246,216.07,0.00,"1610004897385 Tennis Pavillion, Memorial  Park, Fleetwood, FY7 7AE 01/06/23 - 30/06/23 E",Electricity
Wyre Council,http://opendatacommunities.org/doc/district-council/wyre,30/07/2023,People and Places,Cultural and Related Services,132A,Engie Power Limited,17/07/2023,PE151243,126.81,0.00,"1610004867488 Mount Pavilion, Mount Rd,  Fleetwood, FY7 6EZ 01/06/23 - 30/06/23 E",Electricity
Wyre Council,http://opendatacommunities.org/doc/district-council/wyre,30/07/2023,People and Places,Cultural and Related Services,132A,Engie Power Limited,17/07/2023,PE151249,126.86,0.00,"1610004867441 Mount Hotel, Mount Rd,  Fleetwood, FY7 6RA 01/06/23 - 30/06/23 E",Electricity
Wyre Council,http://opendatacommunities.org/doc/district-council/wyre,30/07/2023,People and Places,Cultural and Related Services,132A,Engie Power Limited,17/07/2023,PE151248,332.28,0.00,"1610004867432 Mount Hotel, Mount Rd,  Fleetwood, FY7 6RA 01/06/23 - 30/06/23 E",Electricity
Wyre Council,http://opendatacommunities.org/doc/district-council/wyre,30/07/2023,People and Places,Environmental Services,132B,Engie Power Limited,17/07/2023,PE151231,468.40,0.00,"1610004828771 Council Depot, Chatsworth Day  Centre, Chatsworth Ave, Fleetwood, FY7 8AP 01/06/23 - 30/06/23 E",Electricity
Wyre Council,http://opendatacommunities.org/doc/district-council/wyre,30/07/2023,People and Places,Environmental Services,132B,Engie Power Limited,17/07/2023,PE151229,194.01,0.00,"1610004846520 Boating Lake, Laidleys Walk,  Fleetwood, FY7 7HU 01/06/23 - 30/06/23 E",Electricity
Wyre Council,http://opendatacommunities.org/doc/district-council/wyre,30/07/2023,People and Places,Environmental Services,132B,Engie Power Limited,17/07/2023,PE151226,125.90,0.00,"1610004845322 PC, Beach Rd, Fleetwood, FY7  8PH 01/06/23 - 30/06/23 E",Electricity
Wyre Council,http://opendatacommunities.org/doc/district-council/wyre,30/07/2023,People and Places,Environmental Services,132B,Engie Power Limited,17/07/2023,PE151219,150.01,0.00,"1640000218200 PC, Bold St, Fleetwood, FY7  6BW 01/06/23 - 30/06/23 E",Electricity
Wyre Council,http://opendatacommunities.org/doc/district-council/wyre,30/07/2023,People and Places,Environmental Services,132B,Engie Power Limited,17/07/2023,PE151244,362.12,0.00,"1610004885487 PC, Preston St, Fleetwood,  FY7 6JA 01/06/23 - 30/06/23 E",Electricity
Wyre Council,http://opendatacommunities.org/doc/district-council/wyre,30/07/2023,People and Places,Environmental Services,132B,Engie Power Limited,17/07/2023,PE151238,249.72,0.00,"1610023251891 PC, Gubberford Lane, Scorton,  PR3 1BL 01/06/23 - 30/06/23 E",Electricity
Wyre Council,http://opendatacommunities.org/doc/district-council/wyre,30/07/2023,People and Places,Environmental Services,132B,Engie Power Limited,17/07/2023,PE151237,197.37,0.00,"1610023195261 PC, Smallwood Hey, Pilling,  Preston, PR3 6HJ 01/06/23 - 30/06/23 E",Electricity
Wyre Council,http://opendatacommunities.org/doc/district-council/wyre,30/07/2023,People and Places,Environmental Services,132B,Engie Power Limited,17/07/2023,PE151236,130.42,0.00,"1610023169146 Public Conveniences, Barton  Square, Knott End on Sea, Lancashire, FY6 0AG 01/06/23 - 30/06/23 E",Electricity
Wyre Council,http://opendatacommunities.org/doc/district-council/wyre,30/07/2023,People and Places,Environmental Services,132B,Engie Power Limited,17/07/2023,PE151235,175.50,0.00,"1610013371994 PC, The Weind, Great  Eccleston, PR3 0ZU 01/06/23 - 30/06/23 E",Electricity
Wyre Council,http://opendatacommunities.org/doc/district-council/wyre,30/07/2023,People and Places,Environmental Services,132B,Engie Power Limited,17/07/2023,PE151252,103.92,0.00,"1620001343345 PC, Thornton Centre, Victoria  Rd East, FY5 5DZ 01/06/23 - 30/06/23 A",Electricity
Wyre Council,http://opendatacommunities.org/doc/district-council/wyre,30/07/2023,People and Places,Cultural and Related Services,132A,Engie Power Limited,17/07/2023,PE151251,101.31,0.00,"1640000004924 Feeder Pillar, Hawthorne  Park, Hawthorne Rd, Thornton Cleveleys, FY5 5DH 01/06/23 - 30/06/23 A",Electricity
Wyre Council,http://opendatacommunities.org/doc/district-council/wyre,30/07/2023,People and Places,Cultural and Related Services,132A,Engie Power Limited,17/07/2023,PE151247,71.16,0.00,"1610004863776 Tourist Information Office,  The Esplanade, Fleetwood, FY7 6DL 01/06/23 - 30/06/23 A",Electricity
Wyre Council,http://opendatacommunities.org/doc/district-council/wyre,30/07/2023,People and Places,Planning and Development Servs,132C,Engie Power Limited,17/07/2023,PE151220,284.65,0.00,"1640000947190 Kiosk 7, Fleetwood Market,  Adelaide St, Fleetwood, FY7 6AB 01/06/23 - 30/06/23 A",Electricity
Wyre Council,http://opendatacommunities.org/doc/district-council/wyre,30/07/2023,People and Places,Planning and Development Servs,132C,Engie Power Limited,17/07/2023,PE151222,47.86,0.00,"1640000947215 Landlord Supply, Fleetwood  Market, Adelaide St, Fleetwood, FY7 6AB 01/06/23 - 30/06/23 A",Electricity
Wyre Council,http://opendatacommunities.org/doc/district-council/wyre,30/07/2023,People and Places,Planning and Development Servs,132C,Engie Power Limited,17/07/2023,PE151221,53.88,0.00,"1640000947206 Kiosk 8, Fleetwood Market,  Adelaide St, Fleetwood, FY7 6AB 01/06/23 - 30/06/23 A",Electricity
Wyre Council,http://opendatacommunities.org/doc/district-council/wyre,30/07/2023,People and Places,Cultural and Related Services,132A,Engie Power Limited,17/07/2023,PE151241,85.42,0.00,"1610004932427 King Georges Field,  Boradwater, Fleetwood Road, Fleetwood, Lancashire, FY7 8BD 01/06/23 -  30/06/23 E",Electricity
Wyre Council,http://opendatacommunities.org/doc/district-council/wyre,30/07/2023,People and Places,Cultural and Related Services,132A,Engie Power Limited,17/07/2023,PE151245,393.34,0.00,"1610004890636 Fishermans Walk, Lord St,  Fleetwood, FY7 6DU 01/06/23 - 30/06/23 E",Electricity
Wyre Council,http://opendatacommunities.org/doc/district-council/wyre,30/07/2023,People and Places,Cultural and Related Services,132A,Engie Power Limited,17/07/2023,PE151228,71.34,0.00,"1610004846502 Valve House, Marine Lake,  Laidleys Walk, Fleetwood, FY7 7JL 01/06/23 - 30/06/23 E",Electricity
Wyre Council,http://opendatacommunities.org/doc/district-council/wyre,30/07/2023,People and Places,Cultural and Related Services,132A,Engie Power Limited,17/07/2023,PE151225,393.02,0.00,"1610004863623 Pitch &amp; Putt Kiosk, Carr  Rd, The Esplanade, Fleetwood, FY7 6QE 01/06/23 - 30/06/23 E",Electricity
Wyre Council,http://opendatacommunities.org/doc/district-council/wyre,30/07/2023,People and Places,Cultural and Related Services,132A,Engie Power Limited,17/07/2023,PE151224,517.14,0.00,"1610004863605 Central Toilets Kiosk, The  Esplanade, Fleetwood, FY7 7BE 01/06/23 - 30/06/23 A",Electricity
Wyre Council,http://opendatacommunities.org/doc/district-council/wyre,30/07/2023,People and Places,Cultural and Related Services,132A,Engie Power Limited,05/07/2023,PE150566,239.07,0.00,"1640000118533  Feeder Pillar, Vicarage Rd, Poulton le Fylde, FY6 7BE 01/02/23 to 28/02/23  Act",Electricity
Wyre Council,http://opendatacommunities.org/doc/district-council/wyre,30/07/2023,People and Places,Environmental Services,132B,Engie Power Limited,05/07/2023,PE150580,495.36,0.00,"1610004828771  Council Depot, Chatsworth Day Centre, Chatsworth Ave, Fleetwood, FY7 8AP  01/02/23 to 28/02/23 Est",Electricity
Wyre Council,http://opendatacommunities.org/doc/district-council/wyre,30/07/2023,People and Places,Planning and Development Servs,132C,Engie Power Limited,05/07/2023,PE150568,235.61,0.00,"1640000947190  Kiosk 7, Fleetwood Market, Adelaide St, Fleetwood, FY7 6AB 01/02/23 to  28/02/23 Act",Electricity
Wyre Council,http://opendatacommunities.org/doc/district-council/wyre,30/07/2023,People and Places,Planning and Development Servs,132C,Engie Power Limited,05/07/2023,PE150571,44.65,0.00,"1640000947215  Landlord Supply, Fleetwood Market, Adelaide St, Fleetwood, FY7 6AB 01/02/23  to 28/02/23 Act",Electricity
Wyre Council,http://opendatacommunities.org/doc/district-council/wyre,30/07/2023,People and Places,Planning and Development Servs,132C,Engie Power Limited,05/07/2023,PE150569,52.34,0.00,"1640000947206  Kiosk 8, Fleetwood Market, Adelaide St, Fleetwood, FY7 6AB 01/02/23 to  28/02/23 Act",Electricity
Wyre Council,http://opendatacommunities.org/doc/district-council/wyre,30/07/2023,People and Places,Planning and Development Servs,132C,Engie Power Limited,05/07/2023,PE150561,55.64,0.00,"1640000947181  Kiosk 6, Fleetwood Market, Adelaide St, Fleetwood, FY7 6AB 01/02/23 to  28/02/23 Act",Electricity
Wyre Council,http://opendatacommunities.org/doc/district-council/wyre,30/07/2023,People and Places,Planning and Development Servs,132C,Engie Power Limited,05/07/2023,PE150560,58.22,0.00,"1640000947172  Kiosk 5, Fleetwood Market, Adelaide St, Fleetwood, FY7 6AB 01/02/23 to  28/02/23 Act",Electricity
Wyre Council,http://opendatacommunities.org/doc/district-council/wyre,30/07/2023,People and Places,Planning and Development Servs,132C,Engie Power Limited,05/07/2023,PE150559,70.90,0.00,"1640000947163  Kiosk 4, Fleetwood Market, Adelaide St, Fleetwood, FY7 6AB 01/02/23 to  28/02/23 Act",Electricity
Wyre Council,http://opendatacommunities.org/doc/district-council/wyre,30/07/2023,People and Places,Planning and Development Servs,132C,Engie Power Limited,05/07/2023,PE150565,62.57,0.00,"1640000947145  Kiosk 2, Fleetwood Market, Adelaie St, Fleetwood, FY7 6AB 01/02/23 to  28/02/23 Act",Electricity
Wyre Council,http://opendatacommunities.org/doc/district-council/wyre,30/07/2023,People and Places,Planning and Development Servs,132C,Engie Power Limited,05/07/2023,PE150564,50.33,0.00,"1640000947136  Kiosk 1, Fleetwood Market, Adelaide St, Fleetwood, FY7 6AB 01/02/23 to  28/02/23 Act",Electricity
Wyre Council,http://opendatacommunities.org/doc/district-council/wyre,30/07/2023,People and Places,Environmental Services,132B,Engie Power Limited,05/07/2023,PE150602,214.31,0.00,"1630000584632  PC, rear of Tesco, Rough Lea Rd, Thornton Cleveleys, FY5 1BW 01/02/23 to  28/02/23 Est",Electricity
Wyre Council,http://opendatacommunities.org/doc/district-council/wyre,30/07/2023,People and Places,Environmental Services,132B,Engie Power Limited,05/07/2023,PE150601,102.55,0.00,"1620001343345  PC, Thornton Centre, Victoria Rd East, FY5 5DZ 01/02/23 to 28/02/23 Act",Electricity
Wyre Council,http://opendatacommunities.org/doc/district-council/wyre,30/07/2023,People and Places,Environmental Services,132B,Engie Power Limited,05/07/2023,PE150604,134.28,0.00,"1630000819048  Public Conveniences, Cherestanc Square, Garstang, Lancashire, PR3 1EF  01/02/23 to 28/02/23 Est",Electricity
Wyre Council,http://opendatacommunities.org/doc/district-council/wyre,30/07/2023,People and Places,Environmental Services,132B,Engie Power Limited,05/07/2023,PE150603,263.35,0.00,"1630000740099  PC, Wyreside, Knott End on Sea, FY6 0AA 01/02/23 to 28/02/23 Est",Electricity
Wyre Council,http://opendatacommunities.org/doc/district-council/wyre,30/07/2023,People and Places,Cultural and Related Services,132A,Engie Power Limited,05/07/2023,PE150595,257.40,0.00,"1610004897385  Tennis Pavillion, Memorial Park, Fleetwood, FY7 7AE 01/02/23 to 28/02/23 Est",Electricity
Wyre Council,http://opendatacommunities.org/doc/district-council/wyre,30/07/2023,People and Places,Cultural and Related Services,132A,Engie Power Limited,05/07/2023,PE150598,170.57,0.00,"1610004867441  Mount Hotel, Mount Rd, Fleetwood, FY7 6RA 01/02/23 to 28/02/23 Est",Electricity
Wyre Council,http://opendatacommunities.org/doc/district-council/wyre,30/07/2023,People and Places,Cultural and Related Services,132A,Engie Power Limited,05/07/2023,PE150597,393.93,0.00,"1610004867432  Mount Hotel, Mount Rd, Fleetwood, FY7 6RA 01/02/23 to 28/02/23 Est",Electricity
Wyre Council,http://opendatacommunities.org/doc/district-council/wyre,30/07/2023,People and Places,Cultural and Related Services,132A,Engie Power Limited,05/07/2023,PE150600,92.44,0.00,"1640000004924  Feeder Pillar, Hawthorne Park, Hawthorne Rd, Thornton Cleveleys, FY5 5DH  01/02/23 to 28/02/23 Act",Electricity
Wyre Council,http://opendatacommunities.org/doc/district-council/wyre,30/07/2023,People and Places,Cultural and Related Services,132A,Engie Power Limited,05/07/2023,PE150596,66.42,0.00,"1610004863776  Tourist Information Office, The Esplanade, Fleetwood, FY7 6DL 01/02/23 to  28/02/23 Act",Electricity
Wyre Council,http://opendatacommunities.org/doc/district-council/wyre,30/07/2023,People and Places,Cultural and Related Services,132A,Engie Power Limited,05/07/2023,PE150599,201.03,0.00,"1630000841586  Garstang Tourist Info Ctr, Unit 1, Cherestanc Sq, Preston, PR3 1EF 01/02/23  to 28/02/23 Est",Electricity
Wyre Council,http://opendatacommunities.org/doc/district-council/wyre,30/07/2023,People and Places,Cultural and Related Services,132A,Engie Power Limited,05/07/2023,PE150592,170.46,0.00,"1610004867488  Mount Pavilion, Mount Rd, Fleetwood, FY7 6EZ 01/02/23 to 28/02/23 Est",Electricity
Wyre Council,http://opendatacommunities.org/doc/district-council/wyre,30/07/2023,People and Places,Cultural and Related Services,132A,Engie Power Limited,05/07/2023,PE150577,66.62,0.00,"1610004846502  Valve House, Marine Lake, Laidleys Walk, Fleetwood, FY7 7JL 01/02/23 to  28/02/23 Est",Electricity
Wyre Council,http://opendatacommunities.org/doc/district-council/wyre,30/07/2023,People and Places,Cultural and Related Services,132A,Engie Power Limited,05/07/2023,PE150574,470.10,0.00,"1610004863623  Pitch &amp; Putt Kiosk, Carr Rd, The Esplanade, Fleetwood, FY7 6QE 01/02/23  to 28/02/23 Est",Electricity
Wyre Council,http://opendatacommunities.org/doc/district-council/wyre,30/07/2023,People and Places,Cultural and Related Services,132A,Engie Power Limited,05/07/2023,PE150573,401.02,0.00,"1610004863605  Central Toilets Kiosk, The Esplanade, Fleetwood, FY7 7BE 01/02/23 to 28/02/23  Act",Electricity
Wyre Council,http://opendatacommunities.org/doc/district-council/wyre,30/07/2023,People and Places,Cultural and Related Services,132A,Engie Power Limited,05/07/2023,PE150572,74.63,0.00,"1610004846558  Pump Station, The Esplanade, Fleetwood, FY7 6HF 01/02/23 to 28/02/23 Act",Electricity
Wyre Council,http://opendatacommunities.org/doc/district-council/wyre,30/07/2023,People and Places,Cultural and Related Services,132A,Engie Power Limited,05/07/2023,PE150576,227.91,0.00,"1610004846390  Pump House, Model Yacht Pond, Laidleys Walk, Fleetwood, FY7 7JL 01/02/23 to  28/02/23 Act",Electricity
Wyre Council,http://opendatacommunities.org/doc/district-council/wyre,30/07/2023,People and Places,Cultural and Related Services,132A,Engie Power Limited,05/07/2023,PE150589,470.07,0.00,"1610004897400  Ladies Bowls Pavilion, Memorial Park, Fleetwood, FY7 7AE 01/02/23 to 28/02/23  Est",Electricity
Wyre Council,http://opendatacommunities.org/doc/district-council/wyre,30/07/2023,People and Places,Cultural and Related Services,132A,Engie Power Limited,05/07/2023,PE150590,93.08,0.00,"1610004932427  King Georges Field, Broadwater, Fleetwood Road, Fleetwood, Lancashire, FY7  8BD 01/02/23 to 28/02/23 Est",Electricity
Wyre Council,http://opendatacommunities.org/doc/district-council/wyre,30/07/2023,People and Places,Cultural and Related Services,132A,Engie Power Limited,05/07/2023,PE150583,98.51,0.00,"1610004775074  The Windmill, Fleetwood Rd North, Thornton Cleveleys, FY5 4BP 01/02/23 to  28/02/23 Act",Electricity
Wyre Council,http://opendatacommunities.org/doc/district-council/wyre,30/07/2023,People and Places,Cultural and Related Services,132A,Engie Power Limited,05/07/2023,PE150579,105.23,0.00,"1610004775083  The Windmill, Fleetwood Road North, Thornton Cleveleys, FY5 4BP 01/02/23 to  28/02/23 Est",Electricity
Wyre Council,http://opendatacommunities.org/doc/district-council/wyre,30/07/2023,People and Places,Environmental Services,132B,Engie Power Limited,05/07/2023,PE150584,194.22,0.00,"1610013371994  PC, The Weind, Great Eccleston, PR3 0ZU 01/02/23 to 28/02/23 Est",Electricity
Wyre Council,http://opendatacommunities.org/doc/district-council/wyre,30/07/2023,People and Places,Environmental Services,132B,Engie Power Limited,05/07/2023,PE150578,211.51,0.00,"1610004846520  Boating Lake, Laidleys Walk, Fleetwood, FY7 7HU 01/02/23 to 28/02/23 Est",Electricity
Wyre Council,http://opendatacommunities.org/doc/district-council/wyre,30/07/2023,People and Places,Environmental Services,132B,Engie Power Limited,05/07/2023,PE150587,285.12,0.00,"1610023251891  PC, Gubberford Lane, Scorton, PR3 1BL 01/02/23 to 28/02/23 Est",Electricity
Wyre Council,http://opendatacommunities.org/doc/district-council/wyre,30/07/2023,People and Places,Environmental Services,132B,Engie Power Limited,05/07/2023,PE150586,221.01,0.00,"1610023195261  PC, Smallwood Hey, Pilling, Preston, PR3 6HJ 01/02/23 to 28/02/23 Est",Electricity
Wyre Council,http://opendatacommunities.org/doc/district-council/wyre,30/07/2023,People and Places,Environmental Services,132B,Engie Power Limited,05/07/2023,PE150585,142.61,0.00,"1610023169146  Public Conveniences, Barton Square, Knott End on Sea, Lancashire, FY6 0AG  01/02/23 to 28/02/23 Est",Electricity
Wyre Council,http://opendatacommunities.org/doc/district-council/wyre,30/07/2023,People and Places,Environmental Services,132B,Engie Power Limited,05/07/2023,PE150562,127.85,0.00,"1640000258365  PC, River Road, Thornton Cleveleys, FY5 5LR 01/02/23 to 28/02/23 Est",Electricity
Wyre Council,http://opendatacommunities.org/doc/district-council/wyre,30/07/2023,People and Places,Environmental Services,132B,Engie Power Limited,05/07/2023,PE150575,133.46,0.00,"1610004845322  PC, Beach Rd, Fleetwood, FY7 8PH 01/02/23 to 28/02/23 Est",Electricity
Wyre Council,http://opendatacommunities.org/doc/district-council/wyre,30/07/2023,People and Places,Environmental Services,132B,Engie Power Limited,05/07/2023,PE150567,168.77,0.00,"1640000218200  PC, Bold St, Fleetwood, FY7 6BW 01/02/23 to 28/02/23 Est",Electricity
Wyre Council,http://opendatacommunities.org/doc/district-council/wyre,30/07/2023,People and Places,Environmental Services,132B,Engie Power Limited,05/07/2023,PE150593,431.35,0.00,"1610004885487  PC, Preston St, Fleetwood, FY7 6JA 01/02/23 to 28/02/23 Est",Electricity
Wyre Council,http://opendatacommunities.org/doc/district-council/wyre,30/07/2023,People and Places,Cultural and Related Services,132A,Engie Power Limited,05/07/2023,PE150588,157.38,0.00,"1610004897394  Bowls House, Memorial Park, Fleetwood, FY7 7AE 01/02/23 to 28/02/23 Act",Electricity
Wyre Council,http://opendatacommunities.org/doc/district-council/wyre,30/07/2023,People and Places,Cultural and Related Services,132A,Engie Power Limited,05/07/2023,PE150563,81.92,0.00,"1640000400837  PC, River Road, Thornton Cleveleys, FY5 5LR 01/02/23 to 28/02/23 Est",Electricity
Wyre Council,http://opendatacommunities.org/doc/district-council/wyre,30/07/2023,People and Places,Environmental Services,132B,Engie Power Limited,05/07/2023,PE150591,216.50,0.00,"1610004933625  Springfield Pumping Station 17, Fleeetwood Road, Fleetwood, Lancashire, FY7  8TW 01/02/23 to 28/02/23 Est",Electricity
Wyre Council,http://opendatacommunities.org/doc/district-council/wyre,30/07/2023,People and Places,Environmental Services,132B,Engie Power Limited,05/07/2023,PE150581,427.31,0.00,"1610004845304  Fleetwood Corp Cemetery, Beach Rd, Fleetwood, FY7 8PH 01/02/23 to 28/02/23  Act",Electricity
Wyre Council,http://opendatacommunities.org/doc/district-council/wyre,30/07/2023,People and Places,Planning and Development Servs,132C,Engie Power Limited,05/07/2023,PE150558,84.78,0.00,"1640000947154  Kiosk 3, Fleetwood Market, Adelaide St, Fleetwood, FY7 6AB 01/02/23 to  28/02/23 Est",Electricity
Wyre Council,http://opendatacommunities.org/doc/district-council/wyre,30/07/2023,People and Places,Environmental Services,132B,Engie Power Limited,05/07/2023,PE150582,82.05,0.00,"1610004845313  Fleetwood Corp Cemetery, Beach Rd, Fleetwood, FY7 8PH 01/02/23 to 28/02/23  Est",Electricity
Wyre Council,http://opendatacommunities.org/doc/district-council/wyre,30/07/2023,People and Places,Environmental Services,132B,Engie Power Limited,17/07/2023,PE151255,126.54,0.00,"1630000819048 Public Conveniences,  Cherestanc Square, Garstang, Lancashire, PR3 1EF 01/06/23 - 30/06/23 E",Electricity
Wyre Council,http://opendatacommunities.org/doc/district-council/wyre,30/07/2023,People and Places,Environmental Services,132B,Engie Power Limited,17/07/2023,PE151254,231.91,0.00,"1630000740099 PC, Wyreside, Knott End on  Sea, FY6 0AA 01/06/23 - 30/06/23 E",Electricity
Wyre Council,http://opendatacommunities.org/doc/district-council/wyre,30/07/2023,People and Places,Environmental Services,132B,Engie Power Limited,17/07/2023,PE151253,191.87,0.00,"1630000584632 PC, rear of Tesco, Rough Lea  Rd, Thornton Cleveleys, FY5 1BW 01/06/23 - 30/06/23 E",Electricity
Wyre Council,http://opendatacommunities.org/doc/district-council/wyre,30/07/2023,Resources,Cultural and Related Services,132A,Amazon Business,19/07/2023,RS151324,7.99,0.00,"beach balls, hawaiian garlands, novelty sunglasses and giant ice cream cones",Exhibitions and Events
Wyre Council,http://opendatacommunities.org/doc/district-council/wyre,30/07/2023,Resources,Cultural and Related Services,132A,Amazon Business,19/07/2023,RS151322,3.74,0.00,"beach balls, hawaiian garlands, novelty sunglasses and giant ice cream cones",Exhibitions and Events
Wyre Council,http://opendatacommunities.org/doc/district-council/wyre,30/07/2023,Resources,Cultural and Related Services,132A,Amazon Business,19/07/2023,RS151321,9.96,0.00,"beach balls, hawaiian garlands, novelty sunglasses and giant ice cream cones",Exhibitions and Events
Wyre Council,http://opendatacommunities.org/doc/district-council/wyre,30/07/2023,Resources,Cultural and Related Services,132A,Amazon Business,19/07/2023,RS151391,19.16,0.00,"beach balls, hawaiian garlands, novelty sunglasses and giant ice cream cones",Exhibitions and Events
Wyre Council,http://opendatacommunities.org/doc/district-council/wyre,30/07/2023,People and Places,Cultural and Related Services,132A,Play Inclusion Project,31/07/2023,PE151730,816.81,0.00,Saturday SEND club delivery at YMCA Fleetwood (twice monthly).,External Coaching
Wyre Council,http://opendatacommunities.org/doc/district-council/wyre,30/07/2023,People and Places,Cultural and Related Services,132A,Lancashire County Council,13/07/2023,PE151185,403.50,0.00,"Hire of Meeting Room at Garstang Library on the following Dates: 4/4/23, 11/4/23, 15/4/23, 18/4/23, 25/4/23, 2/5/23, 5/5/23, 8/5/23, 9/5/23 & 13/6/23",External Contractor
Wyre Council,http://opendatacommunities.org/doc/district-council/wyre,30/07/2023,People and Places,Public Transport,133G,George Hewitt Fabrications,17/07/2023,PE151338,700.00,0.00,2 Galvanised Flag pole brackets,Ferry Dock Maintenance
Wyre Council,http://opendatacommunities.org/doc/district-council/wyre,30/07/2023,People and Places,Environmental Services,132B,NWIFCA      N W Inshore Fisheries and Conservation,31/07/2023,PE151719,623.00,0.00,Shellfish Collection  23/24,Food and Drug Etc Samples
Wyre Council,http://opendatacommunities.org/doc/district-council/wyre,30/07/2023,People and Places,Environmental Services,132B,NWIFCA      N W Inshore Fisheries and Conservation,19/07/2023,PE151318,406.00,0.00,Shellfish Collection  23/24,Food and Drug Etc Samples
Wyre Council,http://opendatacommunities.org/doc/district-council/wyre,30/07/2023,People and Places,Support Services,135B,Allstar Business Solutions LTD,11/07/2023,PE150822,273.34,0.00,Fuel charges up t 30/06/24,Fuel
Wyre Council,http://opendatacommunities.org/doc/district-council/wyre,30/07/2023,People and Places,Support Services,135B,Allstar Business Solutions LTD,11/07/2023,PE150822,462.09,0.00,Fuel charges up t 30/06/23,Fuel
Wyre Council,http://opendatacommunities.org/doc/district-council/wyre,30/07/2023,People and Places,Support Services,135B,Allstar Business Solutions LTD,25/07/2023,PE151363,146.24,0.00,Fuel to 14/07/23,Fuel
Wyre Council,http://opendatacommunities.org/doc/district-council/wyre,30/07/2023,People and Places,Support Services,135B,Allstar Business Solutions LTD,25/07/2023,PE151363,297.34,0.00,Fuel to 14/07/23,Fuel
Wyre Council,http://opendatacommunities.org/doc/district-council/wyre,30/07/2023,People and Places,Planning and Development Servs,132C,British Gas,24/07/2023,PE151467,38.69,0.00,"603764150 - Copse Road, Copse Road  Depot 08/06/23 to 30/06/23 gas charges",Gas
Wyre Council,http://opendatacommunities.org/doc/district-council/wyre,30/07/2023,People and Places,Support Services,135B,British Gas,24/07/2023,PE151467,929.77,0.00,"603764151 - Wyre Borough Council,  Wyre Civic Centre 08/06/23 to 30/06/23 gas charges",Gas
Wyre Council,http://opendatacommunities.org/doc/district-council/wyre,30/07/2023,People and Places,Cultural and Related Services,132A,British Gas,24/07/2023,PE151467,303.97,0.00,"603764149 - Victoria Road East, Thornton  Little Theatre 08/06/23 to 07/07/23 gas charges",Gas
Wyre Council,http://opendatacommunities.org/doc/district-council/wyre,30/07/2023,People and Places,Planning and Development Servs,132C,British Gas,24/07/2023,PE151467,411.29,0.00,"603764162 - Adelaide Street, Wyre  Borough Council 08/06/23 to 30/06/23 gas charges",Gas
Wyre Council,http://opendatacommunities.org/doc/district-council/wyre,30/07/2023,People and Places,Planning and Development Servs,132C,British Gas,13/07/2023,PE150664,58.83,0.00,"603764150 - Copse Road, Copse Road  Depot 07/05/23 to 07/06/23",Gas
Wyre Council,http://opendatacommunities.org/doc/district-council/wyre,30/07/2023,People and Places,Cultural and Related Services,132A,British Gas,13/07/2023,PE150664,460.91,0.00,"603764149 - Victoria Road East, Thornton  Little Theatre 07/05/23 to 07/06/23",Gas
Wyre Council,http://opendatacommunities.org/doc/district-council/wyre,30/07/2023,People and Places,Planning and Development Servs,132C,British Gas,13/07/2023,PE150664,785.88,0.00,"603764162 - Adelaide Street, Wyre  Borough Council 28/04/23 to 07/06/23",Gas
Wyre Council,http://opendatacommunities.org/doc/district-council/wyre,30/07/2023,People and Places,Support Services,135B,British Gas,13/07/2023,PE150664,2948.60,0.00,"603764151 - Wyre Borough Council,  Wyre Civic Centre 29/04/23 to 07/06/23",Gas
Wyre Council,http://opendatacommunities.org/doc/district-council/wyre,30/07/2023,People and Places,Cultural and Related Services,132A,GARRY CARR BUILDING SERVICES LTD,24/07/2023,PE151202,180.00,0.00,Occupation Rd Allotments: Empty contents of shed and store items in garage at Derby Road,General and Electrical Repairs - Non-Bui
Wyre Council,http://opendatacommunities.org/doc/district-council/wyre,30/07/2023,People and Places,"Cultural, Environ and Planning",137B,RH Property Management Ltd,10/07/2023,PE151012,25050.14,0.00,"Fleetwood HSHAZ Grant HSNW27_6 for former HSBC Bank, Albert Street, Fleetwood FY7 6AH",Grants and Advances
Wyre Council,http://opendatacommunities.org/doc/district-council/wyre,30/07/2023,People and Places,Environmental Services,132B,Northern Fallen Stock LTD,20/07/2023,PE151440,117.00,0.00,Collection and removal of dead animals 2023/24,Hazardous Waste Disposal
Wyre Council,http://opendatacommunities.org/doc/district-council/wyre,30/07/2023,People and Places,Environmental Services,132B,Northern Fallen Stock LTD,20/07/2023,PE151439,150.00,0.00,Collection and removal of dead animals 2023/24,Hazardous Waste Disposal
Wyre Council,http://opendatacommunities.org/doc/district-council/wyre,30/07/2023,People and Places,Environmental Services,132B,Northern Fallen Stock LTD,20/07/2023,PE151441,187.00,0.00,Collection and removal of dead animals 2023/24,Hazardous Waste Disposal
Wyre Council,http://opendatacommunities.org/doc/district-council/wyre,30/07/2023,People and Places,Environmental Services,132B,Northern Fallen Stock LTD,26/07/2023,PE151672,50.00,0.00,Collection and removal of dead animals 2023/24,Hazardous Waste Disposal
Wyre Council,http://opendatacommunities.org/doc/district-council/wyre,30/07/2023,Resources,Planning and Development Servs,132C,Konica Minolta Business Solutions UK LTD,06/07/2023,RS150764,34.65,0.00,1840080773 - Fleetwood Market,Hire of Tools or Equipment
Wyre Council,http://opendatacommunities.org/doc/district-council/wyre,30/07/2023,Resources,Cultural and Related Services,132A,Konica Minolta Business Solutions UK LTD,06/07/2023,RS150764,24.09,0.00,Rental Charges - 01/04/2023-31/03/241840141270 - Visit Garstang,Hire of Tools or Equipment
Wyre Council,http://opendatacommunities.org/doc/district-council/wyre,30/07/2023,Resources,Cultural and Related Services,132A,Konica Minolta Business Solutions UK LTD,12/07/2023,RS150623,56.71,0.00,Garstang TIC Copy and print charges final 26/03/23 to 25/06/23,Hire of Tools or Equipment
Wyre Council,http://opendatacommunities.org/doc/district-council/wyre,30/07/2023,Resources,Support Services,135B,Konica Minolta Business Solutions UK LTD,31/07/2023,RS151683,114.32,0.00,Epson Surecolor SC-T5200 Dual Roll/Urpe000449 - Equipment number 1821320823 - 01/04/2023-31/03/2023  PLEASE ENSURE THIS ORDER NUMBER IS ENTERED ON INVOICES FOR THIS MACHINE,Hire of Tools or Equipment
Wyre Council,http://opendatacommunities.org/doc/district-council/wyre,30/07/2023,Resources,Planning and Development Servs,132C,Konica Minolta Business Solutions UK LTD,12/07/2023,RS150623,18.58,0.00,Copy and print charges  Fleetwood Market 26/03/23 to 25/06/23,Hire of Tools or Equipment
Wyre Council,http://opendatacommunities.org/doc/district-council/wyre,30/07/2023,Resources,Support Services,135B,Konica Minolta Business Solutions UK LTD,19/07/2023,RS151206,43.53,0.00,182225074853 - Bizhub C3110 - Fleetwood Market CAB,Hire of Tools or Equipment
Wyre Council,http://opendatacommunities.org/doc/district-council/wyre,30/07/2023,People and Places,Cultural and Related Services,132A,Knight Rigging Services Ltd,04/07/2023,PE150876,1376.20,0.00,Pit Barrier Hire - Marine Hall,Hire of Tools or Equipment
Wyre Council,http://opendatacommunities.org/doc/district-council/wyre,30/07/2023,Resources,Central Services to the Public,131C,Huggg Limited,17/07/2023,RS151266,5000.00,0.00,Household Support Fund 4HG-4e95c10e,Household Support Fund
Wyre Council,http://opendatacommunities.org/doc/district-council/wyre,30/07/2023,People and Places,Environmental Services,132B,Poulton Pets LTD,04/07/2023,PE150850,1395.00,0.00,Provision of stray dog kennelling service 2023/24,Impounded Dogs Costs
Wyre Council,http://opendatacommunities.org/doc/district-council/wyre,30/07/2023,Resources,Support Services,135B,Lancashire County Council,31/07/2023,RS151698,5926.52,0.00,Managed Internet Connection  Civic Centre (WB108)  1Gbps Fibre (100Mb Internet),Internet and Telephone Charges
Wyre Council,http://opendatacommunities.org/doc/district-council/wyre,30/07/2023,Resources,Support Services,135B,Lancashire County Council,31/07/2023,RS151698,1447.42,0.00,Managed WAN  Bonded SDSL Broadband WB102 Caf� Cove,Internet and Telephone Charges
Wyre Council,http://opendatacommunities.org/doc/district-council/wyre,30/07/2023,Resources,Support Services,135B,Lancashire County Council,31/07/2023,RS151698,344.41,0.00,Domain Name Management  www.wyre.gov.uk www.wyrebc.gov.uk,Internet and Telephone Charges
Wyre Council,http://opendatacommunities.org/doc/district-council/wyre,30/07/2023,Resources,Support Services,135B,Vodafone LTD,21/07/2023,RS150865,404.49,0.00,MSP Dedicated Access Bearer 01/04/20203-30/06/2023,Internet and Telephone Charges
Wyre Council,http://opendatacommunities.org/doc/district-council/wyre,30/07/2023,Resources,Support Services,135B,Vodafone LTD,21/07/2023,RS150865,199.98,0.00,PSN - Direct Network Service Provider,Internet and Telephone Charges
Wyre Council,http://opendatacommunities.org/doc/district-council/wyre,30/07/2023,People and Places,Support Services,135B,8x8 UK Limited,10/07/2023,PE150932,251.00,0.00,Additional Local Number,Internet and Telephone Charges
Wyre Council,http://opendatacommunities.org/doc/district-council/wyre,30/07/2023,People and Places,Support Services,135B,8x8 UK Limited,10/07/2023,PE150932,1117.20,0.00,SVC: X Series - X1 UK Gov,Internet and Telephone Charges
Wyre Council,http://opendatacommunities.org/doc/district-council/wyre,30/07/2023,People and Places,Support Services,135B,8x8 UK Limited,10/07/2023,PE150932,218.40,0.00,X Series - X2,Internet and Telephone Charges
Wyre Council,http://opendatacommunities.org/doc/district-council/wyre,30/07/2023,People and Places,Support Services,135B,8x8 UK Limited,10/07/2023,PE150932,580.00,0.00,X Series - X4,Internet and Telephone Charges
Wyre Council,http://opendatacommunities.org/doc/district-council/wyre,30/07/2023,People and Places,Cultural and Related Services,132A,Northern Citrus Products LTD,05/07/2023,PE150858,420.11,0.00,Kiosk Stock,Kiosk stock
Wyre Council,http://opendatacommunities.org/doc/district-council/wyre,30/07/2023,Finance,Central Services to the Public,131C,HM COURT SERVICES,11/07/2023,WPST00112361,1663.00,0.00,ctax liability orders,Legal Fees
Wyre Council,http://opendatacommunities.org/doc/district-council/wyre,30/07/2023,People and Places,Planning and Development Servs,132C,Kings Chambers,14/07/2023,PE151199,900.00,0.00,Legal advice Helmsdeep enforcement 23/00050/COU - Phil Robson,Legal Fees
Wyre Council,http://opendatacommunities.org/doc/district-council/wyre,30/07/2023,Resources,Support Services,135B,Forbes Solicitors,13/07/2023,RS151162,1334.00,0.00,Legal fees - 01/04/23 - 29/06/23,Legal Fees
Wyre Council,http://opendatacommunities.org/doc/district-council/wyre,30/07/2023,People and Places,Parking Services,133F,CHIPSIDE LTD,17/07/2023,PE150908,15.00,0.00,Provide 2 no. 500 Mb SIMS for Wyre handheld units - 1 April 2023 - 31 March 2024,Maintenance of Tools or Equipment
Wyre Council,http://opendatacommunities.org/doc/district-council/wyre,30/07/2023,People and Places,Parking Services,133F,CHIPSIDE LTD,31/07/2023,PE151481,15.00,0.00,Provide 2 no. 500 Mb SIMS for Wyre handheld units - 1 April 2023 - 31 March 2024,Maintenance of Tools or Equipment
Wyre Council,http://opendatacommunities.org/doc/district-council/wyre,30/07/2023,People and Places,Parking Services,133F,FLOWBIRD SMART CITY UK LTD,31/07/2023,PE151663,60.00,0.00,Please provide 10no. C140160 Test token for CWTC machines  Delivery to   Paul Long R135 Wyre Council Civic Centre Breck Road Poulton-le-Fylde FY6 7PU,Maintenance of Tools or Equipment
Wyre Council,http://opendatacommunities.org/doc/district-council/wyre,30/07/2023,People and Places,Parking Services,133F,FLOWBIRD SMART CITY UK LTD,12/07/2023,PE150445,8067.25,0.00,Renew maintenance contract CUK21-994-Wyre Council for the period 30 June 2023 - 31 March 2024.  To include maintenance of 16 no CWT meters,Maintenance of Tools or Equipment
Wyre Council,http://opendatacommunities.org/doc/district-council/wyre,30/07/2023,People and Places,Highways,133B,Dr Tree Surgeons,17/07/2023,PE151315,420.00,0.00,Quote Number: 7551 Tree work at the Playing field &#8208;The side of 18 Pennine Way GreatEcclestonTotal Net Amount: 50.00VAT @ 20%: 10.00Quote Total: 60.00Quote Number: 75624 Mill Hey Ave1 To Fell one dead tree at 24 Mill Hey Vi,Maintenance of Trees and Shrubs
Wyre Council,http://opendatacommunities.org/doc/district-council/wyre,30/07/2023,People and Places,Highways,133B,Dr Tree Surgeons,17/07/2023,PE151314,450.00,0.00,"Quote Number: 644 Quote Date: 14th Oct `22Quote Ref: Thornton JobsFairhaven Close &#8208; On round verge x6 trees, cherry and whitebeamrequiring crown raising and deadwood removal and crown cleans andreduced back from roadside as necessary.450",Maintenance of Trees and Shrubs
Wyre Council,http://opendatacommunities.org/doc/district-council/wyre,30/07/2023,People and Places,Highways,133B,HMA Tree Care,27/07/2023,PE151676,750.00,0.00,"Quote No: 345Site Address 16 , elm avenue , poulton LR Fylde , Lancashire , FY6 7SPT1 Sycamore Crown Lift to provide 4 metres clearance from ground level. Crown reduction to byupto to 2 metres.340.00T2 Sycamore Crown Lift to provide 4 metre",Maintenance of Trees and Shrubs
Wyre Council,http://opendatacommunities.org/doc/district-council/wyre,30/07/2023,People and Places,Highways,133B,T-Fer Tree Surgeons,25/07/2023,PE151637,340.00,0.00,quotation 002 21/07/23Rowland lane ThorntonPruning of 17 highway trees340,Maintenance of Trees and Shrubs
Wyre Council,http://opendatacommunities.org/doc/district-council/wyre,30/07/2023,People and Places,Highways,133B,T-Fer Tree Surgeons,24/07/2023,PE151490,60.00,0.00,18/07/2023     quotation 3 highcross avenue plf 8byRemoval of dead tree and stump60,Maintenance of Trees and Shrubs
Wyre Council,http://opendatacommunities.org/doc/district-council/wyre,30/07/2023,People and Places,Environmental Services,132B,Andrew Signs LTD,05/07/2023,PE150837,221.80,0.00,various signs - june 2023,Materials and Consumables
Wyre Council,http://opendatacommunities.org/doc/district-council/wyre,30/07/2023,People and Places,Support Services,135B,Andrew Signs LTD,05/07/2023,PE150837,166.50,0.00,various signs - june 2023,Materials and Consumables
Wyre Council,http://opendatacommunities.org/doc/district-council/wyre,30/07/2023,People and Places,Support Services,135B,EK Motors Factors LTD,24/07/2023,PE151517,75.67,0.00,Parts,Materials and Consumables
Wyre Council,http://opendatacommunities.org/doc/district-council/wyre,30/07/2023,People and Places,Support Services,135B,EK Motors Factors LTD,24/07/2023,PE151516,36.50,0.00,Parts,Materials and Consumables
Wyre Council,http://opendatacommunities.org/doc/district-council/wyre,30/07/2023,People and Places,Support Services,135B,EK Motors Factors LTD,24/07/2023,PE151515,7.60,0.00,Parts,Materials and Consumables
Wyre Council,http://opendatacommunities.org/doc/district-council/wyre,30/07/2023,People and Places,Support Services,135B,EK Motors Factors LTD,05/07/2023,PE150898,25.50,0.00,Parts,Materials and Consumables
Wyre Council,http://opendatacommunities.org/doc/district-council/wyre,30/07/2023,People and Places,Environmental Services,132B,Bucher Municipal Limited,19/07/2023,PE151386,258.70,0.00,Chanel Brush - 0500mm Steel,Materials and Consumables
Wyre Council,http://opendatacommunities.org/doc/district-council/wyre,30/07/2023,People and Places,Support Services,135B,Konica Minolta Business Solutions UK LTD,18/07/2023,PE150414,157.98,0.00,Toner cartridges.  Charges due to Konica sending our invoices to incorrect company since 2021,Materials and Consumables
Wyre Council,http://opendatacommunities.org/doc/district-council/wyre,30/07/2023,Resources,Support Services,135B,Konica Minolta Business Solutions UK LTD,31/07/2023,RS151207,408.90,0.00,offset via RS151682,Materials and Consumables
Wyre Council,http://opendatacommunities.org/doc/district-council/wyre,30/07/2023,Resources,Support Services,135B,Konica Minolta Business Solutions UK LTD,31/07/2023,RS150199,216.66,0.00,Toner cartridges.  Charges due to Konica sending our invoices to incorrect company since 2021,Materials and Consumables
Wyre Council,http://opendatacommunities.org/doc/district-council/wyre,30/07/2023,Resources,Support Services,135B,Konica Minolta Business Solutions UK LTD,18/07/2023,RS150201,216.66,0.00,Toner cartridges.  Charges due to Konica sending our invoices to incorrect company since 2021,Materials and Consumables
Wyre Council,http://opendatacommunities.org/doc/district-council/wyre,30/07/2023,Resources,Support Services,135B,Konica Minolta Business Solutions UK LTD,18/07/2023,RS150200,157.98,0.00,Toner cartridges.  Charges due to Konica sending our invoices to incorrect company since 2021,Materials and Consumables
Wyre Council,http://opendatacommunities.org/doc/district-council/wyre,30/07/2023,Resources,Support Services,135B,Konica Minolta Business Solutions UK LTD,18/07/2023,RS150198,374.64,0.00,Toner cartridges.  Charges due to Konica sending our invoices to incorrect company since 2021,Materials and Consumables
Wyre Council,http://opendatacommunities.org/doc/district-council/wyre,30/07/2023,Resources,Support Services,135B,Konica Minolta Business Solutions UK LTD,18/07/2023,RS150197,108.33,0.00,Toner cartridges.  Charges due to Konica sending our invoices to incorrect company since 2021,Materials and Consumables
Wyre Council,http://opendatacommunities.org/doc/district-council/wyre,30/07/2023,Resources,Support Services,135B,Konica Minolta Business Solutions UK LTD,18/07/2023,RS150196,541.65,0.00,Toner cartridges.  Charges due to Konica sending our invoices to incorrect company since 2021,Materials and Consumables
Wyre Council,http://opendatacommunities.org/doc/district-council/wyre,30/07/2023,People and Places,Support Services,135B,Groundsman Tools Ltd,21/07/2023,PE151464,515.82,0.00,Tools and equipment / safety glasses,Materials and Consumables
Wyre Council,http://opendatacommunities.org/doc/district-council/wyre,30/07/2023,People and Places,Support Services,135B,Amenity Horticultural Services LTD,20/07/2023,PE151433,1530.00,0.00,Play Area Wood Fibre 30 m3 delivered to Stalmine Playing Field Hall Gate Lane Stalmine FY6 0PJ,Materials and Consumables
Wyre Council,http://opendatacommunities.org/doc/district-council/wyre,30/07/2023,People and Places,Environmental Services,132B,John H Mayor And Sons LTD,12/07/2023,PE151122,4811.40,0.00,2 packs 9 X 3 X 5.4mtr untreated timber as per quote  ( 120 lengths ) Delivered to our Chatsworth Depot  FY7 8EJ,Materials and Consumables
Wyre Council,http://opendatacommunities.org/doc/district-council/wyre,30/07/2023,People and Places,Support Services,135B,The County Tyre (Holdings) LTD,04/07/2023,PE150889,164.26,0.00,Tyres,Materials and Consumables
Wyre Council,http://opendatacommunities.org/doc/district-council/wyre,30/07/2023,People and Places,Support Services,135B,HUWS GRAY LTD,21/07/2023,PE151377,300.00,0.00,Bird spikes,Materials and Consumables
Wyre Council,http://opendatacommunities.org/doc/district-council/wyre,30/07/2023,People and Places,Cultural and Related Services,132A,HUWS GRAY LTD,24/07/2023,PE150517,379.70,0.00,Wood for brock bottom car park,Materials and Consumables
Wyre Council,http://opendatacommunities.org/doc/district-council/wyre,30/07/2023,People and Places,Cultural and Related Services,132A,HUWS GRAY LTD,24/07/2023,PE151376,105.76,0.00,Wood for board walk at Fleetwood,Materials and Consumables
Wyre Council,http://opendatacommunities.org/doc/district-council/wyre,30/07/2023,People and Places,Cultural and Related Services,132A,HUWS GRAY LTD,24/07/2023,PE151378,263.88,0.00,3 ton top dressing,Materials and Consumables
Wyre Council,http://opendatacommunities.org/doc/district-council/wyre,30/07/2023,People and Places,Cultural and Related Services,132A,HUWS GRAY LTD,24/07/2023,PE151142,426.00,0.00,3 x bench kits,Materials and Consumables
Wyre Council,http://opendatacommunities.org/doc/district-council/wyre,30/07/2023,People and Places,Cultural and Related Services,132A,HUWS GRAY LTD,24/07/2023,PE151141,197.94,0.00,wood stain for WECP,Materials and Consumables
Wyre Council,http://opendatacommunities.org/doc/district-council/wyre,30/07/2023,People and Places,Housing General Fund,134A,HUWS GRAY LTD,31/07/2023,PE150934,16.04,0.00,Care & repair parts,Materials and Consumables
Wyre Council,http://opendatacommunities.org/doc/district-council/wyre,30/07/2023,People and Places,Support Services,135B,HUWS GRAY LTD,31/07/2023,PE150934,50.90,0.00,MaterialsKeith urwin,Materials and Consumables
Wyre Council,http://opendatacommunities.org/doc/district-council/wyre,30/07/2023,People and Places,Cultural and Related Services,132A,HUWS GRAY LTD,06/07/2023,PE150931,39.68,0.00,2 x 3.6 4by4,Materials and Consumables
Wyre Council,http://opendatacommunities.org/doc/district-council/wyre,30/07/2023,People and Places,Cultural and Related Services,132A,HUWS GRAY LTD,06/07/2023,PE150930,71.48,0.00,2 x ton 40mm to dust,Materials and Consumables
Wyre Council,http://opendatacommunities.org/doc/district-council/wyre,30/07/2023,People and Places,Environmental Services,132B,George Hewitt Fabrications,17/07/2023,PE151338,550.00,0.00,2 Stainless steel Defibrillator post,Materials and Consumables
Wyre Council,http://opendatacommunities.org/doc/district-council/wyre,30/07/2023,People and Places,Environmental Services,132B,George Hewitt Fabrications,17/07/2023,PE151338,700.00,0.00,2 Stainless Steel Bollards,Materials and Consumables
Wyre Council,http://opendatacommunities.org/doc/district-council/wyre,30/07/2023,People and Places,Support Services,135B,The Pitchmark Group Ltd,25/07/2023,PE151498,3540.00,0.00,"Supply and deliver paint quotation QTE-9206  Delivery to Wyre Council, Copse Road, Fleetwood, Lancashire, FY7 6RP",Materials and Consumables
Wyre Council,http://opendatacommunities.org/doc/district-council/wyre,30/07/2023,People and Places,Support Services,135B,Amazon Business,28/07/2023,PE151703,20.15,0.00,16 Black folders @ 4.03 each,Materials and Consumables
Wyre Council,http://opendatacommunities.org/doc/district-council/wyre,30/07/2023,People and Places,Support Services,135B,Amazon Business,28/07/2023,PE151689,44.33,0.00,16 Black folders @ 4.03 each,Materials and Consumables
Wyre Council,http://opendatacommunities.org/doc/district-council/wyre,30/07/2023,People and Places,Support Services,135B,Amazon Business,31/07/2023,PE151705,13.24,0.00,15 white folders @ 3.31 each,Materials and Consumables
Wyre Council,http://opendatacommunities.org/doc/district-council/wyre,30/07/2023,People and Places,Support Services,135B,Amazon Business,31/07/2023,PE151722,36.41,0.00,15 white folders @ 3.31 each,Materials and Consumables
Wyre Council,http://opendatacommunities.org/doc/district-council/wyre,30/07/2023,Resources,Support Services,135B,Amazon Business,17/07/2023,RS151267,8.32,0.00,"OneLeaf 80PCS Reusable Cable Ties, Black Adjustable 150mm Cord Organizer Ties, Multi-Purpose Hook Loop Cable Management Wire Ties for Organizing Home, Office, Data Centers.",Materials and Consumables
Wyre Council,http://opendatacommunities.org/doc/district-council/wyre,30/07/2023,Resources,Support Services,135B,Amazon Business,11/07/2023,RS150507,5.82,0.00,Oksdown Reusable Cable Ties Black 100 Pack Cable Straps Adjustable Releasable Wire Ties Hook and Loop Cable Tie Tidy for Desk Compatible PC Cable Management Cord Organiser.,Materials and Consumables
Wyre Council,http://opendatacommunities.org/doc/district-council/wyre,30/07/2023,Resources,Support Services,135B,Amazon Business,11/07/2023,RS150509,25.20,0.00,Brother 12 mm Tape - Black/White.,Materials and Consumables
Wyre Council,http://opendatacommunities.org/doc/district-council/wyre,30/07/2023,Resources,Support Services,135B,Amazon Business,11/07/2023,RS150543,5.49,0.00,"Thermal Grizzly - Kryonaut thermal paste - For cooling all processors, graphics cards and heat sinks in computers and consoles (1 Gram).",Materials and Consumables
Wyre Council,http://opendatacommunities.org/doc/district-council/wyre,30/07/2023,People and Places,Cultural and Related Services,132A,Amazon Business,19/07/2023,PE150027,9.98,0.00,"display panels , gaffer tape , Velcro , for countryside rangers - the big green event",Materials and Consumables
Wyre Council,http://opendatacommunities.org/doc/district-council/wyre,30/07/2023,People and Places,Environmental Services,132B,Amazon Business,10/07/2023,PE150768,11.22,0.00,3 x long bladed scissors for Asbestos collection,Materials and Consumables
Wyre Council,http://opendatacommunities.org/doc/district-council/wyre,30/07/2023,People and Places,Support Services,135B,Amazon Business,25/07/2023,PE151444,14.16,0.00,kettle for Fleetwood Mobile Crew brew room,Materials and Consumables
Wyre Council,http://opendatacommunities.org/doc/district-council/wyre,30/07/2023,Resources,Housing General Fund,134A,Huck Properties LTD,07/07/2023,RS150973,740.00,0.00,REDACT,Minor Adaptations
Wyre Council,http://opendatacommunities.org/doc/district-council/wyre,30/07/2023,Resources,Housing General Fund,134A,Huck Properties LTD,07/07/2023,RS150966,450.00,0.00,REDACT,Minor Adaptations
Wyre Council,http://opendatacommunities.org/doc/district-council/wyre,30/07/2023,People and Places,Housing General Fund,134A,J A DICKENS LIMITED,18/07/2023,PE151380,200.00,0.00,REDACT,Minor Adaptations
Wyre Council,http://opendatacommunities.org/doc/district-council/wyre,30/07/2023,People and Places,Housing General Fund,134A,J A DICKENS LIMITED,18/07/2023,PE151380,241.00,0.00,REDACT,Minor Adaptations
Wyre Council,http://opendatacommunities.org/doc/district-council/wyre,30/07/2023,Resources,Housing General Fund,134A,J A DICKENS LIMITED,17/07/2023,RS151292,73.00,0.00,REDACT,Minor Adaptations
Wyre Council,http://opendatacommunities.org/doc/district-council/wyre,30/07/2023,Resources,Housing General Fund,134A,J A DICKENS LIMITED,17/07/2023,RS151292,60.00,0.00,REDACT,Minor Adaptations
Wyre Council,http://opendatacommunities.org/doc/district-council/wyre,30/07/2023,Resources,Housing General Fund,134A,J A DICKENS LIMITED,17/07/2023,RS151293,80.00,0.00,REDACT,Minor Adaptations
Wyre Council,http://opendatacommunities.org/doc/district-council/wyre,30/07/2023,Resources,Housing General Fund,134A,J A DICKENS LIMITED,17/07/2023,RS151293,74.00,0.00,REDACT,Minor Adaptations
Wyre Council,http://opendatacommunities.org/doc/district-council/wyre,30/07/2023,Resources,Housing General Fund,134A,J A DICKENS LIMITED,17/07/2023,RS151302,150.00,0.00,REDACT,Minor Adaptations
Wyre Council,http://opendatacommunities.org/doc/district-council/wyre,30/07/2023,Resources,Housing General Fund,134A,J A DICKENS LIMITED,17/07/2023,RS151302,158.00,0.00,REDACT,Minor Adaptations
Wyre Council,http://opendatacommunities.org/doc/district-council/wyre,30/07/2023,Resources,Housing General Fund,134A,J A DICKENS LIMITED,17/07/2023,RS151303,120.00,0.00,REDACT,Minor Adaptations
Wyre Council,http://opendatacommunities.org/doc/district-council/wyre,30/07/2023,Resources,Housing General Fund,134A,J A DICKENS LIMITED,17/07/2023,RS151303,188.00,0.00,REDACT,Minor Adaptations
Wyre Council,http://opendatacommunities.org/doc/district-council/wyre,30/07/2023,Resources,Housing General Fund,134A,J A DICKENS LIMITED,17/07/2023,RS151304,170.00,0.00,REDACT,Minor Adaptations
Wyre Council,http://opendatacommunities.org/doc/district-council/wyre,30/07/2023,Resources,Housing General Fund,134A,J A DICKENS LIMITED,17/07/2023,RS151304,138.00,0.00,REDACT,Minor Adaptations
Wyre Council,http://opendatacommunities.org/doc/district-council/wyre,30/07/2023,Resources,Housing General Fund,134A,J A DICKENS LIMITED,17/07/2023,RS151305,278.00,0.00,REDACT,Minor Adaptations
Wyre Council,http://opendatacommunities.org/doc/district-council/wyre,30/07/2023,Resources,Housing General Fund,134A,J A DICKENS LIMITED,17/07/2023,RS151305,184.00,0.00,REDACT,Minor Adaptations
Wyre Council,http://opendatacommunities.org/doc/district-council/wyre,30/07/2023,Resources,Housing General Fund,134A,J A DICKENS LIMITED,17/07/2023,RS151294,80.00,0.00,REDACT,Minor Adaptations
Wyre Council,http://opendatacommunities.org/doc/district-council/wyre,30/07/2023,Resources,Housing General Fund,134A,J A DICKENS LIMITED,17/07/2023,RS151294,74.00,0.00,REDACT,Minor Adaptations
Wyre Council,http://opendatacommunities.org/doc/district-council/wyre,30/07/2023,Resources,Housing General Fund,134A,J A DICKENS LIMITED,17/07/2023,RS151295,80.00,0.00,REDACT,Minor Adaptations
Wyre Council,http://opendatacommunities.org/doc/district-council/wyre,30/07/2023,Resources,Housing General Fund,134A,J A DICKENS LIMITED,17/07/2023,RS151295,74.00,0.00,REDACT,Minor Adaptations
Wyre Council,http://opendatacommunities.org/doc/district-council/wyre,30/07/2023,Resources,Housing General Fund,134A,J A DICKENS LIMITED,17/07/2023,RS151296,104.00,0.00,REDACT,Minor Adaptations
Wyre Council,http://opendatacommunities.org/doc/district-council/wyre,30/07/2023,Resources,Housing General Fund,134A,J A DICKENS LIMITED,17/07/2023,RS151296,50.00,0.00,REDACT,Minor Adaptations
Wyre Council,http://opendatacommunities.org/doc/district-council/wyre,30/07/2023,Resources,Housing General Fund,134A,J A DICKENS LIMITED,17/07/2023,RS151297,140.00,0.00,REDACT,Minor Adaptations
Wyre Council,http://opendatacommunities.org/doc/district-council/wyre,30/07/2023,Resources,Housing General Fund,134A,J A DICKENS LIMITED,17/07/2023,RS151297,147.00,0.00,REDACT,Minor Adaptations
Wyre Council,http://opendatacommunities.org/doc/district-council/wyre,30/07/2023,Resources,Housing General Fund,134A,J A DICKENS LIMITED,17/07/2023,RS151298,140.00,0.00,REDACT,Minor Adaptations
Wyre Council,http://opendatacommunities.org/doc/district-council/wyre,30/07/2023,Resources,Housing General Fund,134A,J A DICKENS LIMITED,17/07/2023,RS151298,147.00,0.00,REDACT,Minor Adaptations
Wyre Council,http://opendatacommunities.org/doc/district-council/wyre,30/07/2023,Resources,Housing General Fund,134A,J A DICKENS LIMITED,17/07/2023,RS151299,150.00,0.00,REDACT,Minor Adaptations
Wyre Council,http://opendatacommunities.org/doc/district-council/wyre,30/07/2023,Resources,Housing General Fund,134A,J A DICKENS LIMITED,17/07/2023,RS151299,158.00,0.00,REDACT,Minor Adaptations
Wyre Council,http://opendatacommunities.org/doc/district-council/wyre,30/07/2023,Resources,Housing General Fund,134A,J A DICKENS LIMITED,17/07/2023,RS151300,150.00,0.00,REDACT,Minor Adaptations
Wyre Council,http://opendatacommunities.org/doc/district-council/wyre,30/07/2023,Resources,Housing General Fund,134A,J A DICKENS LIMITED,17/07/2023,RS151300,158.00,0.00,REDACT,Minor Adaptations
Wyre Council,http://opendatacommunities.org/doc/district-council/wyre,30/07/2023,Resources,Housing General Fund,134A,J A DICKENS LIMITED,17/07/2023,RS151301,150.00,0.00,REDACT,Minor Adaptations
Wyre Council,http://opendatacommunities.org/doc/district-council/wyre,30/07/2023,Resources,Housing General Fund,134A,J A DICKENS LIMITED,17/07/2023,RS151301,158.00,0.00,REDACT,Minor Adaptations
Wyre Council,http://opendatacommunities.org/doc/district-council/wyre,30/07/2023,Resources,Housing General Fund,134A,J A DICKENS LIMITED,17/07/2023,RS151307,320.00,0.00,REDACT,Minor Adaptations
Wyre Council,http://opendatacommunities.org/doc/district-council/wyre,30/07/2023,Resources,Housing General Fund,134A,J A DICKENS LIMITED,17/07/2023,RS151306,380.00,0.00,REDACT,Minor Adaptations
Wyre Council,http://opendatacommunities.org/doc/district-council/wyre,30/07/2023,Resources,Housing General Fund,134A,J A DICKENS LIMITED,17/07/2023,RS151306,360.00,0.00,REDACT,Minor Adaptations
Wyre Council,http://opendatacommunities.org/doc/district-council/wyre,30/07/2023,Resources,Housing General Fund,134A,J A DICKENS LIMITED,17/07/2023,RS151307,400.00,0.00,REDACT,Minor Adaptations
Wyre Council,http://opendatacommunities.org/doc/district-council/wyre,30/07/2023,Resources,Housing General Fund,134A,J A DICKENS LIMITED,18/07/2023,RS151382,140.00,0.00,REDACT,Minor Adaptations
Wyre Council,http://opendatacommunities.org/doc/district-council/wyre,30/07/2023,Resources,Housing General Fund,134A,J A DICKENS LIMITED,18/07/2023,RS151382,120.00,0.00,REDACT,Minor Adaptations
Wyre Council,http://opendatacommunities.org/doc/district-council/wyre,30/07/2023,Resources,Housing General Fund,134A,J A DICKENS LIMITED,18/07/2023,RS151379,60.00,0.00,REDACT,Minor Adaptations
Wyre Council,http://opendatacommunities.org/doc/district-council/wyre,30/07/2023,Resources,Housing General Fund,134A,J A DICKENS LIMITED,18/07/2023,RS151379,94.00,0.00,REDACT,Minor Adaptations
Wyre Council,http://opendatacommunities.org/doc/district-council/wyre,30/07/2023,Resources,Housing General Fund,134A,J A DICKENS LIMITED,18/07/2023,RS151381,240.00,0.00,REDACT,Minor Adaptations
Wyre Council,http://opendatacommunities.org/doc/district-council/wyre,30/07/2023,Resources,Housing General Fund,134A,J A DICKENS LIMITED,18/07/2023,RS151381,180.00,0.00,REDACT,Minor Adaptations
Wyre Council,http://opendatacommunities.org/doc/district-council/wyre,30/07/2023,Resources,Housing General Fund,134A,J A DICKENS LIMITED,24/07/2023,RS151485,420.00,0.00,REDACT,Minor Adaptations
Wyre Council,http://opendatacommunities.org/doc/district-council/wyre,30/07/2023,Resources,Housing General Fund,134A,J A DICKENS LIMITED,24/07/2023,RS151485,340.00,0.00,REDACT,Minor Adaptations
Wyre Council,http://opendatacommunities.org/doc/district-council/wyre,30/07/2023,Resources,Environmental Services,132B,VODAFONE LIMITED,25/07/2023,RS151372,12.53,0.00,Monthly Mobile Charges,Mobile Devices
Wyre Council,http://opendatacommunities.org/doc/district-council/wyre,30/07/2023,Resources,Housing General Fund,134A,VODAFONE LIMITED,25/07/2023,RS151372,36.00,0.00,Monthly Mobile Charges,Mobile Devices
Wyre Council,http://opendatacommunities.org/doc/district-council/wyre,30/07/2023,Resources,Support Services,135B,VODAFONE LIMITED,25/07/2023,RS151372,36.00,0.00,Monthly Mobile Charges,Mobile Devices
Wyre Council,http://opendatacommunities.org/doc/district-council/wyre,30/07/2023,Resources,Support Services,135B,VODAFONE LIMITED,25/07/2023,RS151372,120.00,0.00,Monthly Mobile Charges,Mobile Devices
Wyre Council,http://opendatacommunities.org/doc/district-council/wyre,30/07/2023,Resources,Support Services,135B,VODAFONE LIMITED,25/07/2023,RS151372,60.00,0.00,Monthly Mobile Charges,Mobile Devices
Wyre Council,http://opendatacommunities.org/doc/district-council/wyre,30/07/2023,Resources,Support Services,135B,VODAFONE LIMITED,25/07/2023,RS151372,156.00,0.00,Monthly Mobile Charges,Mobile Devices
Wyre Council,http://opendatacommunities.org/doc/district-council/wyre,30/07/2023,Resources,Support Services,135B,VODAFONE LIMITED,25/07/2023,RS151372,12.00,0.00,Monthly Mobile Charges,Mobile Devices
Wyre Council,http://opendatacommunities.org/doc/district-council/wyre,30/07/2023,Resources,Cultural and Related Services,132A,VODAFONE LIMITED,25/07/2023,RS151372,12.00,0.00,Monthly Mobile Charges,Mobile Devices
Wyre Council,http://opendatacommunities.org/doc/district-council/wyre,30/07/2023,Resources,Cultural and Related Services,132A,VODAFONE LIMITED,25/07/2023,RS151372,24.00,0.00,Monthly Mobile Charges,Mobile Devices
Wyre Council,http://opendatacommunities.org/doc/district-council/wyre,30/07/2023,Resources,Housing General Fund,134A,VODAFONE LIMITED,25/07/2023,RS151372,72.00,0.00,Monthly Mobile Charges,Mobile Devices
Wyre Council,http://opendatacommunities.org/doc/district-council/wyre,30/07/2023,Resources,Housing General Fund,134A,VODAFONE LIMITED,25/07/2023,RS151372,32.00,0.00,Monthly Mobile Charges,Mobile Devices
Wyre Council,http://opendatacommunities.org/doc/district-council/wyre,30/07/2023,Resources,Support Services,135B,VODAFONE LIMITED,25/07/2023,RS151372,36.00,0.00,Monthly Mobile Charges,Mobile Devices
Wyre Council,http://opendatacommunities.org/doc/district-council/wyre,30/07/2023,Resources,Support Services,135B,VODAFONE LIMITED,25/07/2023,RS151372,289.03,0.00,Monthly Mobile Charges,Mobile Devices
Wyre Council,http://opendatacommunities.org/doc/district-council/wyre,30/07/2023,Resources,Support Services,135B,VODAFONE LIMITED,25/07/2023,RS151372,24.20,0.00,Monthly Mobile Charges,Mobile Devices
Wyre Council,http://opendatacommunities.org/doc/district-council/wyre,30/07/2023,Resources,Support Services,135B,VODAFONE LIMITED,25/07/2023,RS151372,28.53,0.00,Monthly Mobile Charges,Mobile Devices
Wyre Council,http://opendatacommunities.org/doc/district-council/wyre,30/07/2023,Resources,Support Services,135B,VODAFONE LIMITED,25/07/2023,RS151372,36.66,0.00,Monthly Mobile Charges,Mobile Devices
Wyre Council,http://opendatacommunities.org/doc/district-council/wyre,30/07/2023,Resources,Support Services,135B,VODAFONE LIMITED,25/07/2023,RS151372,20.00,0.00,Monthly Mobile Charges,Mobile Devices
Wyre Council,http://opendatacommunities.org/doc/district-council/wyre,30/07/2023,Resources,Support Services,135B,VODAFONE LIMITED,25/07/2023,RS151372,176.53,0.00,Monthly Mobile Charges,Mobile Devices
Wyre Council,http://opendatacommunities.org/doc/district-council/wyre,30/07/2023,Resources,Central Services to the Public,131C,VODAFONE LIMITED,25/07/2023,RS151372,12.00,0.00,Monthly Mobile Charges,Mobile Devices
Wyre Council,http://opendatacommunities.org/doc/district-council/wyre,30/07/2023,Resources,Corporate and Democratic Core,131A,VODAFONE LIMITED,25/07/2023,RS151372,8.80,0.00,Monthly Mobile Charges,Mobile Devices
Wyre Council,http://opendatacommunities.org/doc/district-council/wyre,30/07/2023,Resources,Environmental Services,132B,VODAFONE LIMITED,25/07/2023,RS151372,84.00,0.00,Monthly Mobile Charges,Mobile Devices
Wyre Council,http://opendatacommunities.org/doc/district-council/wyre,30/07/2023,Resources,Support Services,135B,VODAFONE LIMITED,25/07/2023,RS151372,28.00,0.00,Monthly Mobile Charges,Mobile Devices
Wyre Council,http://opendatacommunities.org/doc/district-council/wyre,30/07/2023,Resources,Support Services,135B,VODAFONE LIMITED,25/07/2023,RS151372,80.66,0.00,Monthly Mobile Charges,Mobile Devices
Wyre Council,http://opendatacommunities.org/doc/district-council/wyre,30/07/2023,Resources,Support Services,135B,VODAFONE LIMITED,25/07/2023,RS151372,50.84,0.00,Monthly Mobile Charges,Mobile Devices
Wyre Council,http://opendatacommunities.org/doc/district-council/wyre,30/07/2023,Resources,Support Services,135B,VODAFONE LIMITED,25/07/2023,RS151372,48.00,0.00,Monthly Mobile Charges,Mobile Devices
Wyre Council,http://opendatacommunities.org/doc/district-council/wyre,30/07/2023,Resources,Support Services,135B,VODAFONE LIMITED,25/07/2023,RS151372,12.00,0.00,Monthly Mobile Charges,Mobile Devices
Wyre Council,http://opendatacommunities.org/doc/district-council/wyre,30/07/2023,Resources,Support Services,135B,VODAFONE LIMITED,25/07/2023,RS151372,24.33,0.00,Monthly Mobile Charges,Mobile Devices
Wyre Council,http://opendatacommunities.org/doc/district-council/wyre,30/07/2023,Resources,Support Services,135B,VODAFONE LIMITED,25/07/2023,RS151372,168.33,0.00,Monthly Mobile Charges,Mobile Devices
Wyre Council,http://opendatacommunities.org/doc/district-council/wyre,30/07/2023,Resources,Support Services,135B,VODAFONE LIMITED,25/07/2023,RS151372,208.33,0.00,Monthly Mobile Charges,Mobile Devices
Wyre Council,http://opendatacommunities.org/doc/district-council/wyre,30/07/2023,Resources,Central Services to the Public,131C,VODAFONE LIMITED,25/07/2023,RS151372,24.00,0.00,Monthly Mobile Charges,Mobile Devices
Wyre Council,http://opendatacommunities.org/doc/district-council/wyre,30/07/2023,Resources,Cultural and Related Services,132A,VODAFONE LIMITED,25/07/2023,RS151372,24.00,0.00,Monthly Mobile Charges,Mobile Devices
Wyre Council,http://opendatacommunities.org/doc/district-council/wyre,30/07/2023,Resources,Cultural and Related Services,132A,VODAFONE LIMITED,25/07/2023,RS151372,12.00,0.00,Monthly Mobile Charges,Mobile Devices
Wyre Council,http://opendatacommunities.org/doc/district-council/wyre,30/07/2023,People and Places,Highways,133B,Andrew Signs LTD,05/07/2023,PE150837,195.00,0.00,various signs - june 2023,Naming of Streets
Wyre Council,http://opendatacommunities.org/doc/district-council/wyre,30/07/2023,People and Places,Highways,133B,Andrew Signs LTD,26/07/2023,PE151670,332.00,0.00,polycarbonate 6mm for Mark and various street name plates for Mark,Naming of Streets
Wyre Council,http://opendatacommunities.org/doc/district-council/wyre,30/07/2023,Finance,Current Assets,130B,,11/07/2023,WPST00112370,13043.07,0.00,NDR Refunds,NNDR Refunds
Wyre Council,http://opendatacommunities.org/doc/district-council/wyre,30/07/2023,Finance,Current Assets,130B,,18/07/2023,WPST00113005,788.72,0.00,NDR Refunds,NNDR Refunds
Wyre Council,http://opendatacommunities.org/doc/district-council/wyre,30/07/2023,Finance,Current Assets,130B,,04/07/2023,WPST00111608,5182.04,0.00,,NNDR Refunds
Wyre Council,http://opendatacommunities.org/doc/district-council/wyre,30/07/2023,Finance,Current Assets,130B,,25/07/2023,WPST00113579,13619.24,0.00,21/07/23 NDR Refunds,NNDR Refunds
Wyre Council,http://opendatacommunities.org/doc/district-council/wyre,30/07/2023,Finance,Collection Fund Revenue Accts,138A,DEPARTMENT FOR COMMUNITIES AND LOCAL GOVERNMENT,21/07/2023,WPST00113335,1150593.00,0.00,DLUHC - Bus Rates Central Share 19/07/23,NNDR Tariff to Government
Wyre Council,http://opendatacommunities.org/doc/district-council/wyre,30/07/2023,Finance,General Fund below the line,136A,DEPARTMENT FOR COMMUNITIES AND LOCAL GOVERNMENT,21/07/2023,WPST00113346,724320.00,0.00, 19/07/23 R V B C GENERAL,NNDR Tariff to Government
Wyre Council,http://opendatacommunities.org/doc/district-council/wyre,30/07/2023,People and Places,Support Services,135B,People Asset Management LTD,12/07/2023,PE150942,714.00,0.00,June 23 PAYG charges,Occupational Health Fees
Wyre Council,http://opendatacommunities.org/doc/district-council/wyre,30/07/2023,Resources,Support Services,135B,Karen Openshaw Consultancy,13/07/2023,RS151181,520.00,0.00,Listening Services until March 22024,Occupational Health Fees
Wyre Council,http://opendatacommunities.org/doc/district-council/wyre,30/07/2023,People and Places,Environmental Services,132B,DANFO (UK) LTD,14/07/2023,PE151198,23387.86,0.00,Public Conveniences - Maintenance and Cleaning 2023/24,Other Establishments
Wyre Council,http://opendatacommunities.org/doc/district-council/wyre,30/07/2023,Finance,Collection Fund Revenue Accts,138A,LANCASHIRE FIRE AUTHORITY,07/07/2023,WPST00112139,25569.00,0.00,5/7 Lancashire Fire23/24 Business Rates,Other Local Authorities
Wyre Council,http://opendatacommunities.org/doc/district-council/wyre,30/07/2023,Finance,Collection Fund Revenue Accts,138A,LANCASHIRE COUNTY COUNCIL,07/07/2023,WPST00112135,230119.00,0.00,5/7 lcc 23/24 Business Rates,Other Local Authorities
Wyre Council,http://opendatacommunities.org/doc/district-council/wyre,30/07/2023,Finance,Collection Fund Revenue Accts,138A,,07/07/2023,WPST00112141,967972.00,0.00,5/7 PCC 23/24 Council Tax,Other Local Authorities
Wyre Council,http://opendatacommunities.org/doc/district-council/wyre,30/07/2023,Finance,Collection Fund Revenue Accts,138A,,07/07/2023,WPST00112142,46481.00,0.00,5/7 PCC 22/23 Council Tax Surplus,Other Local Authorities
Wyre Council,http://opendatacommunities.org/doc/district-council/wyre,30/07/2023,Finance,Collection Fund Revenue Accts,138A,LANCASHIRE COUNTY COUNCIL,07/07/2023,WPST00112133,6061941.00,0.00,5/7 Lancashire County23/24 Council tax,Other Local Authorities
Wyre Council,http://opendatacommunities.org/doc/district-council/wyre,30/07/2023,Finance,Collection Fund Revenue Accts,138A,LANCASHIRE FIRE AUTHORITY,07/07/2023,WPST00112134,297674.00,0.00,5/7/23  lcc 22/23 Council Tax Surplus,Other Local Authorities
Wyre Council,http://opendatacommunities.org/doc/district-council/wyre,30/07/2023,Finance,Collection Fund Revenue Accts,138A,LANCASHIRE FIRE AUTHORITY,07/07/2023,WPST00112137,316703.00,0.00,5/7 Lancashire Fire23/24 Council Tax,Other Local Authorities
Wyre Council,http://opendatacommunities.org/doc/district-council/wyre,30/07/2023,Finance,Collection Fund Revenue Accts,138A,,07/07/2023,WPST00112138,15190.00,0.00,5/7 Lancashire Fire22/23 Council Tax Su,Other Local Authorities
Wyre Council,http://opendatacommunities.org/doc/district-council/wyre,30/07/2023,People and Places,Parking Services,133F,Park Now Limited,31/07/2023,PE151317,671.42,0.00,RingGo Fees for 1 April 2023 - 31 March 2024 - service charges - text summary charges - text reminder charges - card processing fess,Other Parking Fees and Commission
Wyre Council,http://opendatacommunities.org/doc/district-council/wyre,30/07/2023,People and Places,Environmental Services,132B,D Hollowell & Sons LTD,06/07/2023,PE150714,80.00,0.00,REDACT,Other Rechargeable Services
Wyre Council,http://opendatacommunities.org/doc/district-council/wyre,30/07/2023,People and Places,Environmental Services,132B,D Hollowell & Sons LTD,06/07/2023,PE150714,1014.00,0.00,REDACT,Other Rechargeable Services
Wyre Council,http://opendatacommunities.org/doc/district-council/wyre,30/07/2023,Resources,Corporate and Democratic Core,131A,Archway Travel LTD,12/07/2023,RS151078,-300.00,0.00,Planning Committee Site Visit Wednesday 5 July 2023,Other Travelling Expenses
Wyre Council,http://opendatacommunities.org/doc/district-council/wyre,30/07/2023,Resources,Corporate and Democratic Core,131A,Archway Travel LTD,11/07/2023,RS151078,300.00,0.00,Planning Committee Site Visit Wednesday 5 July 2023,Other Travelling Expenses
Wyre Council,http://opendatacommunities.org/doc/district-council/wyre,30/07/2023,Resources,Corporate and Democratic Core,131A,Archway Travel LTD,17/07/2023,PE151124,300.00,0.00,Planning Committee Site Visit Wednesday 5 July 2023,Other Travelling Expenses
Wyre Council,http://opendatacommunities.org/doc/district-council/wyre,30/07/2023,People and Places,Parking Services,133F,George Hewitt Fabrications,17/07/2023,PE151338,216.00,0.00,1 Catcher post for height barrier,"Paths, Roads and Car Park Mtnce Annual"
Wyre Council,http://opendatacommunities.org/doc/district-council/wyre,30/07/2023,People and Places,Parking Services,133F,George Hewitt Fabrications,17/07/2023,PE151338,160.00,0.00,8 Barrier catchers,"Paths, Roads and Car Park Mtnce Annual"
Wyre Council,http://opendatacommunities.org/doc/district-council/wyre,30/07/2023,People and Places,Parking Services,133F,George Hewitt Fabrications,17/07/2023,PE151338,35.00,0.00,Welding of up sign post,"Paths, Roads and Car Park Mtnce Annual"
Wyre Council,http://opendatacommunities.org/doc/district-council/wyre,30/07/2023,People and Places,Parking Services,133F,George Hewitt Fabrications,17/07/2023,PE151338,1550.00,0.00,1 complete 8m height barrier,"Paths, Roads and Car Park Mtnce Annual"
Wyre Council,http://opendatacommunities.org/doc/district-council/wyre,30/07/2023,People and Places,Cultural and Related Services,132A,EVOLUTION CONSTRUCTION GROUP LTD,10/07/2023,PE150923,136.54,0.00,Marine Hall: Pigeon proofing to external shaft,Pest Control
Wyre Council,http://opendatacommunities.org/doc/district-council/wyre,30/07/2023,People and Places,Support Services,135B,Allstar Business Solutions LTD,11/07/2023,PE150822,48.34,0.00,Fuel charges up t 30/06/25,Petrol
Wyre Council,http://opendatacommunities.org/doc/district-council/wyre,30/07/2023,People and Places,Support Services,135B,Allstar Business Solutions LTD,11/07/2023,PE150822,98.42,0.00,Fuel charges up t 30/06/26,Petrol
Wyre Council,http://opendatacommunities.org/doc/district-council/wyre,30/07/2023,People and Places,Support Services,135B,Allstar Business Solutions LTD,11/07/2023,PE150822,51.35,0.00,Fuel charges up t 30/06/28,Petrol
Wyre Council,http://opendatacommunities.org/doc/district-council/wyre,30/07/2023,People and Places,Support Services,135B,Allstar Business Solutions LTD,11/07/2023,PE150822,84.13,0.00,Fuel charges up t 30/06/27,Petrol
Wyre Council,http://opendatacommunities.org/doc/district-council/wyre,30/07/2023,People and Places,Support Services,135B,Allstar Business Solutions LTD,25/07/2023,PE151363,54.54,0.00,Fuel to 14/07/23,Petrol
Wyre Council,http://opendatacommunities.org/doc/district-council/wyre,30/07/2023,People and Places,Support Services,135B,Allstar Business Solutions LTD,25/07/2023,PE151363,110.19,0.00,Fuel to 14/07/23,Petrol
Wyre Council,http://opendatacommunities.org/doc/district-council/wyre,30/07/2023,People and Places,Support Services,135B,Allstar Business Solutions LTD,25/07/2023,PE151363,44.12,0.00,Fuel to 14/07/23,Petrol
Wyre Council,http://opendatacommunities.org/doc/district-council/wyre,30/07/2023,People and Places,Support Services,135B,Allstar Business Solutions LTD,25/07/2023,PE151363,93.76,0.00,Fuel to 14/07/23,Petrol
Wyre Council,http://opendatacommunities.org/doc/district-council/wyre,30/07/2023,People and Places,Planning and Development Servs,132C,EAS Electrical Mechanical,11/07/2023,PE151051,822.00,0.00,Copse Rd Depot: EICR Remedials,Planned Building Maintenance
Wyre Council,http://opendatacommunities.org/doc/district-council/wyre,30/07/2023,People and Places,Cultural and Related Services,132A,EAS Electrical Mechanical,13/07/2023,PE151164,738.30,0.00,"Garstang TIC: EICR, replaced dbl dry lining box, relocated counter skts & x4 data points to cupboard, fit 2 blank plates and installed copex to lghtng on shop front lights for protection where cables leave metal pole from ceiling",Planned Building Maintenance
Wyre Council,http://opendatacommunities.org/doc/district-council/wyre,30/07/2023,People and Places,Cultural and Related Services,132A,EAS Electrical Mechanical,25/07/2023,PE151634,6360.00,0.00,Marine Hall: EICR,Planned Building Maintenance
Wyre Council,http://opendatacommunities.org/doc/district-council/wyre,30/07/2023,People and Places,Planning and Development Servs,132C,Siemens Financial Services,12/07/2023,PE150410,200.00,0.00,Fleetwood Market - Data Collection and Energy Management (01.03.2023 - 29.02.2024),Planned Building Maintenance
Wyre Council,http://opendatacommunities.org/doc/district-council/wyre,30/07/2023,People and Places,Support Services,135B,Siemens Financial Services,12/07/2023,PE150410,399.00,0.00,Civic Centre - Meter Operation and Comms Link Charges (01.03.2023 - 29.02.2024),Planned Building Maintenance
Wyre Council,http://opendatacommunities.org/doc/district-council/wyre,30/07/2023,People and Places,Support Services,135B,Siemens Financial Services,12/07/2023,PE150410,200.00,0.00,Civic Centre - Data Collection and Energy Management (01.03.2023 - 29.02.2024),Planned Building Maintenance
Wyre Council,http://opendatacommunities.org/doc/district-council/wyre,30/07/2023,People and Places,Cultural and Related Services,132A,Siemens Financial Services,12/07/2023,PE150410,399.00,0.00,Rossall Point Observatory - Meter Operation and Comms Link Charges (01.03.2023 - 29.02.2024),Planned Building Maintenance
Wyre Council,http://opendatacommunities.org/doc/district-council/wyre,30/07/2023,People and Places,Cultural and Related Services,132A,Siemens Financial Services,12/07/2023,PE150410,399.00,0.00,Cafe North Promenade - Meter Operation and Comms Link Charges (01.03.2023 - 29.02.2024),Planned Building Maintenance
Wyre Council,http://opendatacommunities.org/doc/district-council/wyre,30/07/2023,People and Places,Cultural and Related Services,132A,Siemens Financial Services,12/07/2023,PE150410,200.00,0.00,Cafe North Promenade - Data Collection and Energy Management (01.03.2023 - 29.02.2024),Planned Building Maintenance
Wyre Council,http://opendatacommunities.org/doc/district-council/wyre,30/07/2023,People and Places,Cultural and Related Services,132A,Siemens Financial Services,12/07/2023,PE150410,200.00,0.00,Rossall Point Observatory - Data Collection and Energy Management (01.03.2023 - 29.02.2024),Planned Building Maintenance
Wyre Council,http://opendatacommunities.org/doc/district-council/wyre,30/07/2023,People and Places,Environmental Services,132B,Siemens Financial Services,12/07/2023,PE150410,399.00,0.00,Royles Brook Pumping Station - Meter Operation and Comms Link Charges (01.03.2023 - 29.02.2024),Planned Building Maintenance
Wyre Council,http://opendatacommunities.org/doc/district-council/wyre,30/07/2023,People and Places,Environmental Services,132B,Siemens Financial Services,12/07/2023,PE150410,200.00,0.00,Royles Brook Pumping Station - Data Collection and Energy Management (01.03.2023 - 29.02.2024),Planned Building Maintenance
Wyre Council,http://opendatacommunities.org/doc/district-council/wyre,30/07/2023,People and Places,Planning and Development Servs,132C,Siemens Financial Services,12/07/2023,PE150410,399.00,0.00,Copse Road Depot - Meter Operation and Comms Link Charges (01.03.2023 - 29.02.2024),Planned Building Maintenance
Wyre Council,http://opendatacommunities.org/doc/district-council/wyre,30/07/2023,People and Places,Planning and Development Servs,132C,Siemens Financial Services,12/07/2023,PE150410,200.00,0.00,Copse Road Depot - Data Collection and Energy Management (01.03.2023 - 29.02.2024),Planned Building Maintenance
Wyre Council,http://opendatacommunities.org/doc/district-council/wyre,30/07/2023,People and Places,Planning and Development Servs,132C,Siemens Financial Services,12/07/2023,PE150410,399.00,0.00,Fleetwood Market - Meter Operation and Comms Link Charges (01.03.2023 - 29.02.2024),Planned Building Maintenance
Wyre Council,http://opendatacommunities.org/doc/district-council/wyre,30/07/2023,People and Places,Cultural and Related Services,132A,COWLEY FIRE,12/07/2023,PE150711,252.69,0.00,Rossall Point Tower: service fire equipment,Planned Building Maintenance
Wyre Council,http://opendatacommunities.org/doc/district-council/wyre,30/07/2023,People and Places,Planning and Development Servs,132C,COWLEY FIRE,13/07/2023,PE151069,784.11,0.00,Fleetwood Market: service fire equipment,Planned Building Maintenance
Wyre Council,http://opendatacommunities.org/doc/district-council/wyre,30/07/2023,People and Places,Cultural and Related Services,132A,COWLEY FIRE,10/07/2023,PE150673,136.29,0.00,"Old Custom Watch House, Fleetwood: service fire equipment",Planned Building Maintenance
Wyre Council,http://opendatacommunities.org/doc/district-council/wyre,30/07/2023,Resources,Environmental Services,132B,The Columbaria Company,19/07/2023,RS150722,471.00,0.00,REDACT,Plaque Inscriptions and Furniture
Wyre Council,http://opendatacommunities.org/doc/district-council/wyre,30/07/2023,People and Places,Environmental Services,132B,The Columbaria Company,18/07/2023,PE151390,107.00,0.00,REDACT,Plaque Inscriptions and Furniture
Wyre Council,http://opendatacommunities.org/doc/district-council/wyre,30/07/2023,People and Places,Environmental Services,132B,Glasdon UK LTD,31/07/2023,PE151011,636.14,0.00,REDACT,Plaque Inscriptions and Furniture
Wyre Council,http://opendatacommunities.org/doc/district-council/wyre,30/07/2023,People and Places,Environmental Services,132B,Ashdown Supplies,19/07/2023,PE151320,589.50,0.00,REDACT,Plaque Inscriptions and Furniture
Wyre Council,http://opendatacommunities.org/doc/district-council/wyre,30/07/2023,Finance,Central Services to the Public,131C,SANTANDER,07/07/2023,WPST00112077,767.00,0.00,santander 5/7/23,Plastic Cards Processing Fees
Wyre Council,http://opendatacommunities.org/doc/district-council/wyre,30/07/2023,Resources,Support Services,135B,Critiqom LTD,20/07/2023,RS151446,290.63,0.00,IQ post - Off Serv Admin,Postage
Wyre Council,http://opendatacommunities.org/doc/district-council/wyre,30/07/2023,Resources,Support Services,135B,Critiqom LTD,20/07/2023,RS151446,6.70,0.00,IQ post - Off Serv Admin - Energy Surcharge,Postage
Wyre Council,http://opendatacommunities.org/doc/district-council/wyre,30/07/2023,Resources,Central Services to the Public,131C,Critiqom LTD,20/07/2023,RS151446,183.65,0.00,IQ post - Electoral,Postage
Wyre Council,http://opendatacommunities.org/doc/district-council/wyre,30/07/2023,Resources,Central Services to the Public,131C,Critiqom LTD,20/07/2023,RS151446,4.23,0.00,IQ post - Electoral - Energy Surcharge,Postage
Wyre Council,http://opendatacommunities.org/doc/district-council/wyre,30/07/2023,Resources,Support Services,135B,Critiqom LTD,20/07/2023,RS151446,354.62,0.00,IQ Post - Planning,Postage
Wyre Council,http://opendatacommunities.org/doc/district-council/wyre,30/07/2023,Resources,Support Services,135B,Critiqom LTD,20/07/2023,RS151446,8.18,0.00,IQ Post - Planning - Energy Surcharge,Postage
Wyre Council,http://opendatacommunities.org/doc/district-council/wyre,30/07/2023,Resources,Support Services,135B,Critiqom LTD,20/07/2023,RS151446,602.99,0.00,Ctax Reminders,Postage
Wyre Council,http://opendatacommunities.org/doc/district-council/wyre,30/07/2023,Resources,Support Services,135B,Critiqom LTD,20/07/2023,RS151446,13.90,0.00,Ctax Reminders - Energy Surcharge,Postage
Wyre Council,http://opendatacommunities.org/doc/district-council/wyre,30/07/2023,Resources,Support Services,135B,Critiqom LTD,20/07/2023,RS151446,20.85,0.00,NNDR Reminders,Postage
Wyre Council,http://opendatacommunities.org/doc/district-council/wyre,30/07/2023,Resources,Support Services,135B,Critiqom LTD,20/07/2023,RS151446,0.48,0.00,NNDR Reminders - Energy Surcharge,Postage
Wyre Council,http://opendatacommunities.org/doc/district-council/wyre,30/07/2023,Resources,Support Services,135B,Critiqom LTD,20/07/2023,RS151446,548.87,0.00,Ctax Summons,Postage
Wyre Council,http://opendatacommunities.org/doc/district-council/wyre,30/07/2023,Resources,Support Services,135B,Critiqom LTD,20/07/2023,RS151446,12.65,0.00,Ctax Summons - Energy Surcharge,Postage
Wyre Council,http://opendatacommunities.org/doc/district-council/wyre,30/07/2023,Resources,Support Services,135B,Critiqom LTD,20/07/2023,RS151446,24.97,0.00,NNDR Summons,Postage
Wyre Council,http://opendatacommunities.org/doc/district-council/wyre,30/07/2023,Resources,Support Services,135B,Critiqom LTD,20/07/2023,RS151446,0.58,0.00,NNDR Summons - Energy Surcharge,Postage
Wyre Council,http://opendatacommunities.org/doc/district-council/wyre,30/07/2023,Resources,Support Services,135B,Critiqom LTD,20/07/2023,RS151447,1891.74,0.00,Council Tax Reminders,Postage
Wyre Council,http://opendatacommunities.org/doc/district-council/wyre,30/07/2023,Resources,Support Services,135B,Critiqom LTD,20/07/2023,RS151447,129.77,0.00,NNDR Reminders,Postage
Wyre Council,http://opendatacommunities.org/doc/district-council/wyre,30/07/2023,Resources,Support Services,135B,Critiqom LTD,20/07/2023,RS151447,1520.56,0.00,Council Tax Summons,Postage
Wyre Council,http://opendatacommunities.org/doc/district-council/wyre,30/07/2023,Resources,Support Services,135B,Critiqom LTD,20/07/2023,RS151447,72.83,0.00,NNDR Summons,Postage
Wyre Council,http://opendatacommunities.org/doc/district-council/wyre,30/07/2023,Resources,Support Services,135B,Critiqom LTD,20/07/2023,RS151446,809.02,0.00,IQ post - CC,Postage
Wyre Council,http://opendatacommunities.org/doc/district-council/wyre,30/07/2023,Resources,Support Services,135B,Critiqom LTD,20/07/2023,RS151446,18.65,0.00,IQ post - CC - Energy Surcharge,Postage
Wyre Council,http://opendatacommunities.org/doc/district-council/wyre,30/07/2023,Resources,Central Services to the Public,131C,Critiqom LTD,20/07/2023,RS151447,1709.08,0.00,Daily Bills,Postage
Wyre Council,http://opendatacommunities.org/doc/district-council/wyre,30/07/2023,Resources,Central Services to the Public,131C,Critiqom LTD,20/07/2023,RS151446,417.00,0.00,Daily Bills,Postage
Wyre Council,http://opendatacommunities.org/doc/district-council/wyre,30/07/2023,Resources,Central Services to the Public,131C,Critiqom LTD,20/07/2023,RS151446,9.61,0.00,Daily Bills - Energy Surcharge,Postage
Wyre Council,http://opendatacommunities.org/doc/district-council/wyre,30/07/2023,Resources,Housing General Fund,134A,Critiqom LTD,20/07/2023,RS151446,49.61,0.00,Benefit Notifications,Postage
Wyre Council,http://opendatacommunities.org/doc/district-council/wyre,30/07/2023,Resources,Housing General Fund,134A,Critiqom LTD,20/07/2023,RS151446,1.14,0.00,Benefit Notifications - Energy Surcharge,Postage
Wyre Council,http://opendatacommunities.org/doc/district-council/wyre,30/07/2023,Resources,Housing General Fund,134A,Critiqom LTD,20/07/2023,RS151447,165.70,0.00,Benefit Notifications,Postage
Wyre Council,http://opendatacommunities.org/doc/district-council/wyre,30/07/2023,People and Places,Support Services,135B,Critiqom LTD,07/07/2023,PE150975,925.72,0.00,June Services,Postage
Wyre Council,http://opendatacommunities.org/doc/district-council/wyre,30/07/2023,People and Places,Support Services,135B,Critiqom LTD,07/07/2023,PE150975,22.36,0.00,June Services,Postage
Wyre Council,http://opendatacommunities.org/doc/district-council/wyre,30/07/2023,People and Places,Support Services,135B,Critiqom LTD,07/07/2023,PE150975,241.97,0.00,June Services,Postage
Wyre Council,http://opendatacommunities.org/doc/district-council/wyre,30/07/2023,People and Places,Support Services,135B,Critiqom LTD,07/07/2023,PE150975,5.84,0.00,June Services,Postage
Wyre Council,http://opendatacommunities.org/doc/district-council/wyre,30/07/2023,People and Places,Support Services,135B,Critiqom LTD,07/07/2023,PE150975,316.96,0.00,June Services,Postage
Wyre Council,http://opendatacommunities.org/doc/district-council/wyre,30/07/2023,People and Places,Support Services,135B,Critiqom LTD,07/07/2023,PE150975,7.66,0.00,June Services,Postage
Wyre Council,http://opendatacommunities.org/doc/district-council/wyre,30/07/2023,People and Places,Support Services,135B,Critiqom LTD,07/07/2023,PE150975,142.56,0.00,June Services,Postage
Wyre Council,http://opendatacommunities.org/doc/district-council/wyre,30/07/2023,People and Places,Support Services,135B,Critiqom LTD,07/07/2023,PE150975,3.44,0.00,June Services,Postage
Wyre Council,http://opendatacommunities.org/doc/district-council/wyre,30/07/2023,People and Places,Support Services,135B,Critiqom LTD,07/07/2023,PE150975,6.69,0.00,June Services,Postage
Wyre Council,http://opendatacommunities.org/doc/district-council/wyre,30/07/2023,People and Places,Support Services,135B,Critiqom LTD,07/07/2023,PE150975,0.16,0.00,June Services,Postage
Wyre Council,http://opendatacommunities.org/doc/district-council/wyre,30/07/2023,People and Places,Support Services,135B,Critiqom LTD,07/07/2023,PE150975,91.48,0.00,June Services,Postage
Wyre Council,http://opendatacommunities.org/doc/district-council/wyre,30/07/2023,People and Places,Support Services,135B,Critiqom LTD,07/07/2023,PE150975,2.21,0.00,June Services,Postage
Wyre Council,http://opendatacommunities.org/doc/district-council/wyre,30/07/2023,People and Places,Support Services,135B,Critiqom LTD,07/07/2023,PE150975,8.11,0.00,June Services,Postage
Wyre Council,http://opendatacommunities.org/doc/district-council/wyre,30/07/2023,People and Places,Support Services,135B,Critiqom LTD,07/07/2023,PE150975,0.20,0.00,June Services,Postage
Wyre Council,http://opendatacommunities.org/doc/district-council/wyre,30/07/2023,People and Places,Central Services to the Public,131C,Critiqom LTD,07/07/2023,PE150975,124.44,0.00,June Services,Postage
Wyre Council,http://opendatacommunities.org/doc/district-council/wyre,30/07/2023,People and Places,Central Services to the Public,131C,Critiqom LTD,07/07/2023,PE150975,3.01,0.00,June Services,Postage
Wyre Council,http://opendatacommunities.org/doc/district-council/wyre,30/07/2023,People and Places,Housing General Fund,134A,Critiqom LTD,07/07/2023,PE150975,1.44,0.00,June Services,Postage
Wyre Council,http://opendatacommunities.org/doc/district-council/wyre,30/07/2023,People and Places,Central Services to the Public,131C,Critiqom LTD,07/07/2023,PE150975,423.98,0.00,June Services,Postage
Wyre Council,http://opendatacommunities.org/doc/district-council/wyre,30/07/2023,People and Places,Central Services to the Public,131C,Critiqom LTD,07/07/2023,PE150975,10.24,0.00,June Services,Postage
Wyre Council,http://opendatacommunities.org/doc/district-council/wyre,30/07/2023,People and Places,Housing General Fund,134A,Critiqom LTD,07/07/2023,PE150975,59.81,0.00,June Services,Postage
Wyre Council,http://opendatacommunities.org/doc/district-council/wyre,30/07/2023,People and Places,Support Services,135B,Critiqom LTD,07/07/2023,PE150975,0.57,0.00,June Services,Postage
Wyre Council,http://opendatacommunities.org/doc/district-council/wyre,30/07/2023,People and Places,Support Services,135B,Critiqom LTD,07/07/2023,PE150975,0.02,0.00,June Services,Postage
Wyre Council,http://opendatacommunities.org/doc/district-council/wyre,30/07/2023,Resources,Support Services,135B,Critiqom LTD,10/07/2023,RS151007,451.41,0.00,Council Tax Reminders,Postage
Wyre Council,http://opendatacommunities.org/doc/district-council/wyre,30/07/2023,Resources,Support Services,135B,Critiqom LTD,10/07/2023,RS151007,40.51,0.00,NNDR Reminders,Postage
Wyre Council,http://opendatacommunities.org/doc/district-council/wyre,30/07/2023,Resources,Support Services,135B,Critiqom LTD,10/07/2023,RS151007,254.87,0.00,Council Tax Summons,Postage
Wyre Council,http://opendatacommunities.org/doc/district-council/wyre,30/07/2023,Resources,Support Services,135B,Critiqom LTD,19/07/2023,RS151394,10.00,0.00,Data Quality Infractions June 23,Postage
Wyre Council,http://opendatacommunities.org/doc/district-council/wyre,30/07/2023,Resources,Support Services,135B,Critiqom LTD,10/07/2023,RS151007,22.67,0.00,NNDR Summons,Postage
Wyre Council,http://opendatacommunities.org/doc/district-council/wyre,30/07/2023,Resources,Housing General Fund,134A,Critiqom LTD,10/07/2023,RS151007,206.28,0.00,Benefit Notifications,Postage
Wyre Council,http://opendatacommunities.org/doc/district-council/wyre,30/07/2023,Resources,Central Services to the Public,131C,Critiqom LTD,10/07/2023,RS151007,1704.21,0.00,Daily Bills,Postage
Wyre Council,http://opendatacommunities.org/doc/district-council/wyre,30/07/2023,People and Places,Environmental Services,132B,PermiServ Ltd,17/07/2023,PE151075,3537.49,0.00,"27,000 Production, Postage and Management of Green Waste  Subscription Stickers/Portal, as per Lancashire Agreement (Unit cost 1.02 per sticker)  Please leave PO open as it will be drawn-off each month  e-mail address: Rebecca Padgham rebecca@permiserv.c",Postage
Wyre Council,http://opendatacommunities.org/doc/district-council/wyre,30/07/2023,Resources,Central Services to the Public,131C,Print Image Network LTD,20/07/2023,RS151436,1586.00,0.00,Warren By-Election 22 June 2023 - 733 Postal Votes Printing,Printing
Wyre Council,http://opendatacommunities.org/doc/district-council/wyre,30/07/2023,Resources,Central Services to the Public,131C,Print Image Network LTD,20/07/2023,RS151435,1067.00,0.00,Warren Ward By-Election 22 June 2023 - 33 Sets of Ballot Books,Printing
Wyre Council,http://opendatacommunities.org/doc/district-council/wyre,30/07/2023,Resources,Central Services to the Public,131C,Print Image Network LTD,20/07/2023,RS151434,1391.00,0.00,Warren Ward By-Election - 22 June 2023 - Printing 3285 Poll Cards,Printing
Wyre Council,http://opendatacommunities.org/doc/district-council/wyre,30/07/2023,People and Places,Public Transport,133G,Wyre Marine Services,17/07/2023,PE151287,19036.66,0.00,Fleetwood - Knott End Ferry Service Schedule of payments 12 Jun 2023 - 11 Jul 2023 = 9518.33 12 Jul 2023 - 11 Aug  2023 = 9518.33,Private Contractors
Wyre Council,http://opendatacommunities.org/doc/district-council/wyre,30/07/2023,People and Places,Cultural and Related Services,132A,Food For Thought,04/07/2023,PE150880,1000.00,0.00,Wedding catering - Marine Hall 14/7/23,Private Contractors
Wyre Council,http://opendatacommunities.org/doc/district-council/wyre,30/07/2023,People and Places,Parking Services,133F,NSL Services Group,07/07/2023,PE150952,4618.40,0.00,Provide enforcement officer for Wyre Council car parks - 1 April 2023 - 31 March 2024,Private Contractors
Wyre Council,http://opendatacommunities.org/doc/district-council/wyre,30/07/2023,People and Places,Environmental Services,132B,Floating Pontoon Solutions,07/07/2023,PE150972,1295.00,0.00,"Carry out urgent necessary tree removal works to the fallen trees causing blockages within Royles Brook behind Thornton Sports Centre, Thornton-Cleveleys:-  Please note: A comprehensive bird nesting survey is to be carried out prior/during the works by Ch",Private Contractors
Wyre Council,http://opendatacommunities.org/doc/district-council/wyre,30/07/2023,Resources,Housing General Fund,134A,Salvation Army,13/07/2023,RS151195,27015.82,0.00,"Refugee support Q1 23/24 - Casworker costs 18,750 - Resettlement costs 8,265.28",Private Contractors
Wyre Council,http://opendatacommunities.org/doc/district-council/wyre,30/07/2023,People and Places,Cultural and Related Services,132A,Lords Deli,18/07/2023,PE151388,587.50,0.00,Catering - Marine Hall - Wedding 19/5/23,Private Contractors
Wyre Council,http://opendatacommunities.org/doc/district-council/wyre,30/07/2023,People and Places,Parking Services,133F,CHIPSIDE LTD,18/07/2023,PE151383,957.03,0.00,provision of notice processing services 1 April 2023 - 31 March 2024; including postage,Private Contractors
Wyre Council,http://opendatacommunities.org/doc/district-council/wyre,30/07/2023,People and Places,Parking Services,133F,CHIPSIDE LTD,05/07/2023,PE150907,64.10,0.00,Wyre Council bank transaction fees 1 April 2023 - 31 March 2024,Private Contractors
Wyre Council,http://opendatacommunities.org/doc/district-council/wyre,30/07/2023,People and Places,Cultural and Related Services,132A,Melrose Development Services Ltd,06/07/2023,PE150820,1428.25,0.00,Marsh Mill Rental. Period 1 July 2023- 30 September 2023. Marsh Mill service charge The Mill Thornton. Period 1 July 2023- 30 September 2023,Private Contractors
Wyre Council,http://opendatacommunities.org/doc/district-council/wyre,30/07/2023,People and Places,Support Services,135B,GARRY CARR BUILDING SERVICES LTD,19/07/2023,PE151176,730.00,0.00,Painting of Planters @ poulton as per email from Christina Marginson,Private Contractors
Wyre Council,http://opendatacommunities.org/doc/district-council/wyre,30/07/2023,People and Places,Environmental Services,132B,Idverde Limited,11/07/2023,PE150081,13513.65,0.00,Wyre Highway Weed Control - Urban,Private Contractors
Wyre Council,http://opendatacommunities.org/doc/district-council/wyre,30/07/2023,People and Places,Environmental Services,132B,Idverde Limited,11/07/2023,PE150081,4504.55,0.00,Wyre Highway Weed Control - Rural,Private Contractors
Wyre Council,http://opendatacommunities.org/doc/district-council/wyre,30/07/2023,People and Places,Cultural and Related Services,132A,Key Engineering & Hygiene Supplies LTD,04/07/2023,PE150852,4.15,0.00,Supply and deliver as per quotation 19300,Promotions - General
Wyre Council,http://opendatacommunities.org/doc/district-council/wyre,30/07/2023,People and Places,Planning and Development Servs,132C,Northern Print Distribution,26/07/2023,PE151673,1250.00,0.00,50k distribution of Fleetwood Market leaflet,Promotions - General
Wyre Council,http://opendatacommunities.org/doc/district-council/wyre,30/07/2023,Resources,Environmental Services,132B,Critiqom LTD,20/07/2023,RS151446,1739.12,0.00,Green Waste Reminder Letters,Promotions - General
Wyre Council,http://opendatacommunities.org/doc/district-council/wyre,30/07/2023,Resources,Environmental Services,132B,Critiqom LTD,20/07/2023,RS151446,40.11,0.00,Green Waste Reminder Letters - Energy Surcharge,Promotions - General
Wyre Council,http://opendatacommunities.org/doc/district-council/wyre,30/07/2023,People and Places,Environmental Services,132B,PermiServ Ltd,17/07/2023,PE151075,3537.49,0.00,"27,000 Production, Postage and Management of Green Waste  Subscription Stickers/Portal, as per Lancashire Agreement (Unit cost 1.02 per sticker)  Please leave PO open as it will be drawn-off each month  e-mail address: Rebecca Padgham rebecca@permiserv.c",Promotions - General
Wyre Council,http://opendatacommunities.org/doc/district-council/wyre,30/07/2023,People and Places,Planning and Development Servs,132C,JP DISTRIBUTION,05/07/2023,PE150137,500.00,0.00,"Collate and distribute 20,000 D/L Leaflets @ 25.00 per 1,000 for Fleetwood Market",Promotions - General
Wyre Council,http://opendatacommunities.org/doc/district-council/wyre,30/07/2023,People and Places,Planning and Development Servs,132C,JP DISTRIBUTION,05/07/2023,PE150138,150.00,0.00,"Add on A3 posters for Fleetwood Market  Into Hotel, Guesthouses, Caravan Parks, TICs and Places of Interest",Promotions - General
Wyre Council,http://opendatacommunities.org/doc/district-council/wyre,30/07/2023,Resources,Cultural and Related Services,132A,Visual Print and Design Ltd,13/07/2023,RS151208,640.00,0.00,HAF SUMMER BROCHURES1000 x HAF Summer ages 12-16 - A5 4pp - 1202000 x HAF Summer under 12s - A5 12pp - 520,Promotions - General
Wyre Council,http://opendatacommunities.org/doc/district-council/wyre,30/07/2023,People and Places,Planning and Development Servs,132C,PSM Group,28/07/2023,PE151708,520.00,0.00,SIGN FITTED ON RAILINGS REQUESTED AT FORUM MEETING,Promotions - General
Wyre Council,http://opendatacommunities.org/doc/district-council/wyre,30/07/2023,People and Places,Cultural and Related Services,132A,Key Engineering & Hygiene Supplies LTD,17/07/2023,PE151289,300.35,0.00,"Gloves, PPE and cleaning products",Protective Clothing
Wyre Council,http://opendatacommunities.org/doc/district-council/wyre,30/07/2023,People and Places,Support Services,135B,Key Engineering & Hygiene Supplies LTD,04/07/2023,PE150852,95.47,0.00,Supply and deliver as per quotation 19300,Protective Clothing
Wyre Council,http://opendatacommunities.org/doc/district-council/wyre,30/07/2023,People and Places,Support Services,135B,Key Engineering & Hygiene Supplies LTD,04/07/2023,PE150700,159.28,0.00,Supply and deliver as per quotation 19300,Protective Clothing
Wyre Council,http://opendatacommunities.org/doc/district-council/wyre,30/07/2023,People and Places,Environmental Services,132B,Key Engineering & Hygiene Supplies LTD,04/07/2023,PE150700,109.32,0.00,Supply and deliver as per quotation 19300,Protective Clothing
Wyre Council,http://opendatacommunities.org/doc/district-council/wyre,30/07/2023,People and Places,Environmental Services,132B,Key Engineering & Hygiene Supplies LTD,04/07/2023,PE150700,49.95,0.00,Chukka Boots,Protective Clothing
Wyre Council,http://opendatacommunities.org/doc/district-council/wyre,30/07/2023,People and Places,Environmental Services,132B,Key Engineering & Hygiene Supplies LTD,04/07/2023,PE150852,32.09,0.00,Supply and deliver as per quotation 19300,Protective Clothing
Wyre Council,http://opendatacommunities.org/doc/district-council/wyre,30/07/2023,People and Places,Cultural and Related Services,132A,Key Engineering & Hygiene Supplies LTD,19/07/2023,PE151404,24.48,0.00,"Gloves, PPE and cleaning products",Protective Clothing
Wyre Council,http://opendatacommunities.org/doc/district-council/wyre,30/07/2023,People and Places,Support Services,135B,Key Engineering & Hygiene Supplies LTD,26/07/2023,PE151642,872.29,0.00,Supply and deliver clothing as per quotation 19618,Protective Clothing
Wyre Council,http://opendatacommunities.org/doc/district-council/wyre,30/07/2023,People and Places,Support Services,135B,Key Engineering & Hygiene Supplies LTD,26/07/2023,PE151642,37.42,0.00,Supply and deliver clothing as per quotation 19618,Protective Clothing
Wyre Council,http://opendatacommunities.org/doc/district-council/wyre,30/07/2023,People and Places,Environmental Services,132B,Key Engineering & Hygiene Supplies LTD,17/07/2023,PE151264,47.28,0.00,Supply and deliver as per quotation 19300,Protective Clothing
Wyre Council,http://opendatacommunities.org/doc/district-council/wyre,30/07/2023,People and Places,Support Services,135B,HUWS GRAY LTD,31/07/2023,PE150934,39.86,0.00,Materials  Keith Urwin,Protective Clothing
Wyre Council,http://opendatacommunities.org/doc/district-council/wyre,30/07/2023,People and Places,Environmental Services,132B,Amazon Business,31/07/2023,PE151706,24.74,0.00,Safety boots,Protective Clothing
Wyre Council,http://opendatacommunities.org/doc/district-council/wyre,30/07/2023,People and Places,Environmental Services,132B,Key Engineering & Hygiene Supplies LTD,17/07/2023,PE151288,883.00,0.00,"Supply and deliver 50 boxes of Blue sacks, code BL09OC1 @ 17.66 per box of 200 Delivery to Wyre Council, Copse Road Depot, Copse Road, Fleetwood, FY7 6RP","Provision of Bins, Boxes and Sacks"
Wyre Council,http://opendatacommunities.org/doc/district-council/wyre,30/07/2023,People and Places,Environmental Services,132B,UK Container Maintenance LTD,27/07/2023,PE151687,3520.00,0.00,Undertake refurbishment of 1100ltr & 920ltr Bulk Containers (Silver Sheen) @ 176 per containere-mail address - www.ukcontainers.co.ukTelephone Number: 01606 723020Please send a copy of the order to: Victoria Whitaker victoria@ukcontainers.co.,"Provision of Bins, Boxes and Sacks"
Wyre Council,http://opendatacommunities.org/doc/district-council/wyre,30/07/2023,People and Places,Environmental Services,132B,Veolia ES (UK) LTD,20/07/2023,PE151431,4977.81,0.00,Bin Provision,"Provision of Bins, Boxes and Sacks"
Wyre Council,http://opendatacommunities.org/doc/district-council/wyre,30/07/2023,People and Places,Environmental Services,132B,Contenur UK Ltd,24/07/2023,PE151479,5770.65,0.00,"240ltr Anthracite Grey Body c/w 0300 Green Lid,  2 standard wheels & axle, logo, in Virgin polymer  @ 22.63 per unit  Prices as per ESPO Contract Schedule 860ADD  Anticipated delivery ASAP  (can accept delivery any time, but please advise in advance if p","Provision of Bins, Boxes and Sacks"
Wyre Council,http://opendatacommunities.org/doc/district-council/wyre,30/07/2023,People and Places,Environmental Services,132B,Contenur UK Ltd,12/07/2023,PE151029,7943.13,0.00,"240ltr Anthracite Grey Body c/w 0801 Blue Lid, 2 standard wheels + axle, logo, in Virgin polymer @ 22.63 per unit","Provision of Bins, Boxes and Sacks"
Wyre Council,http://opendatacommunities.org/doc/district-council/wyre,30/07/2023,People and Places,Environmental Services,132B,Contenur UK Ltd,12/07/2023,PE151029,2172.48,0.00,"240ltr Anthracite Grey Body c/w 0300 Green Lid, 2 standard wheels & axle, logo, in Virgin polymer @ 22.63 per unitPrices as per ESPO Contract Schedule 860ADDAnticipated delivery ASAP (can accept delivery any time, but please advise in advan","Provision of Bins, Boxes and Sacks"
Wyre Council,http://opendatacommunities.org/doc/district-council/wyre,30/07/2023,People and Places,Environmental Services,132B,Macfarlane Packaging ltd,17/07/2023,PE151339,509.40,0.00,Visqueen wrapping PCFBL-250-1000-40001/4mx25m/1000GBlue DPM M?F SHTNG10 rolls @ 50.94 per rollQuote Gill Liddle,"Provision of Bins, Boxes and Sacks"
Wyre Council,http://opendatacommunities.org/doc/district-council/wyre,30/07/2023,People and Places,Support Services,135B,Amazon Business,21/07/2023,PE151429,10.99,0.00,Ribbon and scissors,Public Relations
Wyre Council,http://opendatacommunities.org/doc/district-council/wyre,30/07/2023,Resources,Support Services,135B,Amazon Business,21/07/2023,RS151256,2.91,0.00,Plain Round Real Cork Coasters (6).,Purchase Furniture
Wyre Council,http://opendatacommunities.org/doc/district-council/wyre,30/07/2023,Resources,Support Services,135B,Amazon Business,12/07/2023,RS151081,34.60,0.00,"B2C Flowerpot Round Plastic plant pot Crystal Modern Decorative Large  (Gold, 30 cm)",Purchase Furniture
Wyre Council,http://opendatacommunities.org/doc/district-council/wyre,30/07/2023,Resources,Support Services,135B,Amazon Business,12/07/2023,RS151032,13.42,0.00,Long Rake Spar Flamingo Gravel Decorative Aggregates Slate Chippings Garden Gravel 14-20mm 20 Kg,Purchase Furniture
Wyre Council,http://opendatacommunities.org/doc/district-council/wyre,30/07/2023,Resources,Support Services,135B,Amazon Business,10/07/2023,RS150985,10.62,0.00,"TriPole USB Desk Fan, 3 Speeds Adjustable Strong Wind Table Fan, 360� Rotation Mini Personal Fan, 5.5 Inches Portable Cooling Fan for Desktop Office Home Bedroom Car Outdoor Camping, Black.",Purchase Furniture
Wyre Council,http://opendatacommunities.org/doc/district-council/wyre,30/07/2023,People and Places,Support Services,135B,GARRY CARR BUILDING SERVICES LTD,19/07/2023,PE151175,4220.00,0.00,"Members Lounge, Civic Centre: flooring refurbishment works. remove old carpet, underlay and gripper rods. Sand floor and apply 3 coats of sports coat diamond lacquer",Purchase Furniture
Wyre Council,http://opendatacommunities.org/doc/district-council/wyre,30/07/2023,People and Places,Support Services,135B,GARRY CARR BUILDING SERVICES LTD,19/07/2023,PE151177,6738.00,0.00,civic Centre: Decoration and refurbishment work to member`s lounge,Purchase Furniture
Wyre Council,http://opendatacommunities.org/doc/district-council/wyre,30/07/2023,People and Places,Support Services,135B,Reed Business Information,31/07/2023,PE150981,2999.00,0.00,EG Radius subscription,Purchase of Publications
Wyre Council,http://opendatacommunities.org/doc/district-council/wyre,30/07/2023,People and Places,Planning and Development Servs,132C,NABMA,11/07/2023,PE150684,768.00,0.00,nabma annual subscription,Purchase of Tools or Equipment
Wyre Council,http://opendatacommunities.org/doc/district-council/wyre,30/07/2023,People and Places,Support Services,135B,Balmers GM LTD,04/07/2023,PE150683,1828.00,0.00, payment of  127475,Purchase of Tools or Equipment
Wyre Council,http://opendatacommunities.org/doc/district-council/wyre,30/07/2023,People and Places,Cultural and Related Services,132A,HUWS GRAY LTD,06/07/2023,PE150929,16.67,0.00,1 x black bin,Purchase of Tools or Equipment
Wyre Council,http://opendatacommunities.org/doc/district-council/wyre,30/07/2023,Resources,Support Services,135B,Amazon Business,21/07/2023,RS151190,42.48,0.00,ENERGISER INDUSTRIAL C TYPE BATTERIES (PACK OF 12),Purchase of Tools or Equipment
Wyre Council,http://opendatacommunities.org/doc/district-council/wyre,30/07/2023,Resources,Support Services,135B,Amazon Business,11/07/2023,RS150627,28.28,0.00,VILEDA ULTRA MAX REFILL,Purchase of Tools or Equipment
Wyre Council,http://opendatacommunities.org/doc/district-council/wyre,30/07/2023,Resources,Support Services,135B,Amazon Business,11/07/2023,RS150712,12.12,0.00,VILEDA ULTRA MAX REFILL,Purchase of Tools or Equipment
Wyre Council,http://opendatacommunities.org/doc/district-council/wyre,30/07/2023,Resources,Support Services,135B,Amazon Business,04/07/2023,RS150823,18.34,0.00,Milwaukee 4932464599 GEN III Magnetic Tape Measure 5m (Width 27mm) Metric only.,Purchase of Tools or Equipment
Wyre Council,http://opendatacommunities.org/doc/district-council/wyre,30/07/2023,Resources,Support Services,135B,Amazon Business,17/07/2023,RS151271,38.94,0.00,Invision Ultra Strong TV Wall Bracket Mount Double Arm Tilt & Swivel for 37-75 Inch (94-190.5cm) LED LCD OLED Plasma & Curved Screens - Up to VESA 600mm(w) x 400mm(h) - Max Load 50kg (HDTV-DXL).,Purchase of Tools or Equipment
Wyre Council,http://opendatacommunities.org/doc/district-council/wyre,30/07/2023,Resources,Support Services,135B,Amazon Business,10/07/2023,RS150944,3.13,0.00,Westcott Professional Safety Cutter Knife.,Purchase of Tools or Equipment
Wyre Council,http://opendatacommunities.org/doc/district-council/wyre,30/07/2023,Resources,Support Services,135B,Amazon Business,11/07/2023,RS150510,19.98,0.00,"Lacdo Hard Carrying Case for SanDisk Extreme PRO/SanDisk Extreme Portable SSD 500GB 1TB 2TB 4TB USB-C EVA External Solid State Drive Shockproof Water Repellent Protective Storage Travel Bag, Black.",Purchase of Tools or Equipment
Wyre Council,http://opendatacommunities.org/doc/district-council/wyre,30/07/2023,Resources,Support Services,135B,Amazon Business,11/07/2023,RS150508,16.64,0.00,"AIPIE Laptop Sleeve 15-15.6 Inch Notebook Case Bump Absorb Briefcase Carrying Bag Compatible with MacBook, Acer, Asus, Dell, Lenovo, Microsoft, HP Durable Laptop Cover.",Purchase of Tools or Equipment
Wyre Council,http://opendatacommunities.org/doc/district-council/wyre,30/07/2023,People and Places,Environmental Services,132B,Amazon Business,10/07/2023,PE150769,50.81,0.00,"Fan for Copse Road Meeting Room ,  for team meetings",Purchase of Tools or Equipment
Wyre Council,http://opendatacommunities.org/doc/district-council/wyre,30/07/2023,Resources,Support Services,135B,Amazon Business,14/07/2023,RS151187,4.04,0.00,VILEDA ULTRA MAX REFILL,Purchase of Tools or Equipment
Wyre Council,http://opendatacommunities.org/doc/district-council/wyre,30/07/2023,Resources,Support Services,135B,Amazon Business,18/07/2023,RS151365,23.98,0.00,REY ADAGIO A3 80GSM YELLOW PAPER (1REAM 500SHEETS),Purchase of Tools or Equipment
Wyre Council,http://opendatacommunities.org/doc/district-council/wyre,30/07/2023,People and Places,Cultural and Related Services,132A,SUPPORT IN SPORT UK LTD,12/07/2023,PE151074,6995.00,0.00,Resurface/ Remedial works to 3G pitch  To uplift and replace an area 2m x 50m of existing 3G surface with new SISTurf Xtreme 50 including sand infill. To supply and install 6 tonnes of SBR infill graunle to entire pitch including new area at Thornton Leis,Purchase of Tools or Equipment
Wyre Council,http://opendatacommunities.org/doc/district-council/wyre,30/07/2023,People and Places,Cultural and Related Services,132A,Brighouse and Rastrick Band,11/07/2023,PE150772,3470.00,0.00,Ticket sales for Marine Hall 10/06/23,Refund of Ticket Sales to Ext Promoters
Wyre Council,http://opendatacommunities.org/doc/district-council/wyre,30/07/2023,People and Places,Cultural and Related Services,132A,POULTON DRAMA,25/07/2023,PE151396,3408.00,0.00,Ticket sales for Hoovering on the edge,Refund of Ticket Sales to Ext Promoters
Wyre Council,http://opendatacommunities.org/doc/district-council/wyre,30/07/2023,People and Places,Cultural and Related Services,132A,THE WINDMILL PLAYERS,20/07/2023,PE151449,4110.00,0.00,Incident Room  07 to 10/06/23 ticket sales,Refund of Ticket Sales to Ext Promoters
Wyre Council,http://opendatacommunities.org/doc/district-council/wyre,30/07/2023,People and Places,Cultural and Related Services,132A,THE WINDMILL PLAYERS,20/07/2023,PE151395,-4110.00,0.00,Ticket Sales for The Incident Room June 2023,Refund of Ticket Sales to Ext Promoters
Wyre Council,http://opendatacommunities.org/doc/district-council/wyre,30/07/2023,People and Places,Cultural and Related Services,132A,THE WINDMILL PLAYERS,19/07/2023,PE151395,4110.00,0.00,Ticket Sales for The Incident Room June 2023,Refund of Ticket Sales to Ext Promoters
Wyre Council,http://opendatacommunities.org/doc/district-council/wyre,30/07/2023,People and Places,Cultural and Related Services,132A,Carlton Entertainment,27/07/2023,PE151646,6459.17,0.00,Cher - Strong Enough 23/06/23 ticket sales,Refund of Ticket Sales to Ext Promoters
Wyre Council,http://opendatacommunities.org/doc/district-council/wyre,30/07/2023,People and Places,Cultural and Related Services,132A,The Crown Ballroom,28/07/2023,PE151693,2865.00,0.00,Iconic 01/07/23 ticket sales,Refund of Ticket Sales to Ext Promoters
Wyre Council,http://opendatacommunities.org/doc/district-council/wyre,30/07/2023,People and Places,Support Services,135B,Blackpool Council,24/07/2023,PE150933,3070.08,0.00,Payment of invoice 31004636,Refuse Collection
Wyre Council,http://opendatacommunities.org/doc/district-council/wyre,30/07/2023,People and Places,Planning and Development Servs,132C,Suez Recycling And Recovery UK LTD,24/07/2023,PE149981,1024.95,0.00,waste removal market suez,Refuse Collection
Wyre Council,http://opendatacommunities.org/doc/district-council/wyre,30/07/2023,People and Places,Planning and Development Servs,132C,Suez Recycling And Recovery UK LTD,11/07/2023,PE150869,1045.65,0.00,waste removal market suez,Refuse Collection
Wyre Council,http://opendatacommunities.org/doc/district-council/wyre,30/07/2023,People and Places,Environmental Services,132B,Veolia ES (UK) LTD,20/07/2023,PE151431,193845.40,0.00,Domestic Waste Management Collection Contract 2023/24,Refuse Collection Contract
Wyre Council,http://opendatacommunities.org/doc/district-council/wyre,30/07/2023,People and Places,Environmental Services,132B,Veolia ES (UK) LTD,20/07/2023,PE151431,2028.62,0.00,Pension Pass Through,Refuse Collection Contract
Wyre Council,http://opendatacommunities.org/doc/district-council/wyre,30/07/2023,People and Places,Environmental Services,132B,Calico Enterprise,11/07/2023,PE150826,1946.64,0.00,Bulky Matters Contract Calico 2023/24,Refuse Collection Contract
Wyre Council,http://opendatacommunities.org/doc/district-council/wyre,30/07/2023,People and Places,Public Transport,133G,Andrew Signs LTD,26/07/2023,PE151670,890.00,0.00,polycarbonate 6mm for Mark and various street name plates for Mark,Repairs to Non-WBC Buildings
Wyre Council,http://opendatacommunities.org/doc/district-council/wyre,30/07/2023,People and Places,Cultural and Related Services,132A,Allcool (NW) Ltd,13/07/2023,PE151010,506.00,0.00,Marine Hall: service 29/06/23: deep clean and degrease of kitchen extract ductwork system,Responsive Building Maintenance
Wyre Council,http://opendatacommunities.org/doc/district-council/wyre,30/07/2023,People and Places,Environmental Services,132B,EAS Electrical Mechanical,17/07/2023,PE151284,1063.60,0.00,Remove and replace water heater in kitchen at Chtsworth Depot,Responsive Building Maintenance
Wyre Council,http://opendatacommunities.org/doc/district-council/wyre,30/07/2023,People and Places,Support Services,135B,EAS Electrical Mechanical,17/07/2023,PE151283,394.10,0.00,Remove and replace damaged heater at Civic Centre,Responsive Building Maintenance
Wyre Council,http://opendatacommunities.org/doc/district-council/wyre,30/07/2023,People and Places,Planning and Development Servs,132C,EAS Electrical Mechanical,11/07/2023,PE151056,287.63,0.00,Copse Rd Depot: replaced faulty vapor proof light in viola garage and damaged rotary isolator in MOT garage store,Responsive Building Maintenance
Wyre Council,http://opendatacommunities.org/doc/district-council/wyre,30/07/2023,People and Places,Support Services,135B,EAS Electrical Mechanical,11/07/2023,PE151055,48.00,0.00,"Civic Centre: Isolate hot water, tighten loose tap and test",Responsive Building Maintenance
Wyre Council,http://opendatacommunities.org/doc/district-council/wyre,30/07/2023,People and Places,Support Services,135B,EAS Electrical Mechanical,11/07/2023,PE151052,96.00,0.00,"Civic Centre: refixed wall lights and shades, took light down from lift area and blanked off to replace broken one",Responsive Building Maintenance
Wyre Council,http://opendatacommunities.org/doc/district-council/wyre,30/07/2023,People and Places,Support Services,135B,EAS Electrical Mechanical,11/07/2023,PE151054,72.00,0.00,Civic Centre: removed 7 x wall lights and made safe,Responsive Building Maintenance
Wyre Council,http://opendatacommunities.org/doc/district-council/wyre,30/07/2023,People and Places,Support Services,135B,EAS Electrical Mechanical,11/07/2023,PE151053,48.00,0.00,Civic Centre: removed 6 x wall lights and stored safe as requested,Responsive Building Maintenance
Wyre Council,http://opendatacommunities.org/doc/district-council/wyre,30/07/2023,People and Places,Planning and Development Servs,132C,EAS Electrical Mechanical,27/07/2023,PE151680,87.21,0.00,"Fleetwood Market: Investigate leak on toilet, isolate toilet and cut away rusty bolts, disconnect cistern, remove and replace faulty close couple kit and reinstall cistern and test",Responsive Building Maintenance
Wyre Council,http://opendatacommunities.org/doc/district-council/wyre,30/07/2023,People and Places,Environmental Services,132B,EAS Electrical Mechanical,28/07/2023,PE151699,95.41,0.00,"Fleetwood Cemetery: Investigate tap not turning off, remove boxing and clamp warer pipe, remove tap and reduce down to 1/2"" and install new tap.",Responsive Building Maintenance
Wyre Council,http://opendatacommunities.org/doc/district-council/wyre,30/07/2023,People and Places,Cultural and Related Services,132A,EAS Electrical Mechanical,07/07/2023,PE150950,276.00,0.00,Hire of x2 space heaters- HIRE COMPLETE,Responsive Building Maintenance
Wyre Council,http://opendatacommunities.org/doc/district-council/wyre,30/07/2023,People and Places,Cultural and Related Services,132A,EAS Electrical Mechanical,07/07/2023,PE150949,396.00,0.00,EICR Remedials,Responsive Building Maintenance
Wyre Council,http://opendatacommunities.org/doc/district-council/wyre,30/07/2023,People and Places,Planning and Development Servs,132C,EAS Electrical Mechanical,13/07/2023,PE151163,1939.39,0.00,Copse Rd Depot: Remedial works to replace section of pressure washer housing cabling and protection,Responsive Building Maintenance
Wyre Council,http://opendatacommunities.org/doc/district-council/wyre,30/07/2023,People and Places,Cultural and Related Services,132A,EAS Electrical Mechanical,12/07/2023,PE151139,116.21,0.00,"Lower Lighthouse, Fleetwood: Outside lighting had tripped tested cable fine, noticed a 30w floodlight out on top balcony so when light failed this could of tripped mcb, replaced light",Responsive Building Maintenance
Wyre Council,http://opendatacommunities.org/doc/district-council/wyre,30/07/2023,People and Places,Cultural and Related Services,132A,EAS Electrical Mechanical,12/07/2023,PE151134,72.00,0.00,"YMCA Fleetwood, Marine Splash: turned on valves that were closed and tighten 2 lever valves that were leaking",Responsive Building Maintenance
Wyre Council,http://opendatacommunities.org/doc/district-council/wyre,30/07/2023,People and Places,Support Services,135B,EAS Electrical Mechanical,12/07/2023,PE151154,24.00,0.00,Labour charges for for work at Civic,Responsive Building Maintenance
Wyre Council,http://opendatacommunities.org/doc/district-council/wyre,30/07/2023,People and Places,Cultural and Related Services,132A,EAS Electrical Mechanical,12/07/2023,PE151140,66.50,0.00,Marine Hall: changed two flexi tap connectors,Responsive Building Maintenance
Wyre Council,http://opendatacommunities.org/doc/district-council/wyre,30/07/2023,People and Places,Planning and Development Servs,132C,EAS Electrical Mechanical,12/07/2023,PE151138,66.90,0.00,Copse Rd Depot: found fault to be faulty led tube - removed led tube from light and fault was rectified,Responsive Building Maintenance
Wyre Council,http://opendatacommunities.org/doc/district-council/wyre,30/07/2023,People and Places,Planning and Development Servs,132C,EAS Electrical Mechanical,12/07/2023,PE151136,105.34,0.00,Fleetwood Market: replaced 1 x faulty 5ft fluorescent with led replacement,Responsive Building Maintenance
Wyre Council,http://opendatacommunities.org/doc/district-council/wyre,30/07/2023,People and Places,Planning and Development Servs,132C,EAS Electrical Mechanical,12/07/2023,PE151135,73.20,0.00,"Fleetwood Market: investigate fault on toilet - syphon has snapped, isolate water and drain, replace syphon and test on complettion",Responsive Building Maintenance
Wyre Council,http://opendatacommunities.org/doc/district-council/wyre,30/07/2023,People and Places,Cultural and Related Services,132A,EAS Electrical Mechanical,31/07/2023,PE151713,110.61,0.00,Marine Hall: Electric repairs following leak.  Reconcnected 2 greggs which had been pulled down and swapped faulty lamp in bar toilets. Test all cabling in area,Responsive Building Maintenance
Wyre Council,http://opendatacommunities.org/doc/district-council/wyre,30/07/2023,People and Places,Cultural and Related Services,132A,EAS Electrical Mechanical,31/07/2023,PE151712,24.00,0.00,"Marine Hall: Remove IPS panel, reattach toilet handle, tighten grub screw and test",Responsive Building Maintenance
Wyre Council,http://opendatacommunities.org/doc/district-council/wyre,30/07/2023,People and Places,Cultural and Related Services,132A,EAS Electrical Mechanical,31/07/2023,PE151709,64.99,0.00,Marine Hall: Separated boiler supply from text sign as both were supplied from 1 x 16a MCB - added additional 16a MCB,Responsive Building Maintenance
Wyre Council,http://opendatacommunities.org/doc/district-council/wyre,30/07/2023,People and Places,Support Services,135B,EAS Electrical Mechanical,31/07/2023,PE151710,116.45,0.00,"Civic Centre: Refit 4 wall ights and stat, 8 new installed as others were cracked",Responsive Building Maintenance
Wyre Council,http://opendatacommunities.org/doc/district-council/wyre,30/07/2023,People and Places,Support Services,135B,EAS Electrical Mechanical,31/07/2023,PE151711,192.00,0.00,"civic Centre: reinstall radiators after  decorating and where damp repairs have been carried out, fill and vent system",Responsive Building Maintenance
Wyre Council,http://opendatacommunities.org/doc/district-council/wyre,30/07/2023,People and Places,Cultural and Related Services,132A,Pipescan LTD,24/07/2023,PE150697,2400.00,0.00,"Kiosk 6 Fleetwood: Investigation excavation at kiosk on 22/06/23 as quoted. Cost includes plant hire, HPWJ unit and tanker services",Responsive Building Maintenance
Wyre Council,http://opendatacommunities.org/doc/district-council/wyre,30/07/2023,Resources,Support Services,135B,Amazon Business,21/07/2023,RS151443,49.80,0.00,TESA POWER BOND ULTRA STRONG,Responsive Building Maintenance
Wyre Council,http://opendatacommunities.org/doc/district-council/wyre,30/07/2023,Resources,Support Services,135B,Amazon Business,21/07/2023,RS151465,1.87,0.00,TESA MASKING TAPE,Responsive Building Maintenance
Wyre Council,http://opendatacommunities.org/doc/district-council/wyre,30/07/2023,People and Places,Planning and Development Servs,132C,Maintenance Supplies Contracts Ltd,26/07/2023,PE149921,80665.20,0.00,"Re : Unit 10 Omitted ABP Ports, Fleetwood, FY7 6PP: 6-9mm Polyurethane Resin Screed System Installation  FOOD GRADE POLYURETHANE RESIN SCREED Total Area Size: 2,421m2 Product Depth: 6-9mm Colour: RAL TBC  1. Vacuum Shotblast to create a key with the concr",Responsive Building Maintenance
Wyre Council,http://opendatacommunities.org/doc/district-council/wyre,30/07/2023,People and Places,Support Services,135B,GARRY CARR BUILDING SERVICES LTD,10/07/2023,PE150706,591.00,0.00,Civic Ventre: Room 156a - decorate and remove carpet and gripper rods,Responsive Building Maintenance
Wyre Council,http://opendatacommunities.org/doc/district-council/wyre,30/07/2023,People and Places,Cultural and Related Services,132A,GARRY CARR BUILDING SERVICES LTD,10/07/2023,PE150696,167.00,0.00,"Boat Store, Marine Lake: remove loose concrete to ceiling, clean and paint.  Fill cracks to edge of roof and week jkill",Responsive Building Maintenance
Wyre Council,http://opendatacommunities.org/doc/district-council/wyre,30/07/2023,People and Places,Support Services,135B,GARRY CARR BUILDING SERVICES LTD,17/07/2023,PE151180,46.00,0.00,Civic Centre: re-fix nosing to stairs adjacent to room 63,Responsive Building Maintenance
Wyre Council,http://opendatacommunities.org/doc/district-council/wyre,30/07/2023,People and Places,Cultural and Related Services,132A,GARRY CARR BUILDING SERVICES LTD,24/07/2023,PE151205,440.00,0.00,Garstang Road Cemetery: Pre-painting to external wall cladding.  Supply and fit heavy duty hanging wall brackets,Responsive Building Maintenance
Wyre Council,http://opendatacommunities.org/doc/district-council/wyre,30/07/2023,People and Places,Environmental Services,132B,GARRY CARR BUILDING SERVICES LTD,24/07/2023,PE151203,2900.00,0.00,Garstang Road Cemetery: External paint of the chapel,Responsive Building Maintenance
Wyre Council,http://opendatacommunities.org/doc/district-council/wyre,30/07/2023,People and Places,Cultural and Related Services,132A,GARRY CARR BUILDING SERVICES LTD,24/07/2023,PE151204,1710.00,0.00,"Public clock Victoria Road, Cleveleys: Repair/replace brickwork to large planter surrounded to rotary clock and build brick chamber for access to electrics",Responsive Building Maintenance
Wyre Council,http://opendatacommunities.org/doc/district-council/wyre,30/07/2023,People and Places,Cultural and Related Services,132A,GARRY CARR BUILDING SERVICES LTD,24/07/2023,PE151118,1204.00,0.00,"Splash pad, Fleetwood: Clean up prior to opening",Responsive Building Maintenance
Wyre Council,http://opendatacommunities.org/doc/district-council/wyre,30/07/2023,People and Places,Support Services,135B,GARRY CARR BUILDING SERVICES LTD,19/07/2023,PE151201,586.00,0.00,"Civic Centre Room 156A: Prepare sub floor, screed and fit carpet tiles.  Fit boarding to skirting board",Responsive Building Maintenance
Wyre Council,http://opendatacommunities.org/doc/district-council/wyre,30/07/2023,People and Places,Planning and Development Servs,132C,EVOLUTION CONSTRUCTION GROUP LTD,10/07/2023,PE150805,63.89,0.00,Copse Rd Depot: please friction hinges to manager`s office window,Responsive Building Maintenance
Wyre Council,http://opendatacommunities.org/doc/district-council/wyre,30/07/2023,People and Places,Support Services,135B,EVOLUTION CONSTRUCTION GROUP LTD,10/07/2023,PE150810,49.10,0.00,"Street Scene, Civic Centre: remove combination lock form door and refix to room 131",Responsive Building Maintenance
Wyre Council,http://opendatacommunities.org/doc/district-council/wyre,30/07/2023,People and Places,Support Services,135B,EVOLUTION CONSTRUCTION GROUP LTD,10/07/2023,PE150813,24.55,0.00,Civic Centre room 27 - ease and adjust all windows,Responsive Building Maintenance
Wyre Council,http://opendatacommunities.org/doc/district-council/wyre,30/07/2023,People and Places,Cultural and Related Services,132A,EVOLUTION CONSTRUCTION GROUP LTD,10/07/2023,PE150814,85.93,0.00,"Riverside Room & Rangers office, River Road, Stannah: re-site TV screen and projector screen",Responsive Building Maintenance
Wyre Council,http://opendatacommunities.org/doc/district-council/wyre,30/07/2023,People and Places,Cultural and Related Services,132A,EVOLUTION CONSTRUCTION GROUP LTD,10/07/2023,PE150811,162.75,0.00,Cottam Hall Pavilion: Vandalism to verandah: emergency repairs to verandah floor to rear of building,Responsive Building Maintenance
Wyre Council,http://opendatacommunities.org/doc/district-council/wyre,30/07/2023,People and Places,Cultural and Related Services,132A,EVOLUTION CONSTRUCTION GROUP LTD,10/07/2023,PE150924,127.71,0.00,Garstang TIC at Boothe: replace kick plate to front door and clean shop front,Responsive Building Maintenance
Wyre Council,http://opendatacommunities.org/doc/district-council/wyre,30/07/2023,People and Places,Cultural and Related Services,132A,EVOLUTION CONSTRUCTION GROUP LTD,10/07/2023,PE150816,49.10,0.00,Mount Pavilion: Vandalism: Re-glaze one pane of glass,Responsive Building Maintenance
Wyre Council,http://opendatacommunities.org/doc/district-council/wyre,30/07/2023,People and Places,Cultural and Related Services,132A,EVOLUTION CONSTRUCTION GROUP LTD,10/07/2023,PE150927,49.10,0.00,Marine Hall: repairs to letterbox,Responsive Building Maintenance
Wyre Council,http://opendatacommunities.org/doc/district-council/wyre,30/07/2023,People and Places,Cultural and Related Services,132A,EVOLUTION CONSTRUCTION GROUP LTD,10/07/2023,PE150809,49.10,0.00,Marine Hall: investigate and rectify 2 x faults to left door to main entrance,Responsive Building Maintenance
Wyre Council,http://opendatacommunities.org/doc/district-council/wyre,30/07/2023,People and Places,Cultural and Related Services,132A,EVOLUTION CONSTRUCTION GROUP LTD,10/07/2023,PE150806,201.75,0.00,Thornton Little Theatre: replace window lock to upstairs dressing room. Repair door threshold into main hall. Repair stair edging corridor to backstage,Responsive Building Maintenance
Wyre Council,http://opendatacommunities.org/doc/district-council/wyre,30/07/2023,People and Places,Cultural and Related Services,132A,EVOLUTION CONSTRUCTION GROUP LTD,10/07/2023,PE150812,24.55,0.00,Marine Hall: Bin Store door repair,Responsive Building Maintenance
Wyre Council,http://opendatacommunities.org/doc/district-council/wyre,30/07/2023,People and Places,Cultural and Related Services,132A,EVOLUTION CONSTRUCTION GROUP LTD,10/07/2023,PE150926,73.65,0.00,Mount Pavilion: hand Edwardian Barometer,Responsive Building Maintenance
Wyre Council,http://opendatacommunities.org/doc/district-council/wyre,30/07/2023,People and Places,Cultural and Related Services,132A,EVOLUTION CONSTRUCTION GROUP LTD,10/07/2023,PE150925,194.79,0.00,"Splash Pad, YMCA Fleetwood: Decking repairs",Responsive Building Maintenance
Wyre Council,http://opendatacommunities.org/doc/district-council/wyre,30/07/2023,People and Places,Cultural and Related Services,132A,EVOLUTION CONSTRUCTION GROUP LTD,10/07/2023,PE150808,49.10,0.00,Cottam Hall Pavilion: Vandalism to roof 08/05 - clear all debris and report back any damaged roof tiles,Responsive Building Maintenance
Wyre Council,http://opendatacommunities.org/doc/district-council/wyre,30/07/2023,People and Places,Cultural and Related Services,132A,EVOLUTION CONSTRUCTION GROUP LTD,10/07/2023,PE150807,73.65,0.00,Garstang TIC at Booths: Repair/replace panic bar to rear fire door,Responsive Building Maintenance
Wyre Council,http://opendatacommunities.org/doc/district-council/wyre,30/07/2023,People and Places,Planning and Development Servs,132C,EVOLUTION CONSTRUCTION GROUP LTD,10/07/2023,PE150815,113.60,0.00,Fleetwood Market: Cash office lock/electric cupboard lock,Responsive Building Maintenance
Wyre Council,http://opendatacommunities.org/doc/district-council/wyre,30/07/2023,People and Places,Support Services,135B,EVOLUTION CONSTRUCTION GROUP LTD,10/07/2023,PE150922,125.09,0.00,Civic Centre: Investigate and rectify fault to sash windows room 075a,Responsive Building Maintenance
Wyre Council,http://opendatacommunities.org/doc/district-council/wyre,30/07/2023,Resources,Housing General Fund,134A,BRADBURN ESTATES LTD,11/07/2023,RS151046,740.00,0.00,REDACT,Rough Sleeper Project/NSNO
